{"text_format":"1","workbook":"xlsx","n_sheets":2,"sheets":["Wall Heights and Lengths","Omni Block Calculator"],"not_rendered":{"charts":0,"images":2,"macros":1,"external_links":0,"defined_names":5,"comments":0,"pivot_tables":0},"unopened":[],"bounds":{"document_bytes":16777216,"sheet_cells":100000,"rows_first":2000,"rows_last":500,"rows_between":2000,"halvings":0,"cell_chars":16384,"cell_head_chars":4096},"cells_cut":0,"cells_raw":0,"read":"whole","date_system":"1900"}

{"sheet":"Wall Heights and Lengths","index":0,"n_rows":34,"n_cols":28,"rows_kept":34,"cut":false,"hidden":false,"merged":[[18,27,19,28],[11,27,12,28],[0,1,1,29],[13,9,14,10],[22,14,23,15],[8,2,9,2],[8,3,9,7],[17,2,18,2],[17,3,18,7],[27,16,28,26],[29,16,30,26],[4,2,6,7],[20,2,21,2],[20,3,21,7],[23,2,24,2],[23,3,24,7],[4,18,5,19],[26,12,26,15],[25,16,26,26],[22,21,23,22],[11,3,12,7],[11,2,12,2],[14,2,15,2],[14,3,15,7],[26,3,28,7],[33,2,34,2],[33,3,34,7],[30,2,31,2],[30,3,31,7],[26,2,27,2]]}
[null,"WALL HEIGHTS AND LENGTHS"]
[]
[]
[]
[null,null,"This section is a step-by-step process of determining wall heights and the total amount of wall length that corresponds to each height.",null,null,null,null,null,null,null,null,null,null,null,null,null,null,null,"56'0\""]
[]
[]
[]
[null,null,1,"Note the scale of the plan i.e.. 1/4\" = 1 foot"]
[]
[]
[null,null,2,"Determine the wall heights of all Omni Block walls on the floor plan.  Reference the Elevation section of plan for assistance.",null,null,null,null,null,null,null,null,null,null,null,null,null,null,null,null,null,null,null,null,null,null,null,"40'0\""]
[]
[null,null,null,null,null,null,null,null,null,"56'0\""]
[null,null,2.1,"Color coding individual wall heights may be helpful."]
[]
[]
[null,null,3,"Select a starting point on the plan (note the location) and determine the wall length sections according to height. "]
[null,null,null,null,null,null,null,null,null,null,null,null,null,null,null,null,null,null,null,null,null,null,null,null,null,null,null,"16'0\""]
[]
[null,null,3.1,"Always work clockwise to help you remember your place."]
[]
[null,null,null,null,null,null,null,null,null,null,null,null,null,null,"24'0\"",null,null,null,null,null,null,"32'0\""]
[null,null,3.2,"On a separate sheet of paper write down the individual wall lengths per each height and then total."]
[]
[null,null,null,null,null,null,null,null,null,null,null,null,null,null,null,null,"Red    = 10'0\" wall height"]
[null,null,4,"Enter wall section heights into the Omni Block Calculator (see tab at bottom) under the heading WALL INFORMATION in the first row entitled \"Wall Height\". "]
[null,null,null,null,null,null,null,null,null,null,null,null,null,null,null,null,"Green = 12'0\" wall height"]
[]
[null,null,null,null,null,null,null,null,null,null,null,null,null,null,null,null,"Yellow = 14'0\" wall height"]
[null,null,4.0999999999999996,"Under the column \"Wall 1\" enter first wall height; \"Wall 2\" your second, and so on."]
[]
[]
[null,null,5,"Enter the total lengths of each height in the \"Wall Length\" field under the appropriate wall height column that you assigned."]

{"sheet":"Omni Block Calculator","index":1,"n_rows":91,"n_cols":16382,"rows_kept":91,"cut":false,"hidden":false,"merged":[[3,16,3,20],[64,16,64,20],[13,3,13,4],[50,13,50,14],[3,3,3,14],[23,3,23,14],[43,13,43,14],[42,13,42,14],[62,13,62,14],[51,13,51,14],[49,13,49,14],[48,13,48,14],[61,16,61,20],[20,3,20,4],[64,3,64,4],[38,3,38,14],[62,3,62,4],[56,3,56,4],[41,3,41,4],[53,3,53,4],[44,13,44,14],[53,13,53,14],[60,13,60,14],[57,13,57,14],[58,13,58,14],[60,3,60,4],[47,13,47,14],[65,13,65,14],[66,13,66,14],[78,3,78,4],[70,13,70,14],[71,13,71,14],[68,13,68,14],[78,5,78,6],[76,13,76,14],[76,3,76,4],[73,3,74,4],[73,5,74,9],[73,13,74,14],[68,3,68,4]]}
[]
[]
[]
[null,null,null,"WALL INFORMATION",null,null,null,null,null,null,null,null,null,null,null,null,"WINDOWS AND DOORS",null,null,null,null,null,null,null,{"$f":"2/3","v":0.66666666666666663},null,null,null,null,0.1]
[null,null,null,null,null,null,null,null,null,null,null,null,null,null,null,null,null,null,null,null,null,null,null,null,"Windows & Doors"]
[null,null,null,"Number of Omni Block Wall Heights",null,2,null,null,null,null,null,null,null,null,null,null,"QUANTITY","WIDTH","HEIGHT","VERTICAL","SQ. FT.",null,null,null,"Omni Block Wall Height",null,"Bond Beam Height",null,null,"Extra Pallets",null,"CMU Sizes"]
[null,null,null,"Number of 8\" CMU Wall Heights",null,1,null,null,null,null,null,null,null,null,null,null,4,4,6,{"$f":"IF(Q7=\"\",\"\",Q7*S7)","v":24},{"$f":"IF(Q7=\"\",\"\",Q7*(R7*S7))","v":96},null,null,1,{"$f":"ROUND($X7*$Y$4,2)","v":0.67},null,"Yes",0.67,null,0,null,4,null,0]
[null,null,null,"Number of 4\" CMU Wall Heights",null,1,null,null,null,null,null,null,null,null,null,null,2,2,4,{"$f":"IF(Q8=\"\",\"\",Q8*S8)","v":8},{"$f":"IF(Q8=\"\",\"\",Q8*(R8*S8))","v":16},null,null,2,1.33,null,"No",0,null,0.1,null,8,null,1]
[null,null,null,null,null,null,2,3,4,5,null,1,2,1,null,null,3,5.33,5.33,{"$f":"IF(Q9=\"\",\"\",Q9*S9)","v":15.99},{"$f":"IF(Q9=\"\",\"\",Q9*(R9*S9))","v":85.226699999999994},null,null,3,2,null,null,null,null,0.2,null,null,null,2]
[null,null,null,null,null,"Omni Block",{"$f":"IF($F$6<G9,\"\",\"Omni Block\")","v":"Omni Block"},{"$f":"IF($F$6<H9,\"\",\"Omni Block\")","v":""},{"$f":"IF($F$6<I9,\"\",\"Omni Block\")","v":""},{"$f":"IF($F$6<J9,\"\",\"Omni Block\")","v":""},null,{"$f":"IF($F$7<L9,\"\",\"8'' CMU\")","v":"8'' CMU"},{"$f":"IF($F$7<M9,\"\",\"8'' CMU\")","v":""},{"$f":"IF($F$8<N9,\"\",\"4'' CMU\")","v":"4'' CMU"},null,null,null,null,null,"","",null,null,4,2.67,null,null,null,null,{"$f":"AD9+$AD$4","v":0.30000000000000004},null,null,null,3]
[null,null,null,null,null,1,{"$f":"IF($F$6<G9,\"\",G9)","v":2},{"$f":"IF($F$6<H9,\"\",H9)","v":""},{"$f":"IF($F$6<I9,\"\",I9)","v":""},{"$f":"IF($F$6<J9,\"\",J9)","v":""},null,{"$f":"IF($F$7<L9,\"\",L9)","v":1},{"$f":"IF($F$7<M9,\"\",M9)","v":""},{"$f":"IF($F$8<N9,\"\",N9)","v":1},null,null,null,null,null,"","",null,null,5,3.33,null,null,null,null,0.4,null,null,null,4]
[null,null,null,null,null,null,null,null,null,null,null,null,null,null,null,null,null,null,null,"","",null,null,6,4,null,null,null,null,0.5,null,null,null,5]
[null,null,null,"Wall Height",null,10,12,null,null,null,null,2,null,{"$f":"IF(F8>0,\"0.33\",\"\")","v":"0.33"},null,null,null,null,null,"","",null,null,7,4.67,null,null,null,null,0.6,null,null,null,6]
[null,null,null,"Top of Wall Bond Beam (Yes / No)",null,"Yes","Yes",null,null,null,null,"Yes",null,{"$f":"IF(F8>0,\"No\",\"\")","v":"No"},null,null,null,null,null,"","",null,null,8,5.33,null,null,null,null,0.7,null,null,null,7]
[null,null,null,"Wall Length",null,100,100,null,null,null,null,216,null,16,null,null,null,null,null,"","",null,null,9,6,null,null,null,null,0.79999999999999993,null,null,null,8]
[null,null,null,"Number of Corners",null,4,2,null,null,null,null,null,null,null,null,null,null,null,null,"","",null,null,10,6.67,null,null,null,null,0.89999999999999991,null,null,null,9]
[null,null,null,"Total Windows and Doors",null,4,5,null,null,null,null,null,null,null,null,null,null,null,null,"","",null,null,11,7.33,null,null,null,null,0.99999999999999989]
[null,null,null,null,null,null,null,null,null,null,{"$f":"IF(K11=\"\",\"\",K13*K15)","v":""},null,null,null,null,null,null,null,null,"","",null,null,12,8,null,null,null,null,1.0999999999999999]
[null,null,null,"Total Wall Square Feet",null,{"$f":"IF(F11=\"\",\"\",F13*F15)","v":1000},{"$f":"IF(G11=\"\",\"\",G13*G15)","v":1200},{"$f":"IF(H11=\"\",\"\",H13*H15)","v":""},{"$f":"IF(I11=\"\",\"\",I13*I15)","v":""},{"$f":"IF(J11=\"\",\"\",J13*J15)","v":""},null,{"$f":"IF(L11=\"\",\"\",L13*L15)","v":432},{"$f":"IF(M11=\"\",\"\",M13*M15)","v":""},{"$f":"IF(N11=\"\",\"\",N13*N15)","v":5.28},null,null,null,null,null,"","",null,null,13,8.67,null,null,null,null,1.2]
[null,null,null,null,null,null,null,null,null,null,null,null,null,null,null,null,null,null,null,"","",null,null,14,9.33,null,null,null,null,1.3]
[null,null,null,"Total Square Feet of Windows and Doors",null,{"$f":"U63","v":197.22669999999999},null,null,null,null,null,null,null,null,null,null,null,null,null,"","",null,null,15,10,null,null,null,null,1.4000000000000001]
[null,null,null,"Vertical Height of Windows and Doors",null,{"$f":"T63","v":47.99},null,null,null,null,null,null,null,null,null,null,null,null,null,"","",null,null,16,10.67,null,null,null,null,1.5000000000000002]
[null,null,null,null,null,null,null,null,null,null,null,null,null,null,null,null,null,null,null,"","",null,null,17,11.33,null,null,null,null,1.6000000000000003]
[null,null,null,"QUANTITY CALCULATIONS",null,null,null,null,null,null,null,null,null,null,null,null,null,null,null,"","",null,null,18,12,null,null,null,null,1.7000000000000004]
[null,null,null,null,null,null,null,null,null,null,null,null,null,null,null,null,null,null,null,"","",null,null,19,12.67,null,null,null,null,1.8000000000000005]
[null,null,null,null,null,{"$f":"F10","v":"Omni Block"},"Omni Block","","","",null,{"$f":"L10","v":"8'' CMU"},"","4'' CMU",null,null,null,null,null,"","",null,null,20,13.33,null,null,null,null,1.9000000000000006]
[null,null,null,"BLOCK",null,1,2,"","","",null,1,"",1,"TOTALS",null,null,null,null,"","",null,null,21,14,null,null,null,null,2.0000000000000004]
[null,null,null,null,"Stretchers",{"$f":"IF(F11=\"\",\"\",IF(F$14=\"Yes\", ROUNDUP((((F13-0.67)*1.5)*(F15*0.75)-(F21/0.89)-(F29)-(F30/2)),0),ROUNDUP(((F13*1.5)*(F15*0.75)-(F21/0.89)-(F29)-(F30/2)),0)))","v":685},{"$f":"IF(G11=\"\",\"\",IF(G$14=\"Yes\", ROUNDUP((((G13-0.67)*1.5)*(G15*0.75)-(G21/0.89)-(G29)-(G30/2)),0),ROUNDUP(((G13*1.5)*(G15*0.75)-(G21/0.89)-(G29)-(G30/2)),0)))","v":1059},{"$f":"IF(H11=\"\",\"\",IF(H$14=\"Yes\", ROUNDUP((((H13-0.67)*1.5)*(H15*0.75)-(H21/0.89)-(H29)-(H30/2)),0),ROUNDUP(((H13*1.5)*(H15*0.75)-(H21/0.89)-(H29)-(H30/2)),0)))","v":""},{"$f":"IF(I11=\"\",\"\",IF(I$14=\"Yes\", ROUNDUP((((I13-0.67)*1.5)*(I15*0.75)-(I21/0.89)-(I29)-(I30/2)),0),ROUNDUP(((I13*1.5)*(I15*0.75)-(I21/0.89)-(I29)-(I30/2)),0)))","v":""},{"$f":"IF(J11=\"\",\"\",IF(J$14=\"Yes\", ROUNDUP((((J13-0.67)*1.5)*(J15*0.75)-(J21/0.89)-(J29)-(J30/2)),0),ROUNDUP(((J13*1.5)*(J15*0.75)-(J21/0.89)-(J29)-(J30/2)),0)))","v":""},null,null,null,null,{"$f":"SUM(F28:N28)","v":1744},null,null,null,null,"","",null,null,22,14.67,null,null,null,null,2.1000000000000005]
[null,null,null,null,"Corners",{"$f":"IF(F11=\"\",\"\",ROUNDUP(((F16+F17*2)*(F13*1.5))-F30,0))","v":108},{"$f":"IF(G11=\"\",\"\",ROUNDUP(((G16+G17*2)*(G13*1.5))-G30,0))","v":216},{"$f":"IF(H11=\"\",\"\",ROUNDUP(((H16+H17*2)*(H13*1.5))-H30,0))","v":""},{"$f":"IF(I11=\"\",\"\",ROUNDUP(((I16+I17*2)*(I13*1.5))-I30,0))","v":""},{"$f":"IF(J11=\"\",\"\",ROUNDUP(((J16+J17*2)*(J13*1.5))-J30,0))","v":""},null,null,null,null,324,null,null,null,null,"","",null,null,23,15.33,null,null,null,null,2.2000000000000006]
[null,null,null,null,"8 x 8 x 8 Halfs",{"$f":"IF(F11=\"\",\"\",ROUNDUP((F22*1.5),0))","v":72},null,null,null,null,null,null,null,null,72,null,null,null,null,{"$f":"IF(Q30=\"\",\"\",Q30*S30)","v":""},{"$f":"IF(Q30=\"\",\"\",Q30*(R30*S30))","v":""},null,null,24,16,null,null,null,null,2.3000000000000007]
[null,null,null,null,"8 x 8 x 16 Bond Beam CMU",{"$f":"IF(F11=\"\",\"\",IF(F14=\"Yes\",ROUNDUP(F15*0.75,0),\"\"))","v":75},{"$f":"IF(G11=\"\",\"\",IF(G14=\"Yes\",ROUNDUP(G15*0.75,0),\"\"))","v":75},{"$f":"IF(H11=\"\",\"\",IF(H14=\"Yes\",ROUNDUP(H15*0.75,0),\"\"))","v":""},{"$f":"IF(I11=\"\",\"\",IF(I14=\"Yes\",ROUNDUP(I15*0.75,0),\"\"))","v":""},{"$f":"IF(J11=\"\",\"\",IF(J14=\"Yes\",ROUNDUP(J15*0.75,0),\"\"))","v":""},null,{"$f":"IF(L11=\"\",\"\",IF(L14=\"Yes\",L15*0.75,\"\"))","v":162},{"$f":"IF(M11=\"\",\"\",IF(M14=\"Yes\",M15*0.75,\"\"))","v":""},null,312,null,null,null,null,"","",null,null,25,16.670000000000002,null,null,null,null,2.4000000000000008]
[null,null,null,null,"8 x 8 x 16 CMU",null,null,null,null,null,null,{"$f":"IF(L$11=\"\",\"\",IF(L$14=\"Yes\", ROUNDUP((((L$13-0.67)*1.5)*(L$15*0.75)),0),ROUNDUP(((L$13*1.5)*(L$15*0.75)),0)))","v":324},{"$f":"IF(M$11=\"\",\"\",IF(M$14=\"Yes\", ROUNDUP((((M$13-0.67)*1.5)*(M$15*0.75)),0),ROUNDUP(((M$13*1.5)*(M$15*0.75)),0)))","v":""},null,324,null,null,null,null,{"$f":"IF(Q32=\"\",\"\",Q32*S32)","v":""},{"$f":"IF(Q32=\"\",\"\",Q32*(R32*S32))","v":""},null,null,27,18,null,null,null,null,2.5000000000000009]
[null,null,null,null,"8 x 4 x 16 CMU",null,null,null,null,null,null,null,null,{"$f":"IF(N$11=\"\",\"\",IF(N$14=\"Yes\", ROUNDUP((((N$13-0.67)*3)*(N$15*0.75)),0),ROUNDUP(((N$13*3)*(N$15*0.75)),0)))","v":12},12,null,null,null,null,{"$f":"IF(Q33=\"\",\"\",Q33*S33)","v":""},{"$f":"IF(Q33=\"\",\"\",Q33*(R33*S33))","v":""},null,null,28,18.670000000000002,null,null,null,null,2.600000000000001]
[null,null,null,null,null,null,null,null,null,null,null,null,null,null,null,null,null,null,null,{"$f":"IF(Q34=\"\",\"\",Q34*S34)","v":""},{"$f":"IF(Q34=\"\",\"\",Q34*(R34*S34))","v":""},null,null,29,19.329999999999998,null,null,null,null,2.7000000000000011]
[null,null,null,"INSERTS",null,null,null,null,null,null,null,null,null,null,null,null,null,null,null,"","",null,null,30,20,null,null,null,null,2.8000000000000012]
[null,null,null,null,"Short Inserts",{"$f":"IF(F37=\"\",\"\",ROUNDUP((F37*1.3),0))","v":961},1518,"","","","",null,null,null,{"$f":"SUM(F36:N36)","v":2479},null,null,null,null,"","",null,null,31,20.67,null,null,null,null,2.9000000000000012]
[null,null,null,null,"Long Inserts",{"$f":"IF(F11=\"\",\"\",ROUNDUP((F28+(F29/2)),0))","v":739},1167,"","","","",null,null,null,{"$f":"SUM(F37:N37)","v":1906},null,null,null,null,"","",null,null,32,21.33,null,null,null,null,3.0000000000000013]
[null,null,null,null,null,null,null,null,null,null,null,null,null,null,null,null,null,null,null,"","",null,null,33,22,null,null,null,null,3.1000000000000014]
[null,null,null,"WHOLESALE COST",null,null,null,null,null,null,null,null,null,null,null,null,null,null,null,{"$f":"IF(Q39=\"\",\"\",Q39*S39)","v":""},{"$f":"IF(Q39=\"\",\"\",Q39*(R39*S39))","v":""},null,null,34,22.67,null,null,null,null,3.2000000000000015]
[null,null,null,null,null,null,null,null,null,null,null,null,null,null,null,null,null,null,null,"","",null,null,35,23.33,null,null,null,null,3.3000000000000016]
["Item","Price",null,null,null,"Required Pallets","Extra Block","+/- Pallets","Total Extra","Total Pallets",null,"Quantity","Price","Total Cost",null,null,null,null,null,{"$f":"IF(Q41=\"\",\"\",Q41*S41)","v":""},{"$f":"IF(Q41=\"\",\"\",Q41*(R41*S41))","v":""},null,null,36,24,null,null,null,null,3.4000000000000017]
[null,null,null,"OMNI BLOCK:",null,null,null,null,null,null,null,null,null,null,null,null,null,null,null,"","",null,null,null,null,null,null,null,null,3.5000000000000018]
["Stretchers",1.8,null,null,"Stretchers",{"$f":"IF(O28=0,\"\",ROUNDUP(O28/90,0))","v":20},{"$f":"IF(F43=\"\",\"\",F43*90-O28)","v":56},1,{"$f":"IF(F43=\"\",\"\",SUM(F43,H43)*90-O28)","v":146},{"$f":"IF(F43=\"\",\"\",SUM(F43,H43))","v":21},null,{"$f":"IF(F43=\"\",\"\",J43*90)","v":1890},{"$f":"IF(F43=\"\",\"\",B43)","v":1.8},{"$f":"IF(F43=\"\",\"\",M43*L43)","v":3402},null,null,null,null,null,"","",null,null,null,null,null,null,null,null,3.6000000000000019]
["Corners",1.95,null,null,"Corners",{"$f":"IF(O29=0,\"\",ROUNDUP(O29/90,0))","v":4},{"$f":"IF(F44=\"\",\"\",F44*90-O29)","v":36},0,{"$f":"IF(F44=\"\",\"\",SUM(F44,H44)*90-O29)","v":36},{"$f":"IF(F44=\"\",\"\",SUM(F44,H44))","v":4},null,{"$f":"IF(F44=\"\",\"\",J44*90)","v":360},{"$f":"IF(F44=\"\",\"\",B44)","v":1.95},{"$f":"IF(F44=\"\",\"\",M44*L44)","v":702},null,null,null,null,null,"","",null,null,null,null,null,null,null,null,3.700000000000002]
[null,null,null,null,"        Total Omni Block",null,null,null,null,null,null,null,null,{"$f":"IF(SUM(N43:O44)>0,SUM(N43:O44),0)","v":4104},null,null,null,null,null,"","",null,null,null,null,null,null,null,null,3.800000000000002]
[null,null,null,null,null,null,null,null,null,null,null,null,null,null,null,null,null,null,null,"","",null,null,null,null,null,null,null,null,3.9000000000000021]
[null,null,null,"OTHER CMU BLOCK:",null,null,null,null,null,null,null,null,null,null,null,null,null,null,null,"","",null,null,null,null,null,null,null,null,4.0000000000000018]
["8 x 8 x 8 Halfs",1.4,null,null,"8 x 8 x 8 Halfs",{"$f":"IF(O30=0,\"\",ROUNDUP(O30/180,0))","v":1},{"$f":"IF(F48=\"\",\"\",F48*180 - O30)","v":108},-0.5,{"$f":"IF(F48=\"\",\"\",(F48+H48)*180 - O30)","v":18},{"$f":"IF(F48=\"\",\"\",SUM(F48,H48))","v":0.5},null,{"$f":"IF(F48=\"\",\"\",(F48*180)+(H48*180))","v":90},{"$f":"IF(F48=\"\",\"\",$B48)","v":1.4},{"$f":"IF(F48=\"\",\"\",M48*L48)","v":125.99999999999999},null,null,null,null,null,"","",null,null,null,null,null,null,null,null,4.1000000000000014]
["8 x 8 x 16 CMU",1.6,null,null,"8 x 8 x 16 Bond Beam CMU",{"$f":"IF(O31=0,\"\",ROUNDUP(O31/90,0))","v":4},{"$f":"IF(F49=\"\",\"\",F49*90 - O31)","v":48},-0.4,{"$f":"IF(F49=\"\",\"\",(F49+H49)*90 - O31)","v":12},{"$f":"IF(F49=\"\",\"\",SUM(F49,H49))","v":3.6},null,{"$f":"IF(F49=\"\",\"\",(F49*90)+(H49*90))","v":324},{"$f":"IF(F49=\"\",\"\",$B49)","v":1.6},{"$f":"IF(F49=\"\",\"\",M49*L49)","v":518.4},null,null,null,null,null,"","",null,null,null,null,null,null,null,null,4.2000000000000011]
["8 x 8 x 16 Bond Beam CMU",1.6,null,null,"8 x 8 x 16 CMU",{"$f":"IF(O32=0,\"\",ROUNDUP(O32/90,0))","v":4},{"$f":"IF(F50=\"\",\"\",F50*90 - O32)","v":36},0,{"$f":"IF(F50=\"\",\"\",(F50+H50)*90 - O32)","v":36},{"$f":"IF(F50=\"\",\"\",SUM(F50,H50))","v":4},null,{"$f":"IF(F50=\"\",\"\",(F50*90)+(H50*90))","v":360},{"$f":"IF(F50=\"\",\"\",$B50)","v":1.6},{"$f":"IF(F50=\"\",\"\",M50*L50)","v":576},null,null,null,null,null,"","",null,null,null,null,null,null,null,null,4.3000000000000007]
["8 x 4 x 16 CMU",1.55,null,null,"8 x 4 x 16 CMU",{"$f":"IF(O33=0,\"\",ROUNDUP(O33/180,0))","v":1},{"$f":"IF(F51=\"\",\"\",F51*180 - O33)","v":168},-0.9,{"$f":"IF(F51=\"\",\"\",(F51+H51)*180 - O33)","v":5.9999999999999964},{"$f":"IF(F51=\"\",\"\",SUM(F51,H51))","v":9.9999999999999978E-2},null,{"$f":"IF(F51=\"\",\"\",(F51*180)+(H51*180))","v":18},{"$f":"IF(F51=\"\",\"\",$B51)","v":1.55},{"$f":"IF(F51=\"\",\"\",M51*L51)","v":27.900000000000002},null,null,null,null,null,"","",null,null,null,null,null,null,null,null,4.4000000000000004]
[null,null,null,null,"        Total Other CMU Block",null,null,null,null,null,null,null,null,{"$f":"IF(SUM(N48:O50)>0,SUM(N48:O50),0)","v":1220.4000000000001},null,null,null,null,null,"","",null,null,null,null,null,null,null,null,4.5]
[null,null,null,null,null,null,null,null,null,null,null,null,null,null,null,null,null,null,null,"","",null,null,null,null,null,null,null,null,4.5999999999999996]
[null,null,null,"TOTAL BLOCK",null,null,null,null,null,null,null,null,null,{"$f":"SUM(N52,N45)","v":5324.4},null,null,null,null,null,"","",null,null,null,null,null,null,null,null,4.6999999999999993]
[null,null,null,null,null,null,null,null,null,null,null,null,null,null,null,null,null,null,null,{"$f":"IF(Q55=\"\",\"\",Q55*S55)","v":""},{"$f":"IF(Q55=\"\",\"\",Q55*(R55*S55))","v":""},null,null,null,null,null,null,null,null,4.7999999999999989]
[null,null,null,null,null,"Required Bags","Extra Foam","+ Bags","Total Extra","Total Bags",null,"Quantity","Price",null,null,null,null,null,null,"","",null,null,null,null,null,null,null,null,4.8999999999999986]
[null,null,null,"INSERTS:",null,null,null,null,null,null,null,null,null,null,null,null,null,null,null,"","",null,null,null,null,null,null,null,null,4.9999999999999982]
["Short Inserts",0.96,null,null,"Short Inserts",{"$f":"ROUNDUP(O36/100,0)","v":25},{"$f":"ROUNDDOWN(($F58*100) - $O$36,0)","v":21},1,{"$f":"SUM(F58,H58)*100 - $O$36","v":121},{"$f":"SUM(F58,H58)","v":26},null,{"$f":"J58*100","v":2600},{"$f":"B58","v":0.96},{"$f":"IF(M58*L58=0,\"\",M58*L58)","v":2496},null,null,null,null,null,"",""]
["Long Inserts",1.06,null,null,"Long Inserts",{"$f":"ROUNDUP(O37/100,0)","v":20},{"$f":"ROUNDDOWN(($F59*100) - $O$37,0)","v":94},0,{"$f":"SUM(F59,H59)*100 - $O$37","v":94},{"$f":"SUM(F59,H59)","v":20},null,{"$f":"J59*100","v":2000},{"$f":"B59","v":1.06},{"$f":"IF(M59*L59=0,\"\",M59*L59)","v":2120},null,null,null,null,null,"",""]
[null,null,null,null,null,null,null,null,null,null,null,null,null,null,null,null,null,null,null,"",""]
[null,null,null,"TOTAL INSERTS",null,null,null,null,null,null,null,null,null,{"$f":"SUM(N58:O59)","v":4616},null,null,null,null,null,"",""]
[null,null,null,null,null,null,null,null,null,null,null,null,null,null,null,null,"TOTALS"]
[null,null,null,"TOTAL BLOCK AND INSERTS",null,null,null,null,null,null,null,null,null,{"$f":"SUM(N61,N54)","v":9940.4},null,null,{"$f":"SUM(Q7:Q61)","v":9},"-","-",{"$f":"SUM(T7:T61)","v":47.99},{"$f":"SUM(U7:U61)","v":197.22669999999999}]
[]
[null,null,null,"FREIGHT:  (estimated)",null,null,null,null,null,null,null,"Shipments","Price",null,null,null,"QUICK ESTIMATE"]
["Block Freight",400,null,null,"Block Freight",null,null,null,null,null,null,3,{"$f":"B66","v":400},{"$f":"IF(M66*L66=0,\"\",M66*L66)","v":1200}]
["Foam Insert Freight",600,null,null,"Foam Insert Freight",null,null,null,null,null,null,1,{"$f":"B67","v":600},{"$f":"IF(M67*L67=0,\"\",M67*L67)","v":600},null,null,"Wall Height",null,null,null,11.33]
[null,null,null,null,null,null,null,null,null,null,null,null,null,null,null,null,"Lineal Feet",null,null,null,200]
[null,null,null,"TOTAL FREIGHT",null,null,null,null,null,null,null,null,null,{"$f":"IF(SUM(N66:O68)>0,SUM(N66:O68),0)","v":1800},null,null,"Total Square Feet",null,null,null,{"$f":"U67*U68","v":2266}]
[]
["Pallet Charge",15,null,null,"Pallet Charges",null,null,null,null,null,null,{"$f":"ROUNDUP(SUM(J43:J52),0)","v":34},{"$f":"B71","v":15},{"$f":"IF(M71*L71=0,\"\",M71*L71)","v":510},null,null,"Price per Sq. Ft.",null,null,null,3.75,null,null,null,null,null,{"$f":"ROUNDUP(SUM(Y45:Y52),0)","v":0},{"$f":"Q65","v":"QUICK ESTIMATE"},null,{"$f":"IF(AB71*AA71=0,\"\",AB71*AA71)","v":{"$error":"#VALUE!"}},"Pallet Charge",15,null,null,"Pallet Charge",null,null,null,null,null,null,{"$f":"ROUNDUP(SUM(AN45:AN52),0)","v":0},{"$f":"AF71","v":15},null,{"$f":"IF(AQ71*AP71=0,\"\",AQ71*AP71)","v":""},"Pallet Charge",15,null,null,"Pallet Charge",null,null,null,null,null,null,{"$f":"ROUNDUP(SUM(BC45:BC52),0)","v":0},{"$f":"AU71","v":15},null,{"$f":"IF(BF71*BE71=0,\"\",BF71*BE71)","v":""},"Pallet Charge",15,null,null,"Pallet Charge",null,null,null,null,null,null,{"$f":"ROUNDUP(SUM(BR45:BR52),0)","v":0},{"$f":"BJ71","v":15},null,{"$f":"IF(BU71*BT71=0,\"\",BU71*BT71)","v":""},"Pallet Charge",15,null,null,"Pallet Charge",null,null,null,null,null,null,{"$f":"ROUNDUP(SUM(CG45:CG52),0)","v":0},{"$f":"BY71","v":15},null,{"$f":"IF(CJ71*CI71=0,\"\",CJ71*CI71)","v":""},"Pallet Charge",15,null,null,"Pallet Charge",null,null,null,null,null,null,{"$f":"ROUNDUP(SUM(CV45:CV52),0)","v":0},{"$f":"CN71","v":15},null,{"$f":"IF(CY71*CX71=0,\"\",CY71*CX71)","v":""},"Pallet Charge",15,null,null,"Pallet Charge",null,null,null,null,null,null,{"$f":"ROUNDUP(SUM(DK45:DK52),0)","v":0},{"$f":"DC71","v":15},null,{"$f":"IF(DN71*DM71=0,\"\",DN71*DM71)","v":""},"Pallet Charge",15,null,null,"Pallet Charge",null,null,null,null,null,null,{"$f":"ROUNDUP(SUM(DZ45:DZ52),0)","v":0},{"$f":"DR71","v":15},null,{"$f":"IF(EC71*EB71=0,\"\",EC71*EB71)","v":""},"Pallet Charge",15,null,null,"Pallet Charge",null,null,null,null,null,null,{"$f":"ROUNDUP(SUM(EO45:EO52),0)","v":0},{"$f":"EG71","v":15},null,{"$f":"IF(ER71*EQ71=0,\"\",ER71*EQ71)","v":""},"Pallet Charge",15,null,null,"Pallet Charge",null,null,null,null,null,null,{"$f":"ROUNDUP(SUM(FD45:FD52),0)","v":0},{"$f":"EV71","v":15},null,{"$f":"IF(FG71*FF71=0,\"\",FG71*FF71)","v":""},"Pallet Charge",15,null,null,"Pallet Charge",null,null,null,null,null,null,{"$f":"ROUNDUP(SUM(FS45:FS52),0)","v":0},{"$f":"FK71","v":15},null,{"$f":"IF(FV71*FU71=0,\"\",FV71*FU71)","v":""},"Pallet Charge",15,null,null,"Pallet Charge",null,null,null,null,null,null,{"$f":"ROUNDUP(SUM(GH45:GH52),0)","v":0},{"$f":"FZ71","v":15},null,{"$f":"IF(GK71*GJ71=0,\"\",GK71*GJ71)","v":""},"Pallet Charge",15,null,null,"Pallet Charge",null,null,null,null,null,null,{"$f":"ROUNDUP(SUM(GW45:GW52),0)","v":0},{"$f":"GO71","v":15},null,{"$f":"IF(GZ71*GY71=0,\"\",GZ71*GY71)","v":""},"Pallet Charge",15,null,null,"Pallet Charge",null,null,null,null,null,null,{"$f":"ROUNDUP(SUM(HL45:HL52),0)","v":0},{"$f":"HD71","v":15},null,{"$f":"IF(HO71*HN71=0,\"\",HO71*HN71)","v":""},"Pallet Charge",15,null,null,"Pallet Charge",null,null,null,null,null,null,{"$f":"ROUNDUP(SUM(IA45:IA52),0)","v":0},{"$f":"HS71","v":15},null,{"$f":"IF(ID71*IC71=0,\"\",ID71*IC71)","v":""},"Pallet Charge",15,null,null,"Pallet Charge",null,null,null,null,null,null,{"$f":"ROUNDUP(SUM(IP45:IP52),0)","v":0},{"$f":"IH71","v":15},null,{"$f":"IF(IS71*IR71=0,\"\",IS71*IR71)","v":""},"Pallet Charge",15,null,null,"Pallet Charge",null,null,null,null,null,null,{"$f":"ROUNDUP(SUM(JE45:JE52),0)","v":0},{"$f":"IW71","v":15},null,{"$f":"IF(JH71*JG71=0,\"\",JH71*JG71)","v":""},"Pallet Charge",15,null,null,"Pallet Charge",null,null,null,null,null,null,{"$f":"ROUNDUP(SUM(JT45:JT52),0)","v":0},{"$f":"JL71","v":15},null,{"$f":"IF(JW71*JV71=0,\"\",JW71*JV71)","v":""},"Pallet Charge",15,null,null,"Pallet Charge",null,null,null,null,null,null,{"$f":"ROUNDUP(SUM(KI45:KI52),0)","v":0},{"$f":"KA71","v":15},null,{"$f":"IF(KL71*KK71=0,\"\",KL71*KK71)","v":""},"Pallet Charge",15,null,null,"Pallet Charge",null,null,null,null,null,null,{"$f":"ROUNDUP(SUM(KX45:KX52),0)","v":0},{"$f":"KP71","v":15},null,{"$f":"IF(LA71*KZ71=0,\"\",LA71*KZ71)","v":""},"Pallet Charge",15,null,null,"Pallet Charge",null,null,null,null,null,null,{"$f":"ROUNDUP(SUM(LM45:LM52),0)","v":0},{"$f":"LE71","v":15},null,{"$f":"IF(LP71*LO71=0,\"\",LP71*LO71)","v":""},"Pallet Charge",15,null,null,"Pallet Charge",null,null,null,null,null,null,{"$f":"ROUNDUP(SUM(MB45:MB52),0)","v":0},{"$f":"LT71","v":15},null,{"$f":"IF(ME71*MD71=0,\"\",ME71*MD71)","v":""},"Pallet Charge",15,null,null,"Pallet Charge",null,null,null,null,null,null,{"$f":"ROUNDUP(SUM(MQ45:MQ52),0)","v":0},{"$f":"MI71","v":15},null,{"$f":"IF(MT71*MS71=0,\"\",MT71*MS71)","v":""},"Pallet Charge",15,null,null,"Pallet Charge",null,null,null,null,null,null,{"$f":"ROUNDUP(SUM(NF45:NF52),0)","v":0},{"$f":"MX71","v":15},null,{"$f":"IF(NI71*NH71=0,\"\",NI71*NH71)","v":""},"Pallet Charge",15,null,null,"Pallet Charge",null,null,null,null,null,null,{"$f":"ROUNDUP(SUM(NU45:NU52),0)","v":0},{"$f":"NM71","v":15},null,{"$f":"IF(NX71*NW71=0,\"\",NX71*NW71)","v":""},"Pallet Charge",15,null,null,"Pallet Charge",null,null,null,null,null,null,{"$f":"ROUNDUP(SUM(OJ45:OJ52),0)","v":0},{"$f":"OB71","v":15},null,{"$f":"IF(OM71*OL71=0,\"\",OM71*OL71)","v":""},"Pallet Charge",15,null,null,"Pallet Charge",null,null,null,null,null,null,{"$f":"ROUNDUP(SUM(OY45:OY52),0)","v":0},{"$f":"OQ71","v":15},null,{"$f":"IF(PB71*PA71=0,\"\",PB71*PA71)","v":""},"Pallet Charge",15,null,null,"Pallet Charge",null,null,null,null,null,null,{"$f":"ROUNDUP(SUM(PN45:PN52),0)","v":0},{"$f":"PF71","v":15},null,{"$f":"IF(PQ71*PP71=0,\"\",PQ71*PP71)","v":""},"Pallet Charge",15,null,null,"Pallet Charge",null,null,null,null,null,null,{"$f":"ROUNDUP(SUM(QC45:QC52),0)","v":0},{"$f":"PU71","v":15},null,{"$f":"IF(QF71*QE71=0,\"\",QF71*QE71)","v":""},"Pallet Charge",15,null,null,"Pallet Charge",null,null,null,null,null,null,{"$f":"ROUNDUP(SUM(QR45:QR52),0)","v":0},{"$f":"QJ71","v":15},null,{"$f":"IF(QU71*QT71=0,\"\",QU71*QT71)","v":""},"Pallet Charge",15,null,null,"Pallet Charge",null,null,null,null,null,null,{"$f":"ROUNDUP(SUM(RG45:RG52),0)","v":0},{"$f":"QY71","v":15},null,{"$f":"IF(RJ71*RI71=0,\"\",RJ71*RI71)","v":""},"Pallet Charge",15,null,null,"Pallet Charge",null,null,null,null,null,null,{"$f":"ROUNDUP(SUM(RV45:RV52),0)","v":0},{"$f":"RN71","v":15},null,{"$f":"IF(RY71*RX71=0,\"\",RY71*RX71)","v":""},"Pallet Charge",15,null,null,"Pallet Charge",null,null,null,null,null,null,{"$f":"ROUNDUP(SUM(SK45:SK52),0)","v":0},{"$f":"SC71","v":15},null,{"$f":"IF(SN71*SM71=0,\"\",SN71*SM71)","v":""},"Pallet Charge",15,null,null,"Pallet Charge",null,null,null,null,null,null,{"$f":"ROUNDUP(SUM(SZ45:SZ52),0)","v":0},{"$f":"SR71","v":15},null,{"$f":"IF(TC71*TB71=0,\"\",TC71*TB71)","v":""},"Pallet Charge",15,null,null,"Pallet Charge",null,null,null,null,null,null,{"$f":"ROUNDUP(SUM(TO45:TO52),0)","v":0},{"$f":"TG71","v":15},null,{"$f":"IF(TR71*TQ71=0,\"\",TR71*TQ71)","v":""},"Pallet Charge",15,null,null,"Pallet Charge",null,null,null,null,null,null,{"$f":"ROUNDUP(SUM(UD45:UD52),0)","v":0},{"$f":"TV71","v":15},null,{"$f":"IF(UG71*UF71=0,\"\",UG71*UF71)","v":""},"Pallet Charge",15,null,null,"Pallet Charge",null,null,null,null,null,null,{"$f":"ROUNDUP(SUM(US45:US52),0)","v":0},{"$f":"UK71","v":15},null,{"$f":"IF(UV71*UU71=0,\"\",UV71*UU71)","v":""},"Pallet Charge",15,null,null,"Pallet Charge",null,null,null,null,null,null,{"$f":"ROUNDUP(SUM(VH45:VH52),0)","v":0},{"$f":"UZ71","v":15},null,{"$f":"IF(VK71*VJ71=0,\"\",VK71*VJ71)","v":""},"Pallet Charge",15,null,null,"Pallet Charge",null,null,null,null,null,null,{"$f":"ROUNDUP(SUM(VW45:VW52),0)","v":0},{"$f":"VO71","v":15},null,{"$f":"IF(VZ71*VY71=0,\"\",VZ71*VY71)","v":""},"Pallet Charge",15,null,null,"Pallet Charge",null,null,null,null,null,null,{"$f":"ROUNDUP(SUM(WL45:WL52),0)","v":0},{"$f":"WD71","v":15},null,{"$f":"IF(WO71*WN71=0,\"\",WO71*WN71)","v":""},"Pallet Charge",15,null,null,"Pallet Charge",null,null,null,null,null,null,{"$f":"ROUNDUP(SUM(XA45:XA52),0)","v":0},{"$f":"WS71","v":15},null,{"$f":"IF(XD71*XC71=0,\"\",XD71*XC71)","v":""},"Pallet Charge",15,null,null,"Pallet Charge",null,null,null,null,null,null,{"$f":"ROUNDUP(SUM(XP45:XP52),0)","v":0},{"$f":"XH71","v":15},null,{"$f":"IF(XS71*XR71=0,\"\",XS71*XR71)","v":""},"Pallet Charge",15,null,null,"Pallet Charge",null,null,null,null,null,null,{"$f":"ROUNDUP(SUM(YE45:YE52),0)","v":0},{"$f":"XW71","v":15},null,{"$f":"IF(YH71*YG71=0,\"\",YH71*YG71)","v":""},"Pallet Charge",15,null,null,"Pallet Charge",null,null,null,null,null,null,{"$f":"ROUNDUP(SUM(YT45:YT52),0)","v":0},{"$f":"YL71","v":15},null,{"$f":"IF(YW71*YV71=0,\"\",YW71*YV71)","v":""},"Pallet Charge",15,null,null,"Pallet Charge",null,null,null,null,null,null,{"$f":"ROUNDUP(SUM(ZI45:ZI52),0)","v":0},{"$f":"ZA71","v":15},null,{"$f":"IF(ZL71*ZK71=0,\"\",ZL71*ZK71)","v":""},"Pallet Charge",15,null,null,"Pallet Charge",null,null,null,null,null,null,{"$f":"ROUNDUP(SUM(ZX45:ZX52),0)","v":0},{"$f":"ZP71","v":15},null,{"$f":"IF(AAA71*ZZ71=0,\"\",AAA71*ZZ71)","v":""},"Pallet Charge",15,null,null,"Pallet Charge",null,null,null,null,null,null,{"$f":"ROUNDUP(SUM(AAM45:AAM52),0)","v":0},{"$f":"AAE71","v":15},null,{"$f":"IF(AAP71*AAO71=0,\"\",AAP71*AAO71)","v":""},"Pallet Charge",15,null,null,"Pallet Charge",null,null,null,null,null,null,{"$f":"ROUNDUP(SUM(ABB45:ABB52),0)","v":0},{"$f":"AAT71","v":15},null,{"$f":"IF(ABE71*ABD71=0,\"\",ABE71*ABD71)","v":""},"Pallet Charge",15,null,null,"Pallet Charge",null,null,null,null,null,null,{"$f":"ROUNDUP(SUM(ABQ45:ABQ52),0)","v":0},{"$f":"ABI71","v":15},null,{"$f":"IF(ABT71*ABS71=0,\"\",ABT71*ABS71)","v":""},"Pallet Charge",15,null,null,"Pallet Charge",null,null,null,null,null,null,{"$f":"ROUNDUP(SUM(ACF45:ACF52),0)","v":0},{"$f":"ABX71","v":15},null,{"$f":"IF(ACI71*ACH71=0,\"\",ACI71*ACH71)","v":""},"Pallet Charge",15,null,null,"Pallet Charge",null,null,null,null,null,null,{"$f":"ROUNDUP(SUM(ACU45:ACU52),0)","v":0},{"$f":"ACM71","v":15},null,{"$f":"IF(ACX71*ACW71=0,\"\",ACX71*ACW71)","v":""},"Pallet Charge",15,null,null,"Pallet Charge",null,null,null,null,null,null,{"$f":"ROUNDUP(SUM(ADJ45:ADJ52),0)","v":0},{"$f":"ADB71","v":15},null,{"$f":"IF(ADM71*ADL71=0,\"\",ADM71*ADL71)","v":""},"Pallet Charge",15,null,null,"Pallet Charge",null,null,null,null,null,null,{"$f":"ROUNDUP(SUM(ADY45:ADY52),0)","v":0},{"$f":"ADQ71","v":15},null,{"$f":"IF(AEB71*AEA71=0,\"\",AEB71*AEA71)","v":""},"Pallet Charge",15,null,null,"Pallet Charge",null,null,null,null,null,null,{"$f":"ROUNDUP(SUM(AEN45:AEN52),0)","v":0},{"$f":"AEF71","v":15},null,{"$f":"IF(AEQ71*AEP71=0,\"\",AEQ71*AEP71)","v":""},"Pallet Charge",15,null,null,"Pallet Charge",null,null,null,null,null,null,{"$f":"ROUNDUP(SUM(AFC45:AFC52),0)","v":0},{"$f":"AEU71","v":15},null,{"$f":"IF(AFF71*AFE71=0,\"\",AFF71*AFE71)","v":""},"Pallet Charge",15,null,null,"Pallet Charge",null,null,null,null,null,null,{"$f":"ROUNDUP(SUM(AFR45:AFR52),0)","v":0},{"$f":"AFJ71","v":15},null,{"$f":"IF(AFU71*AFT71=0,\"\",AFU71*AFT71)","v":""},"Pallet Charge",15,null,null,"Pallet Charge",null,null,null,null,null,null,{"$f":"ROUNDUP(SUM(AGG45:AGG52),0)","v":0},{"$f":"AFY71","v":15},null,{"$f":"IF(AGJ71*AGI71=0,\"\",AGJ71*AGI71)","v":""},"Pallet Charge",15,null,null,"Pallet Charge",null,null,null,null,null,null,{"$f":"ROUNDUP(SUM(AGV45:AGV52),0)","v":0},{"$f":"AGN71","v":15},null,{"$f":"IF(AGY71*AGX71=0,\"\",AGY71*AGX71)","v":""},"Pallet Charge",15,null,null,"Pallet Charge",null,null,null,null,null,null,{"$f":"ROUNDUP(SUM(AHK45:AHK52),0)","v":0},{"$f":"AHC71","v":15},null,{"$f":"IF(AHN71*AHM71=0,\"\",AHN71*AHM71)","v":""},"Pallet Charge",15,null,null,"Pallet Charge",null,null,null,null,null,null,{"$f":"ROUNDUP(SUM(AHZ45:AHZ52),0)","v":0},{"$f":"AHR71","v":15},null,{"$f":"IF(AIC71*AIB71=0,\"\",AIC71*AIB71)","v":""},"Pallet Charge",15,null,null,"Pallet Charge",null,null,null,null,null,null,{"$f":"ROUNDUP(SUM(AIO45:AIO52),0)","v":0},{"$f":"AIG71","v":15},null,{"$f":"IF(AIR71*AIQ71=0,\"\",AIR71*AIQ71)","v":""},"Pallet Charge",15,null,null,"Pallet Charge",null,null,null,null,null,null,{"$f":"ROUNDUP(SUM(AJD45:AJD52),0)","v":0},{"$f":"AIV71","v":15},null,{"$f":"IF(AJG71*AJF71=0,\"\",AJG71*AJF71)","v":""},"Pallet Charge",15,null,null,"Pallet Charge",null,null,null,null,null,null,{"$f":"ROUNDUP(SUM(AJS45:AJS52),0)","v":0},{"$f":"AJK71","v":15},null,{"$f":"IF(AJV71*AJU71=0,\"\",AJV71*AJU71)","v":""},"Pallet Charge",15,null,null,"Pallet Charge",null,null,null,null,null,null,{"$f":"ROUNDUP(SUM(AKH45:AKH52),0)","v":0},{"$f":"AJZ71","v":15},null,{"$f":"IF(AKK71*AKJ71=0,\"\",AKK71*AKJ71)","v":""},"Pallet Charge",15,null,null,"Pallet Charge",null,null,null,null,null,null,{"$f":"ROUNDUP(SUM(AKW45:AKW52),0)","v":0},{"$f":"AKO71","v":15},null,{"$f":"IF(AKZ71*AKY71=0,\"\",AKZ71*AKY71)","v":""},"Pallet Charge",15,null,null,"Pallet Charge",null,null,null,null,null,null,{"$f":"ROUNDUP(SUM(ALL45:ALL52),0)","v":0},{"$f":"ALD71","v":15},null,{"$f":"IF(ALO71*ALN71=0,\"\",ALO71*ALN71)","v":""},"Pallet Charge",15,null,null,"Pallet Charge",null,null,null,null,null,null,{"$f":"ROUNDUP(SUM(AMA45:AMA52),0)","v":0},{"$f":"ALS71","v":15},null,{"$f":"IF(AMD71*AMC71=0,\"\",AMD71*AMC71)","v":""},"Pallet Charge",15,null,null,"Pallet Charge",null,null,null,null,null,null,{"$f":"ROUNDUP(SUM(AMP45:AMP52),0)","v":0},{"$f":"AMH71","v":15},null,{"$f":"IF(AMS71*AMR71=0,\"\",AMS71*AMR71)","v":""},"Pallet Charge",15,null,null,"Pallet Charge",null,null,null,null,null,null,{"$f":"ROUNDUP(SUM(ANE45:ANE52),0)","v":0},{"$f":"AMW71","v":15},null,{"$f":"IF(ANH71*ANG71=0,\"\",ANH71*ANG71)","v":""},"Pallet Charge",15,null,null,"Pallet Charge",null,null,null,null,null,null,{"$f":"ROUNDUP(SUM(ANT45:ANT52),0)","v":0},{"$f":"ANL71","v":15},null,{"$f":"IF(ANW71*ANV71=0,\"\",ANW71*ANV71)","v":""},"Pallet Charge",15,null,null,"Pallet Charge",null,null,null,null,null,null,{"$f":"ROUNDUP(SUM(AOI45:AOI52),0)","v":0},{"$f":"AOA71","v":15},null,{"$f":"IF(AOL71*AOK71=0,\"\",AOL71*AOK71)","v":""},"Pallet Charge",15,null,null,"Pallet Charge",null,null,null,null,null,null,{"$f":"ROUNDUP(SUM(AOX45:AOX52),0)","v":0},{"$f":"AOP71","v":15},null,{"$f":"IF(APA71*AOZ71=0,\"\",APA71*AOZ71)","v":""},"Pallet Charge",15,null,null,"Pallet Charge",null,null,null,null,null,null,{"$f":"ROUNDUP(SUM(APM45:APM52),0)","v":0},{"$f":"APE71","v":15},null,{"$f":"IF(APP71*APO71=0,\"\",APP71*APO71)","v":""},"Pallet Charge",15,null,null,"Pallet Charge",null,null,null,null,null,null,{"$f":"ROUNDUP(SUM(AQB45:AQB52),0)","v":0},{"$f":"APT71","v":15},null,{"$f":"IF(AQE71*AQD71=0,\"\",AQE71*AQD71)","v":""},"Pallet Charge",15,null,null,"Pallet Charge",null,null,null,null,null,null,{"$f":"ROUNDUP(SUM(AQQ45:AQQ52),0)","v":0},{"$f":"AQI71","v":15},null,{"$f":"IF(AQT71*AQS71=0,\"\",AQT71*AQS71)","v":""},"Pallet Charge",15,null,null,"Pallet Charge",null,null,null,null,null,null,{"$f":"ROUNDUP(SUM(ARF45:ARF52),0)","v":0},{"$f":"AQX71","v":15},null,{"$f":"IF(ARI71*ARH71=0,\"\",ARI71*ARH71)","v":""},"Pallet Charge",15,null,null,"Pallet Charge",null,null,null,null,null,null,{"$f":"ROUNDUP(SUM(ARU45:ARU52),0)","v":0},{"$f":"ARM71","v":15},null,{"$f":"IF(ARX71*ARW71=0,\"\",ARX71*ARW71)","v":""},"Pallet Charge",15,null,null,"Pallet Charge",null,null,null,null,null,null,{"$f":"ROUNDUP(SUM(ASJ45:ASJ52),0)","v":0},{"$f":"ASB71","v":15},null,{"$f":"IF(ASM71*ASL71=0,\"\",ASM71*ASL71)","v":""},"Pallet Charge",15,null,null,"Pallet Charge",null,null,null,null,null,null,{"$f":"ROUNDUP(SUM(ASY45:ASY52),0)","v":0},{"$f":"ASQ71","v":15},null,{"$f":"IF(ATB71*ATA71=0,\"\",ATB71*ATA71)","v":""},"Pallet Charge",15,null,null,"Pallet Charge",null,null,null,null,null,null,{"$f":"ROUNDUP(SUM(ATN45:ATN52),0)","v":0},{"$f":"ATF71","v":15},null,{"$f":"IF(ATQ71*ATP71=0,\"\",ATQ71*ATP71)","v":""},"Pallet Charge",15,null,null,"Pallet Charge",null,null,null,null,null,null,{"$f":"ROUNDUP(SUM(AUC45:AUC52),0)","v":0},{"$f":"ATU71","v":15},null,{"$f":"IF(AUF71*AUE71=0,\"\",AUF71*AUE71)","v":""},"Pallet Charge",15,null,null,"Pallet Charge",null,null,null,null,null,null,{"$f":"ROUNDUP(SUM(AUR45:AUR52),0)","v":0},{"$f":"AUJ71","v":15},null,{"$f":"IF(AUU71*AUT71=0,\"\",AUU71*AUT71)","v":""},"Pallet Charge",15,null,null,"Pallet Charge",null,null,null,null,null,null,{"$f":"ROUNDUP(SUM(AVG45:AVG52),0)","v":0},{"$f":"AUY71","v":15},null,{"$f":"IF(AVJ71*AVI71=0,\"\",AVJ71*AVI71)","v":""},"Pallet Charge",15,null,null,"Pallet Charge",null,null,null,null,null,null,{"$f":"ROUNDUP(SUM(AVV45:AVV52),0)","v":0},{"$f":"AVN71","v":15},null,{"$f":"IF(AVY71*AVX71=0,\"\",AVY71*AVX71)","v":""},"Pallet Charge",15,null,null,"Pallet Charge",null,null,null,null,null,null,{"$f":"ROUNDUP(SUM(AWK45:AWK52),0)","v":0},{"$f":"AWC71","v":15},null,{"$f":"IF(AWN71*AWM71=0,\"\",AWN71*AWM71)","v":""},"Pallet Charge",15,null,null,"Pallet Charge",null,null,null,null,null,null,{"$f":"ROUNDUP(SUM(AWZ45:AWZ52),0)","v":0},{"$f":"AWR71","v":15},null,{"$f":"IF(AXC71*AXB71=0,\"\",AXC71*AXB71)","v":""},"Pallet Charge",15,null,null,"Pallet Charge",null,null,null,null,null,null,{"$f":"ROUNDUP(SUM(AXO45:AXO52),0)","v":0},{"$f":"AXG71","v":15},null,{"$f":"IF(AXR71*AXQ71=0,\"\",AXR71*AXQ71)","v":""},"Pallet Charge",15,null,null,"Pallet Charge",null,null,null,null,null,null,{"$f":"ROUNDUP(SUM(AYD45:AYD52),0)","v":0},{"$f":"AXV71","v":15},null,{"$f":"IF(AYG71*AYF71=0,\"\",AYG71*AYF71)","v":""},"Pallet Charge",15,null,null,"Pallet Charge",null,null,null,null,null,null,{"$f":"ROUNDUP(SUM(AYS45:AYS52),0)","v":0},{"$f":"AYK71","v":15},null,{"$f":"IF(AYV71*AYU71=0,\"\",AYV71*AYU71)","v":""},"Pallet Charge",15,null,null,"Pallet Charge",null,null,null,null,null,null,{"$f":"ROUNDUP(SUM(AZH45:AZH52),0)","v":0},{"$f":"AYZ71","v":15},null,{"$f":"IF(AZK71*AZJ71=0,\"\",AZK71*AZJ71)","v":""},"Pallet Charge",15,null,null,"Pallet Charge",null,null,null,null,null,null,{"$f":"ROUNDUP(SUM(AZW45:AZW52),0)","v":0},{"$f":"AZO71","v":15},null,{"$f":"IF(AZZ71*AZY71=0,\"\",AZZ71*AZY71)","v":""},"Pallet Charge",15,null,null,"Pallet Charge",null,null,null,null,null,null,{"$f":"ROUNDUP(SUM(BAL45:BAL52),0)","v":0},{"$f":"BAD71","v":15},null,{"$f":"IF(BAO71*BAN71=0,\"\",BAO71*BAN71)","v":""},"Pallet Charge",15,null,null,"Pallet Charge",null,null,null,null,null,null,{"$f":"ROUNDUP(SUM(BBA45:BBA52),0)","v":0},{"$f":"BAS71","v":15},null,{"$f":"IF(BBD71*BBC71=0,\"\",BBD71*BBC71)","v":""},"Pallet Charge",15,null,null,"Pallet Charge",null,null,null,null,null,null,{"$f":"ROUNDUP(SUM(BBP45:BBP52),0)","v":0},{"$f":"BBH71","v":15},null,{"$f":"IF(BBS71*BBR71=0,\"\",BBS71*BBR71)","v":""},"Pallet Charge",15,null,null,"Pallet Charge",null,null,null,null,null,null,{"$f":"ROUNDUP(SUM(BCE45:BCE52),0)","v":0},{"$f":"BBW71","v":15},null,{"$f":"IF(BCH71*BCG71=0,\"\",BCH71*BCG71)","v":""},"Pallet Charge",15,null,null,"Pallet Charge",null,null,null,null,null,null,{"$f":"ROUNDUP(SUM(BCT45:BCT52),0)","v":0},{"$f":"BCL71","v":15},null,{"$f":"IF(BCW71*BCV71=0,\"\",BCW71*BCV71)","v":""},"Pallet Charge",15,null,null,"Pallet Charge",null,null,null,null,null,null,{"$f":"ROUNDUP(SUM(BDI45:BDI52),0)","v":0},{"$f":"BDA71","v":15},null,{"$f":"IF(BDL71*BDK71=0,\"\",BDL71*BDK71)","v":""},"Pallet Charge",15,null,null,"Pallet Charge",null,null,null,null,null,null,{"$f":"ROUNDUP(SUM(BDX45:BDX52),0)","v":0},{"$f":"BDP71","v":15},null,{"$f":"IF(BEA71*BDZ71=0,\"\",BEA71*BDZ71)","v":""},"Pallet Charge",15,null,null,"Pallet Charge",null,null,null,null,null,null,{"$f":"ROUNDUP(SUM(BEM45:BEM52),0)","v":0},{"$f":"BEE71","v":15},null,{"$f":"IF(BEP71*BEO71=0,\"\",BEP71*BEO71)","v":""},"Pallet Charge",15,null,null,"Pallet Charge",null,null,null,null,null,null,{"$f":"ROUNDUP(SUM(BFB45:BFB52),0)","v":0},{"$f":"BET71","v":15},null,{"$f":"IF(BFE71*BFD71=0,\"\",BFE71*BFD71)","v":""},"Pallet Charge",15,null,null,"Pallet Charge",null,null,null,null,null,null,{"$f":"ROUNDUP(SUM(BFQ45:BFQ52),0)","v":0},{"$f":"BFI71","v":15},null,{"$f":"IF(BFT71*BFS71=0,\"\",BFT71*BFS71)","v":""},"Pallet Charge",15,null,null,"Pallet Charge",null,null,null,null,null,null,{"$f":"ROUNDUP(SUM(BGF45:BGF52),0)","v":0},{"$f":"BFX71","v":15},null,{"$f":"IF(BGI71*BGH71=0,\"\",BGI71*BGH71)","v":""},"Pallet Charge",15,null,null,"Pallet Charge",null,null,null,null,null,null,{"$f":"ROUNDUP(SUM(BGU45:BGU52),0)","v":0},{"$f":"BGM71","v":15},null,{"$f":"IF(BGX71*BGW71=0,\"\",BGX71*BGW71)","v":""},"Pallet Charge",15,null,null,"Pallet Charge",null,null,null,null,null,null,{"$f":"ROUNDUP(SUM(BHJ45:BHJ52),0)","v":0},{"$f":"BHB71","v":15},null,{"$f":"IF(BHM71*BHL71=0,\"\",BHM71*BHL71)","v":""},"Pallet Charge",15,null,null,"Pallet Charge",null,null,null,null,null,null,{"$f":"ROUNDUP(SUM(BHY45:BHY52),0)","v":0},{"$f":"BHQ71","v":15},null,{"$f":"IF(BIB71*BIA71=0,\"\",BIB71*BIA71)","v":""},"Pallet Charge",15,null,null,"Pallet Charge",null,null,null,null,null,null,{"$f":"ROUNDUP(SUM(BIN45:BIN52),0)","v":0},{"$f":"BIF71","v":15},null,{"$f":"IF(BIQ71*BIP71=0,\"\",BIQ71*BIP71)","v":""},"Pallet Charge",15,null,null,"Pallet Charge",null,null,null,null,null,null,{"$f":"ROUNDUP(SUM(BJC45:BJC52),0)","v":0},{"$f":"BIU71","v":15},null,{"$f":"IF(BJF71*BJE71=0,\"\",BJF71*BJE71)","v":""},"Pallet Charge",15,null,null,"Pallet Charge",null,null,null,null,null,null,{"$f":"ROUNDUP(SUM(BJR45:BJR52),0)","v":0},{"$f":"BJJ71","v":15},null,{"$f":"IF(BJU71*BJT71=0,\"\",BJU71*BJT71)","v":""},"Pallet Charge",15,null,null,"Pallet Charge",null,null,null,null,null,null,{"$f":"ROUNDUP(SUM(BKG45:BKG52),0)","v":0},{"$f":"BJY71","v":15},null,{"$f":"IF(BKJ71*BKI71=0,\"\",BKJ71*BKI71)","v":""},"Pallet Charge",15,null,null,"Pallet Charge",null,null,null,null,null,null,{"$f":"ROUNDUP(SUM(BKV45:BKV52),0)","v":0},{"$f":"BKN71","v":15},null,{"$f":"IF(BKY71*BKX71=0,\"\",BKY71*BKX71)","v":""},"Pallet Charge",15,null,null,"Pallet Charge",null,null,null,null,null,null,{"$f":"ROUNDUP(SUM(BLK45:BLK52),0)","v":0},{"$f":"BLC71","v":15},null,{"$f":"IF(BLN71*BLM71=0,\"\",BLN71*BLM71)","v":""},"Pallet Charge",15,null,null,"Pallet Charge",null,null,null,null,null,null,{"$f":"ROUNDUP(SUM(BLZ45:BLZ52),0)","v":0},{"$f":"BLR71","v":15},null,{"$f":"IF(BMC71*BMB71=0,\"\",BMC71*BMB71)","v":""},"Pallet Charge",15,null,null,"Pallet Charge",null,null,null,null,null,null,{"$f":"ROUNDUP(SUM(BMO45:BMO52),0)","v":0},{"$f":"BMG71","v":15},null,{"$f":"IF(BMR71*BMQ71=0,\"\",BMR71*BMQ71)","v":""},"Pallet Charge",15,null,null,"Pallet Charge",null,null,null,null,null,null,{"$f":"ROUNDUP(SUM(BND45:BND52),0)","v":0},{"$f":"BMV71","v":15},null,{"$f":"IF(BNG71*BNF71=0,\"\",BNG71*BNF71)","v":""},"Pallet Charge",15,null,null,"Pallet Charge",null,null,null,null,null,null,{"$f":"ROUNDUP(SUM(BNS45:BNS52),0)","v":0},{"$f":"BNK71","v":15},null,{"$f":"IF(BNV71*BNU71=0,\"\",BNV71*BNU71)","v":""},"Pallet Charge",15,null,null,"Pallet Charge",null,null,null,null,null,null,{"$f":"ROUNDUP(SUM(BOH45:BOH52),0)","v":0},{"$f":"BNZ71","v":15},null,{"$f":"IF(BOK71*BOJ71=0,\"\",BOK71*BOJ71)","v":""},"Pallet Charge",15,null,null,"Pallet Charge",null,null,null,null,null,null,{"$f":"ROUNDUP(SUM(BOW45:BOW52),0)","v":0},{"$f":"BOO71","v":15},null,{"$f":"IF(BOZ71*BOY71=0,\"\",BOZ71*BOY71)","v":""},"Pallet Charge",15,null,null,"Pallet Charge",null,null,null,null,null,null,{"$f":"ROUNDUP(SUM(BPL45:BPL52),0)","v":0},{"$f":"BPD71","v":15},null,{"$f":"IF(BPO71*BPN71=0,\"\",BPO71*BPN71)","v":""},"Pallet Charge",15,null,null,"Pallet Charge",null,null,null,null,null,null,{"$f":"ROUNDUP(SUM(BQA45:BQA52),0)","v":0},{"$f":"BPS71","v":15},null,{"$f":"IF(BQD71*BQC71=0,\"\",BQD71*BQC71)","v":""},"Pallet Charge",15,null,null,"Pallet Charge",null,null,null,null,null,null,{"$f":"ROUNDUP(SUM(BQP45:BQP52),0)","v":0},{"$f":"BQH71","v":15},null,{"$f":"IF(BQS71*BQR71=0,\"\",BQS71*BQR71)","v":""},"Pallet Charge",15,null,null,"Pallet Charge",null,null,null,null,null,null,{"$f":"ROUNDUP(SUM(BRE45:BRE52),0)","v":0},{"$f":"BQW71","v":15},null,{"$f":"IF(BRH71*BRG71=0,\"\",BRH71*BRG71)","v":""},"Pallet Charge",15,null,null,"Pallet Charge",null,null,null,null,null,null,{"$f":"ROUNDUP(SUM(BRT45:BRT52),0)","v":0},{"$f":"BRL71","v":15},null,{"$f":"IF(BRW71*BRV71=0,\"\",BRW71*BRV71)","v":""},"Pallet Charge",15,null,null,"Pallet Charge",null,null,null,null,null,null,{"$f":"ROUNDUP(SUM(BSI45:BSI52),0)","v":0},{"$f":"BSA71","v":15},null,{"$f":"IF(BSL71*BSK71=0,\"\",BSL71*BSK71)","v":""},"Pallet Charge",15,null,null,"Pallet Charge",null,null,null,null,null,null,{"$f":"ROUNDUP(SUM(BSX45:BSX52),0)","v":0},{"$f":"BSP71","v":15},null,{"$f":"IF(BTA71*BSZ71=0,\"\",BTA71*BSZ71)","v":""},"Pallet Charge",15,null,null,"Pallet Charge",null,null,null,null,null,null,{"$f":"ROUNDUP(SUM(BTM45:BTM52),0)","v":0},{"$f":"BTE71","v":15},null,{"$f":"IF(BTP71*BTO71=0,\"\",BTP71*BTO71)","v":""},"Pallet Charge",15,null,null,"Pallet Charge",null,null,null,null,null,null,{"$f":"ROUNDUP(SUM(BUB45:BUB52),0)","v":0},{"$f":"BTT71","v":15},null,{"$f":"IF(BUE71*BUD71=0,\"\",BUE71*BUD71)","v":""},"Pallet Charge",15,null,null,"Pallet Charge",null,null,null,null,null,null,{"$f":"ROUNDUP(SUM(BUQ45:BUQ52),0)","v":0},{"$f":"BUI71","v":15},null,{"$f":"IF(BUT71*BUS71=0,\"\",BUT71*BUS71)","v":""},"Pallet Charge",15,null,null,"Pallet Charge",null,null,null,null,null,null,{"$f":"ROUNDUP(SUM(BVF45:BVF52),0)","v":0},{"$f":"BUX71","v":15},null,{"$f":"IF(BVI71*BVH71=0,\"\",BVI71*BVH71)","v":""},"Pallet Charge",15,null,null,"Pallet Charge",null,null,null,null,null,null,{"$f":"ROUNDUP(SUM(BVU45:BVU52),0)","v":0},{"$f":"BVM71","v":15},null,{"$f":"IF(BVX71*BVW71=0,\"\",BVX71*BVW71)","v":""},"Pallet Charge",15,null,null,"Pallet Charge",null,null,null,null,null,null,{"$f":"ROUNDUP(SUM(BWJ45:BWJ52),0)","v":0},{"$f":"BWB71","v":15},null,{"$f":"IF(BWM71*BWL71=0,\"\",BWM71*BWL71)","v":""},"Pallet Charge",15,null,null,"Pallet Charge",null,null,null,null,null,null,{"$f":"ROUNDUP(SUM(BWY45:BWY52),0)","v":0},{"$f":"BWQ71","v":15},null,{"$f":"IF(BXB71*BXA71=0,\"\",BXB71*BXA71)","v":""},"Pallet Charge",15,null,null,"Pallet Charge",null,null,null,null,null,null,{"$f":"ROUNDUP(SUM(BXN45:BXN52),0)","v":0},{"$f":"BXF71","v":15},null,{"$f":"IF(BXQ71*BXP71=0,\"\",BXQ71*BXP71)","v":""},"Pallet Charge",15,null,null,"Pallet Charge",null,null,null,null,null,null,{"$f":"ROUNDUP(SUM(BYC45:BYC52),0)","v":0},{"$f":"BXU71","v":15},null,{"$f":"IF(BYF71*BYE71=0,\"\",BYF71*BYE71)","v":""},"Pallet Charge",15,null,null,"Pallet Charge",null,null,null,null,null,null,{"$f":"ROUNDUP(SUM(BYR45:BYR52),0)","v":0},{"$f":"BYJ71","v":15},null,{"$f":"IF(BYU71*BYT71=0,\"\",BYU71*BYT71)","v":""},"Pallet Charge",15,null,null,"Pallet Charge",null,null,null,null,null,null,{"$f":"ROUNDUP(SUM(BZG45:BZG52),0)","v":0},{"$f":"BYY71","v":15},null,{"$f":"IF(BZJ71*BZI71=0,\"\",BZJ71*BZI71)","v":""},"Pallet Charge",15,null,null,"Pallet Charge",null,null,null,null,null,null,{"$f":"ROUNDUP(SUM(BZV45:BZV52),0)","v":0},{"$f":"BZN71","v":15},null,{"$f":"IF(BZY71*BZX71=0,\"\",BZY71*BZX71)","v":""},"Pallet Charge",15,null,null,"Pallet Charge",null,null,null,null,null,null,{"$f":"ROUNDUP(SUM(CAK45:CAK52),0)","v":0},{"$f":"CAC71","v":15},null,{"$f":"IF(CAN71*CAM71=0,\"\",CAN71*CAM71)","v":""},"Pallet Charge",15,null,null,"Pallet Charge",null,null,null,null,null,null,{"$f":"ROUNDUP(SUM(CAZ45:CAZ52),0)","v":0},{"$f":"CAR71","v":15},null,{"$f":"IF(CBC71*CBB71=0,\"\",CBC71*CBB71)","v":""},"Pallet Charge",15,null,null,"Pallet Charge",null,null,null,null,null,null,{"$f":"ROUNDUP(SUM(CBO45:CBO52),0)","v":0},{"$f":"CBG71","v":15},null,{"$f":"IF(CBR71*CBQ71=0,\"\",CBR71*CBQ71)","v":""},"Pallet Charge",15,null,null,"Pallet Charge",null,null,null,null,null,null,{"$f":"ROUNDUP(SUM(CCD45:CCD52),0)","v":0},{"$f":"CBV71","v":15},null,{"$f":"IF(CCG71*CCF71=0,\"\",CCG71*CCF71)","v":""},"Pallet Charge",15,null,null,"Pallet Charge",null,null,null,null,null,null,{"$f":"ROUNDUP(SUM(CCS45:CCS52),0)","v":0},{"$f":"CCK71","v":15},null,{"$f":"IF(CCV71*CCU71=0,\"\",CCV71*CCU71)","v":""},"Pallet Charge",15,null,null,"Pallet Charge",null,null,null,null,null,null,{"$f":"ROUNDUP(SUM(CDH45:CDH52),0)","v":0},{"$f":"CCZ71","v":15},null,{"$f":"IF(CDK71*CDJ71=0,\"\",CDK71*CDJ71)","v":""},"Pallet Charge",15,null,null,"Pallet Charge",null,null,null,null,null,null,{"$f":"ROUNDUP(SUM(CDW45:CDW52),0)","v":0},{"$f":"CDO71","v":15},null,{"$f":"IF(CDZ71*CDY71=0,\"\",CDZ71*CDY71)","v":""},"Pallet Charge",15,null,null,"Pallet Charge",null,null,null,null,null,null,{"$f":"ROUNDUP(SUM(CEL45:CEL52),0)","v":0},{"$f":"CED71","v":15},null,{"$f":"IF(CEO71*CEN71=0,\"\",CEO71*CEN71)","v":""},"Pallet Charge",15,null,null,"Pallet Charge",null,null,null,null,null,null,{"$f":"ROUNDUP(SUM(CFA45:CFA52),0)","v":0},{"$f":"CES71","v":15},null,{"$f":"IF(CFD71*CFC71=0,\"\",CFD71*CFC71)","v":""},"Pallet Charge",15,null,null,"Pallet Charge",null,null,null,null,null,null,{"$f":"ROUNDUP(SUM(CFP45:CFP52),0)","v":0},{"$f":"CFH71","v":15},null,{"$f":"IF(CFS71*CFR71=0,\"\",CFS71*CFR71)","v":""},"Pallet Charge",15,null,null,"Pallet Charge",null,null,null,null,null,null,{"$f":"ROUNDUP(SUM(CGE45:CGE52),0)","v":0},{"$f":"CFW71","v":15},null,{"$f":"IF(CGH71*CGG71=0,\"\",CGH71*CGG71)","v":""},"Pallet Charge",15,null,null,"Pallet Charge",null,null,null,null,null,null,{"$f":"ROUNDUP(SUM(CGT45:CGT52),0)","v":0},{"$f":"CGL71","v":15},null,{"$f":"IF(CGW71*CGV71=0,\"\",CGW71*CGV71)","v":""},"Pallet Charge",15,null,null,"Pallet Charge",null,null,null,null,null,null,{"$f":"ROUNDUP(SUM(CHI45:CHI52),0)","v":0},{"$f":"CHA71","v":15},null,{"$f":"IF(CHL71*CHK71=0,\"\",CHL71*CHK71)","v":""},"Pallet Charge",15,null,null,"Pallet Charge",null,null,null,null,null,null,{"$f":"ROUNDUP(SUM(CHX45:CHX52),0)","v":0},{"$f":"CHP71","v":15},null,{"$f":"IF(CIA71*CHZ71=0,\"\",CIA71*CHZ71)","v":""},"Pallet Charge",15,null,null,"Pallet Charge",null,null,null,null,null,null,{"$f":"ROUNDUP(SUM(CIM45:CIM52),0)","v":0},{"$f":"CIE71","v":15},null,{"$f":"IF(CIP71*CIO71=0,\"\",CIP71*CIO71)","v":""},"Pallet Charge",15,null,null,"Pallet Charge",null,null,null,null,null,null,{"$f":"ROUNDUP(SUM(CJB45:CJB52),0)","v":0},{"$f":"CIT71","v":15},null,{"$f":"IF(CJE71*CJD71=0,\"\",CJE71*CJD71)","v":""},"Pallet Charge",15,null,null,"Pallet Charge",null,null,null,null,null,null,{"$f":"ROUNDUP(SUM(CJQ45:CJQ52),0)","v":0},{"$f":"CJI71","v":15},null,{"$f":"IF(CJT71*CJS71=0,\"\",CJT71*CJS71)","v":""},"Pallet Charge",15,null,null,"Pallet Charge",null,null,null,null,null,null,{"$f":"ROUNDUP(SUM(CKF45:CKF52),0)","v":0},{"$f":"CJX71","v":15},null,{"$f":"IF(CKI71*CKH71=0,\"\",CKI71*CKH71)","v":""},"Pallet Charge",15,null,null,"Pallet Charge",null,null,null,null,null,null,{"$f":"ROUNDUP(SUM(CKU45:CKU52),0)","v":0},{"$f":"CKM71","v":15},null,{"$f":"IF(CKX71*CKW71=0,\"\",CKX71*CKW71)","v":""},"Pallet Charge",15,null,null,"Pallet Charge",null,null,null,null,null,null,{"$f":"ROUNDUP(SUM(CLJ45:CLJ52),0)","v":0},{"$f":"CLB71","v":15},null,{"$f":"IF(CLM71*CLL71=0,\"\",CLM71*CLL71)","v":""},"Pallet Charge",15,null,null,"Pallet Charge",null,null,null,null,null,null,{"$f":"ROUNDUP(SUM(CLY45:CLY52),0)","v":0},{"$f":"CLQ71","v":15},null,{"$f":"IF(CMB71*CMA71=0,\"\",CMB71*CMA71)","v":""},"Pallet Charge",15,null,null,"Pallet Charge",null,null,null,null,null,null,{"$f":"ROUNDUP(SUM(CMN45:CMN52),0)","v":0},{"$f":"CMF71","v":15},null,{"$f":"IF(CMQ71*CMP71=0,\"\",CMQ71*CMP71)","v":""},"Pallet Charge",15,null,null,"Pallet Charge",null,null,null,null,null,null,{"$f":"ROUNDUP(SUM(CNC45:CNC52),0)","v":0},{"$f":"CMU71","v":15},null,{"$f":"IF(CNF71*CNE71=0,\"\",CNF71*CNE71)","v":""},"Pallet Charge",15,null,null,"Pallet Charge",null,null,null,null,null,null,{"$f":"ROUNDUP(SUM(CNR45:CNR52),0)","v":0},{"$f":"CNJ71","v":15},null,{"$f":"IF(CNU71*CNT71=0,\"\",CNU71*CNT71)","v":""},"Pallet Charge",15,null,null,"Pallet Charge",null,null,null,null,null,null,{"$f":"ROUNDUP(SUM(COG45:COG52),0)","v":0},{"$f":"CNY71","v":15},null,{"$f":"IF(COJ71*COI71=0,\"\",COJ71*COI71)","v":""},"Pallet Charge",15,null,null,"Pallet Charge",null,null,null,null,null,null,{"$f":"ROUNDUP(SUM(COV45:COV52),0)","v":0},{"$f":"CON71","v":15},null,{"$f":"IF(COY71*COX71=0,\"\",COY71*COX71)","v":""},"Pallet Charge",15,null,null,"Pallet Charge",null,null,null,null,null,null,{"$f":"ROUNDUP(SUM(CPK45:CPK52),0)","v":0},{"$f":"CPC71","v":15},null,{"$f":"IF(CPN71*CPM71=0,\"\",CPN71*CPM71)","v":""},"Pallet Charge",15,null,null,"Pallet Charge",null,null,null,null,null,null,{"$f":"ROUNDUP(SUM(CPZ45:CPZ52),0)","v":0},{"$f":"CPR71","v":15},null,{"$f":"IF(CQC71*CQB71=0,\"\",CQC71*CQB71)","v":""},"Pallet Charge",15,null,null,"Pallet Charge",null,null,null,null,null,null,{"$f":"ROUNDUP(SUM(CQO45:CQO52),0)","v":0},{"$f":"CQG71","v":15},null,{"$f":"IF(CQR71*CQQ71=0,\"\",CQR71*CQQ71)","v":""},"Pallet Charge",15,null,null,"Pallet Charge",null,null,null,null,null,null,{"$f":"ROUNDUP(SUM(CRD45:CRD52),0)","v":0},{"$f":"CQV71","v":15},null,{"$f":"IF(CRG71*CRF71=0,\"\",CRG71*CRF71)","v":""},"Pallet Charge",15,null,null,"Pallet Charge",null,null,null,null,null,null,{"$f":"ROUNDUP(SUM(CRS45:CRS52),0)","v":0},{"$f":"CRK71","v":15},null,{"$f":"IF(CRV71*CRU71=0,\"\",CRV71*CRU71)","v":""},"Pallet Charge",15,null,null,"Pallet Charge",null,null,null,null,null,null,{"$f":"ROUNDUP(SUM(CSH45:CSH52),0)","v":0},{"$f":"CRZ71","v":15},null,{"$f":"IF(CSK71*CSJ71=0,\"\",CSK71*CSJ71)","v":""},"Pallet Charge",15,null,null,"Pallet Charge",null,null,null,null,null,null,{"$f":"ROUNDUP(SUM(CSW45:CSW52),0)","v":0},{"$f":"CSO71","v":15},null,{"$f":"IF(CSZ71*CSY71=0,\"\",CSZ71*CSY71)","v":""},"Pallet Charge",15,null,null,"Pallet Charge",null,null,null,null,null,null,{"$f":"ROUNDUP(SUM(CTL45:CTL52),0)","v":0},{"$f":"CTD71","v":15},null,{"$f":"IF(CTO71*CTN71=0,\"\",CTO71*CTN71)","v":""},"Pallet Charge",15,null,null,"Pallet Charge",null,null,null,null,null,null,{"$f":"ROUNDUP(SUM(CUA45:CUA52),0)","v":0},{"$f":"CTS71","v":15},null,{"$f":"IF(CUD71*CUC71=0,\"\",CUD71*CUC71)","v":""},"Pallet Charge",15,null,null,"Pallet Charge",null,null,null,null,null,null,{"$f":"ROUNDUP(SUM(CUP45:CUP52),0)","v":0},{"$f":"CUH71","v":15},null,{"$f":"IF(CUS71*CUR71=0,\"\",CUS71*CUR71)","v":""},"Pallet Charge",15,null,null,"Pallet Charge",null,null,null,null,null,null,{"$f":"ROUNDUP(SUM(CVE45:CVE52),0)","v":0},{"$f":"CUW71","v":15},null,{"$f":"IF(CVH71*CVG71=0,\"\",CVH71*CVG71)","v":""},"Pallet Charge",15,null,null,"Pallet Charge",null,null,null,null,null,null,{"$f":"ROUNDUP(SUM(CVT45:CVT52),0)","v":0},{"$f":"CVL71","v":15},null,{"$f":"IF(CVW71*CVV71=0,\"\",CVW71*CVV71)","v":""},"Pallet Charge",15,null,null,"Pallet Charge",null,null,null,null,null,null,{"$f":"ROUNDUP(SUM(CWI45:CWI52),0)","v":0},{"$f":"CWA71","v":15},null,{"$f":"IF(CWL71*CWK71=0,\"\",CWL71*CWK71)","v":""},"Pallet Charge",15,null,null,"Pallet Charge",null,null,null,null,null,null,{"$f":"ROUNDUP(SUM(CWX45:CWX52),0)","v":0},{"$f":"CWP71","v":15},null,{"$f":"IF(CXA71*CWZ71=0,\"\",CXA71*CWZ71)","v":""},"Pallet Charge",15,null,null,"Pallet Charge",null,null,null,null,null,null,{"$f":"ROUNDUP(SUM(CXM45:CXM52),0)","v":0},{"$f":"CXE71","v":15},null,{"$f":"IF(CXP71*CXO71=0,\"\",CXP71*CXO71)","v":""},"Pallet Charge",15,null,null,"Pallet Charge",null,null,null,null,null,null,{"$f":"ROUNDUP(SUM(CYB45:CYB52),0)","v":0},{"$f":"CXT71","v":15},null,{"$f":"IF(CYE71*CYD71=0,\"\",CYE71*CYD71)","v":""},"Pallet Charge",15,null,null,"Pallet Charge",null,null,null,null,null,null,{"$f":"ROUNDUP(SUM(CYQ45:CYQ52),0)","v":0},{"$f":"CYI71","v":15},null,{"$f":"IF(CYT71*CYS71=0,\"\",CYT71*CYS71)","v":""},"Pallet Charge",15,null,null,"Pallet Charge",null,null,null,null,null,null,{"$f":"ROUNDUP(SUM(CZF45:CZF52),0)","v":0},{"$f":"CYX71","v":15},null,{"$f":"IF(CZI71*CZH71=0,\"\",CZI71*CZH71)","v":""},"Pallet Charge",15,null,null,"Pallet Charge",null,null,null,null,null,null,{"$f":"ROUNDUP(SUM(CZU45:CZU52),0)","v":0},{"$f":"CZM71","v":15},null,{"$f":"IF(CZX71*CZW71=0,\"\",CZX71*CZW71)","v":""},"Pallet Charge",15,null,null,"Pallet Charge",null,null,null,null,null,null,{"$f":"ROUNDUP(SUM(DAJ45:DAJ52),0)","v":0},{"$f":"DAB71","v":15},null,{"$f":"IF(DAM71*DAL71=0,\"\",DAM71*DAL71)","v":""},"Pallet Charge",15,null,null,"Pallet Charge",null,null,null,null,null,null,{"$f":"ROUNDUP(SUM(DAY45:DAY52),0)","v":0},{"$f":"DAQ71","v":15},null,{"$f":"IF(DBB71*DBA71=0,\"\",DBB71*DBA71)","v":""},"Pallet Charge",15,null,null,"Pallet Charge",null,null,null,null,null,null,{"$f":"ROUNDUP(SUM(DBN45:DBN52),0)","v":0},{"$f":"DBF71","v":15},null,{"$f":"IF(DBQ71*DBP71=0,\"\",DBQ71*DBP71)","v":""},"Pallet Charge",15,null,null,"Pallet Charge",null,null,null,null,null,null,{"$f":"ROUNDUP(SUM(DCC45:DCC52),0)","v":0},{"$f":"DBU71","v":15},null,{"$f":"IF(DCF71*DCE71=0,\"\",DCF71*DCE71)","v":""},"Pallet Charge",15,null,null,"Pallet Charge",null,null,null,null,null,null,{"$f":"ROUNDUP(SUM(DCR45:DCR52),0)","v":0},{"$f":"DCJ71","v":15},null,{"$f":"IF(DCU71*DCT71=0,\"\",DCU71*DCT71)","v":""},"Pallet Charge",15,null,null,"Pallet Charge",null,null,null,null,null,null,{"$f":"ROUNDUP(SUM(DDG45:DDG52),0)","v":0},{"$f":"DCY71","v":15},null,{"$f":"IF(DDJ71*DDI71=0,\"\",DDJ71*DDI71)","v":""},"Pallet Charge",15,null,null,"Pallet Charge",null,null,null,null,null,null,{"$f":"ROUNDUP(SUM(DDV45:DDV52),0)","v":0},{"$f":"DDN71","v":15},null,{"$f":"IF(DDY71*DDX71=0,\"\",DDY71*DDX71)","v":""},"Pallet Charge",15,null,null,"Pallet Charge",null,null,null,null,null,null,{"$f":"ROUNDUP(SUM(DEK45:DEK52),0)","v":0},{"$f":"DEC71","v":15},null,{"$f":"IF(DEN71*DEM71=0,\"\",DEN71*DEM71)","v":""},"Pallet Charge",15,null,null,"Pallet Charge",null,null,null,null,null,null,{"$f":"ROUNDUP(SUM(DEZ45:DEZ52),0)","v":0},{"$f":"DER71","v":15},null,{"$f":"IF(DFC71*DFB71=0,\"\",DFC71*DFB71)","v":""},"Pallet Charge",15,null,null,"Pallet Charge",null,null,null,null,null,null,{"$f":"ROUNDUP(SUM(DFO45:DFO52),0)","v":0},{"$f":"DFG71","v":15},null,{"$f":"IF(DFR71*DFQ71=0,\"\",DFR71*DFQ71)","v":""},"Pallet Charge",15,null,null,"Pallet Charge",null,null,null,null,null,null,{"$f":"ROUNDUP(SUM(DGD45:DGD52),0)","v":0},{"$f":"DFV71","v":15},null,{"$f":"IF(DGG71*DGF71=0,\"\",DGG71*DGF71)","v":""},"Pallet Charge",15,null,null,"Pallet Charge",null,null,null,null,null,null,{"$f":"ROUNDUP(SUM(DGS45:DGS52),0)","v":0},{"$f":"DGK71","v":15},null,{"$f":"IF(DGV71*DGU71=0,\"\",DGV71*DGU71)","v":""},"Pallet Charge",15,null,null,"Pallet Charge",null,null,null,null,null,null,{"$f":"ROUNDUP(SUM(DHH45:DHH52),0)","v":0},{"$f":"DGZ71","v":15},null,{"$f":"IF(DHK71*DHJ71=0,\"\",DHK71*DHJ71)","v":""},"Pallet Charge",15,null,null,"Pallet Charge",null,null,null,null,null,null,{"$f":"ROUNDUP(SUM(DHW45:DHW52),0)","v":0},{"$f":"DHO71","v":15},null,{"$f":"IF(DHZ71*DHY71=0,\"\",DHZ71*DHY71)","v":""},"Pallet Charge",15,null,null,"Pallet Charge",null,null,null,null,null,null,{"$f":"ROUNDUP(SUM(DIL45:DIL52),0)","v":0},{"$f":"DID71","v":15},null,{"$f":"IF(DIO71*DIN71=0,\"\",DIO71*DIN71)","v":""},"Pallet Charge",15,null,null,"Pallet Charge",null,null,null,null,null,null,{"$f":"ROUNDUP(SUM(DJA45:DJA52),0)","v":0},{"$f":"DIS71","v":15},null,{"$f":"IF(DJD71*DJC71=0,\"\",DJD71*DJC71)","v":""},"Pallet Charge",15,null,null,"Pallet Charge",null,null,null,null,null,null,{"$f":"ROUNDUP(SUM(DJP45:DJP52),0)","v":0},{"$f":"DJH71","v":15},null,{"$f":"IF(DJS71*DJR71=0,\"\",DJS71*DJR71)","v":""},"Pallet Charge",15,null,null,"Pallet Charge",null,null,null,null,null,null,{"$f":"ROUNDUP(SUM(DKE45:DKE52),0)","v":0},{"$f":"DJW71","v":15},null,{"$f":"IF(DKH71*DKG71=0,\"\",DKH71*DKG71)","v":""},"Pallet Charge",15,null,null,"Pallet Charge",null,null,null,null,null,null,{"$f":"ROUNDUP(SUM(DKT45:DKT52),0)","v":0},{"$f":"DKL71","v":15},null,{"$f":"IF(DKW71*DKV71=0,\"\",DKW71*DKV71)","v":""},"Pallet Charge",15,null,null,"Pallet Charge",null,null,null,null,null,null,{"$f":"ROUNDUP(SUM(DLI45:DLI52),0)","v":0},{"$f":"DLA71","v":15},null,{"$f":"IF(DLL71*DLK71=0,\"\",DLL71*DLK71)","v":""},"Pallet Charge",15,null,null,"Pallet Charge",null,null,null,null,null,null,{"$f":"ROUNDUP(SUM(DLX45:DLX52),0)","v":0},{"$f":"DLP71","v":15},null,{"$f":"IF(DMA71*DLZ71=0,\"\",DMA71*DLZ71)","v":""},"Pallet Charge",15,null,null,"Pallet Charge",null,null,null,null,null,null,{"$f":"ROUNDUP(SUM(DMM45:DMM52),0)","v":0},{"$f":"DME71","v":15},null,{"$f":"IF(DMP71*DMO71=0,\"\",DMP71*DMO71)","v":""},"Pallet Charge",15,null,null,"Pallet Charge",null,null,null,null,null,null,{"$f":"ROUNDUP(SUM(DNB45:DNB52),0)","v":0},{"$f":"DMT71","v":15},null,{"$f":"IF(DNE71*DND71=0,\"\",DNE71*DND71)","v":""},"Pallet Charge",15,null,null,"Pallet Charge",null,null,null,null,null,null,{"$f":"ROUNDUP(SUM(DNQ45:DNQ52),0)","v":0},{"$f":"DNI71","v":15},null,{"$f":"IF(DNT71*DNS71=0,\"\",DNT71*DNS71)","v":""},"Pallet Charge",15,null,null,"Pallet Charge",null,null,null,null,null,null,{"$f":"ROUNDUP(SUM(DOF45:DOF52),0)","v":0},{"$f":"DNX71","v":15},null,{"$f":"IF(DOI71*DOH71=0,\"\",DOI71*DOH71)","v":""},"Pallet Charge",15,null,null,"Pallet Charge",null,null,null,null,null,null,{"$f":"ROUNDUP(SUM(DOU45:DOU52),0)","v":0},{"$f":"DOM71","v":15},null,{"$f":"IF(DOX71*DOW71=0,\"\",DOX71*DOW71)","v":""},"Pallet Charge",15,null,null,"Pallet Charge",null,null,null,null,null,null,{"$f":"ROUNDUP(SUM(DPJ45:DPJ52),0)","v":0},{"$f":"DPB71","v":15},null,{"$f":"IF(DPM71*DPL71=0,\"\",DPM71*DPL71)","v":""},"Pallet Charge",15,null,null,"Pallet Charge",null,null,null,null,null,null,{"$f":"ROUNDUP(SUM(DPY45:DPY52),0)","v":0},{"$f":"DPQ71","v":15},null,{"$f":"IF(DQB71*DQA71=0,\"\",DQB71*DQA71)","v":""},"Pallet Charge",15,null,null,"Pallet Charge",null,null,null,null,null,null,{"$f":"ROUNDUP(SUM(DQN45:DQN52),0)","v":0},{"$f":"DQF71","v":15},null,{"$f":"IF(DQQ71*DQP71=0,\"\",DQQ71*DQP71)","v":""},"Pallet Charge",15,null,null,"Pallet Charge",null,null,null,null,null,null,{"$f":"ROUNDUP(SUM(DRC45:DRC52),0)","v":0},{"$f":"DQU71","v":15},null,{"$f":"IF(DRF71*DRE71=0,\"\",DRF71*DRE71)","v":""},"Pallet Charge",15,null,null,"Pallet Charge",null,null,null,null,null,null,{"$f":"ROUNDUP(SUM(DRR45:DRR52),0)","v":0},{"$f":"DRJ71","v":15},null,{"$f":"IF(DRU71*DRT71=0,\"\",DRU71*DRT71)","v":""},"Pallet Charge",15,null,null,"Pallet Charge",null,null,null,null,null,null,{"$f":"ROUNDUP(SUM(DSG45:DSG52),0)","v":0},{"$f":"DRY71","v":15},null,{"$f":"IF(DSJ71*DSI71=0,\"\",DSJ71*DSI71)","v":""},"Pallet Charge",15,null,null,"Pallet Charge",null,null,null,null,null,null,{"$f":"ROUNDUP(SUM(DSV45:DSV52),0)","v":0},{"$f":"DSN71","v":15},null,{"$f":"IF(DSY71*DSX71=0,\"\",DSY71*DSX71)","v":""},"Pallet Charge",15,null,null,"Pallet Charge",null,null,null,null,null,null,{"$f":"ROUNDUP(SUM(DTK45:DTK52),0)","v":0},{"$f":"DTC71","v":15},null,{"$f":"IF(DTN71*DTM71=0,\"\",DTN71*DTM71)","v":""},"Pallet Charge",15,null,null,"Pallet Charge",null,null,null,null,null,null,{"$f":"ROUNDUP(SUM(DTZ45:DTZ52),0)","v":0},{"$f":"DTR71","v":15},null,{"$f":"IF(DUC71*DUB71=0,\"\",DUC71*DUB71)","v":""},"Pallet Charge",15,null,null,"Pallet Charge",null,null,null,null,null,null,{"$f":"ROUNDUP(SUM(DUO45:DUO52),0)","v":0},{"$f":"DUG71","v":15},null,{"$f":"IF(DUR71*DUQ71=0,\"\",DUR71*DUQ71)","v":""},"Pallet Charge",15,null,null,"Pallet Charge",null,null,null,null,null,null,{"$f":"ROUNDUP(SUM(DVD45:DVD52),0)","v":0},{"$f":"DUV71","v":15},null,{"$f":"IF(DVG71*DVF71=0,\"\",DVG71*DVF71)","v":""},"Pallet Charge",15,null,null,"Pallet Charge",null,null,null,null,null,null,{"$f":"ROUNDUP(SUM(DVS45:DVS52),0)","v":0},{"$f":"DVK71","v":15},null,{"$f":"IF(DVV71*DVU71=0,\"\",DVV71*DVU71)","v":""},"Pallet Charge",15,null,null,"Pallet Charge",null,null,null,null,null,null,{"$f":"ROUNDUP(SUM(DWH45:DWH52),0)","v":0},{"$f":"DVZ71","v":15},null,{"$f":"IF(DWK71*DWJ71=0,\"\",DWK71*DWJ71)","v":""},"Pallet Charge",15,null,null,"Pallet Charge",null,null,null,null,null,null,{"$f":"ROUNDUP(SUM(DWW45:DWW52),0)","v":0},{"$f":"DWO71","v":15},null,{"$f":"IF(DWZ71*DWY71=0,\"\",DWZ71*DWY71)","v":""},"Pallet Charge",15,null,null,"Pallet Charge",null,null,null,null,null,null,{"$f":"ROUNDUP(SUM(DXL45:DXL52),0)","v":0},{"$f":"DXD71","v":15},null,{"$f":"IF(DXO71*DXN71=0,\"\",DXO71*DXN71)","v":""},"Pallet Charge",15,null,null,"Pallet Charge",null,null,null,null,null,null,{"$f":"ROUNDUP(SUM(DYA45:DYA52),0)","v":0},{"$f":"DXS71","v":15},null,{"$f":"IF(DYD71*DYC71=0,\"\",DYD71*DYC71)","v":""},"Pallet Charge",15,null,null,"Pallet Charge",null,null,null,null,null,null,{"$f":"ROUNDUP(SUM(DYP45:DYP52),0)","v":0},{"$f":"DYH71","v":15},null,{"$f":"IF(DYS71*DYR71=0,\"\",DYS71*DYR71)","v":""},"Pallet Charge",15,null,null,"Pallet Charge",null,null,null,null,null,null,{"$f":"ROUNDUP(SUM(DZE45:DZE52),0)","v":0},{"$f":"DYW71","v":15},null,{"$f":"IF(DZH71*DZG71=0,\"\",DZH71*DZG71)","v":""},"Pallet Charge",15,null,null,"Pallet Charge",null,null,null,null,null,null,{"$f":"ROUNDUP(SUM(DZT45:DZT52),0)","v":0},{"$f":"DZL71","v":15},null,{"$f":"IF(DZW71*DZV71=0,\"\",DZW71*DZV71)","v":""},"Pallet Charge",15,null,null,"Pallet Charge",null,null,null,null,null,null,{"$f":"ROUNDUP(SUM(EAI45:EAI52),0)","v":0},{"$f":"EAA71","v":15},null,{"$f":"IF(EAL71*EAK71=0,\"\",EAL71*EAK71)","v":""},"Pallet Charge",15,null,null,"Pallet Charge",null,null,null,null,null,null,{"$f":"ROUNDUP(SUM(EAX45:EAX52),0)","v":0},{"$f":"EAP71","v":15},null,{"$f":"IF(EBA71*EAZ71=0,\"\",EBA71*EAZ71)","v":""},"Pallet Charge",15,null,null,"Pallet Charge",null,null,null,null,null,null,{"$f":"ROUNDUP(SUM(EBM45:EBM52),0)","v":0},{"$f":"EBE71","v":15},null,{"$f":"IF(EBP71*EBO71=0,\"\",EBP71*EBO71)","v":""},"Pallet Charge",15,null,null,"Pallet Charge",null,null,null,null,null,null,{"$f":"ROUNDUP(SUM(ECB45:ECB52),0)","v":0},{"$f":"EBT71","v":15},null,{"$f":"IF(ECE71*ECD71=0,\"\",ECE71*ECD71)","v":""},"Pallet Charge",15,null,null,"Pallet Charge",null,null,null,null,null,null,{"$f":"ROUNDUP(SUM(ECQ45:ECQ52),0)","v":0},{"$f":"ECI71","v":15},null,{"$f":"IF(ECT71*ECS71=0,\"\",ECT71*ECS71)","v":""},"Pallet Charge",15,null,null,"Pallet Charge",null,null,null,null,null,null,{"$f":"ROUNDUP(SUM(EDF45:EDF52),0)","v":0},{"$f":"ECX71","v":15},null,{"$f":"IF(EDI71*EDH71=0,\"\",EDI71*EDH71)","v":""},"Pallet Charge",15,null,null,"Pallet Charge",null,null,null,null,null,null,{"$f":"ROUNDUP(SUM(EDU45:EDU52),0)","v":0},{"$f":"EDM71","v":15},null,{"$f":"IF(EDX71*EDW71=0,\"\",EDX71*EDW71)","v":""},"Pallet Charge",15,null,null,"Pallet Charge",null,null,null,null,null,null,{"$f":"ROUNDUP(SUM(EEJ45:EEJ52),0)","v":0},{"$f":"EEB71","v":15},null,{"$f":"IF(EEM71*EEL71=0,\"\",EEM71*EEL71)","v":""},"Pallet Charge",15,null,null,"Pallet Charge",null,null,null,null,null,null,{"$f":"ROUNDUP(SUM(EEY45:EEY52),0)","v":0},{"$f":"EEQ71","v":15},null,{"$f":"IF(EFB71*EFA71=0,\"\",EFB71*EFA71)","v":""},"Pallet Charge",15,null,null,"Pallet Charge",null,null,null,null,null,null,{"$f":"ROUNDUP(SUM(EFN45:EFN52),0)","v":0},{"$f":"EFF71","v":15},null,{"$f":"IF(EFQ71*EFP71=0,\"\",EFQ71*EFP71)","v":""},"Pallet Charge",15,null,null,"Pallet Charge",null,null,null,null,null,null,{"$f":"ROUNDUP(SUM(EGC45:EGC52),0)","v":0},{"$f":"EFU71","v":15},null,{"$f":"IF(EGF71*EGE71=0,\"\",EGF71*EGE71)","v":""},"Pallet Charge",15,null,null,"Pallet Charge",null,null,null,null,null,null,{"$f":"ROUNDUP(SUM(EGR45:EGR52),0)","v":0},{"$f":"EGJ71","v":15},null,{"$f":"IF(EGU71*EGT71=0,\"\",EGU71*EGT71)","v":""},"Pallet Charge",15,null,null,"Pallet Charge",null,null,null,null,null,null,{"$f":"ROUNDUP(SUM(EHG45:EHG52),0)","v":0},{"$f":"EGY71","v":15},null,{"$f":"IF(EHJ71*EHI71=0,\"\",EHJ71*EHI71)","v":""},"Pallet Charge",15,null,null,"Pallet Charge",null,null,null,null,null,null,{"$f":"ROUNDUP(SUM(EHV45:EHV52),0)","v":0},{"$f":"EHN71","v":15},null,{"$f":"IF(EHY71*EHX71=0,\"\",EHY71*EHX71)","v":""},"Pallet Charge",15,null,null,"Pallet Charge",null,null,null,null,null,null,{"$f":"ROUNDUP(SUM(EIK45:EIK52),0)","v":0},{"$f":"EIC71","v":15},null,{"$f":"IF(EIN71*EIM71=0,\"\",EIN71*EIM71)","v":""},"Pallet Charge",15,null,null,"Pallet Charge",null,null,null,null,null,null,{"$f":"ROUNDUP(SUM(EIZ45:EIZ52),0)","v":0},{"$f":"EIR71","v":15},null,{"$f":"IF(EJC71*EJB71=0,\"\",EJC71*EJB71)","v":""},"Pallet Charge",15,null,null,"Pallet Charge",null,null,null,null,null,null,{"$f":"ROUNDUP(SUM(EJO45:EJO52),0)","v":0},{"$f":"EJG71","v":15},null,{"$f":"IF(EJR71*EJQ71=0,\"\",EJR71*EJQ71)","v":""},"Pallet Charge",15,null,null,"Pallet Charge",null,null,null,null,null,null,{"$f":"ROUNDUP(SUM(EKD45:EKD52),0)","v":0},{"$f":"EJV71","v":15},null,{"$f":"IF(EKG71*EKF71=0,\"\",EKG71*EKF71)","v":""},"Pallet Charge",15,null,null,"Pallet Charge",null,null,null,null,null,null,{"$f":"ROUNDUP(SUM(EKS45:EKS52),0)","v":0},{"$f":"EKK71","v":15},null,{"$f":"IF(EKV71*EKU71=0,\"\",EKV71*EKU71)","v":""},"Pallet Charge",15,null,null,"Pallet Charge",null,null,null,null,null,null,{"$f":"ROUNDUP(SUM(ELH45:ELH52),0)","v":0},{"$f":"EKZ71","v":15},null,{"$f":"IF(ELK71*ELJ71=0,\"\",ELK71*ELJ71)","v":""},"Pallet Charge",15,null,null,"Pallet Charge",null,null,null,null,null,null,{"$f":"ROUNDUP(SUM(ELW45:ELW52),0)","v":0},{"$f":"ELO71","v":15},null,{"$f":"IF(ELZ71*ELY71=0,\"\",ELZ71*ELY71)","v":""},"Pallet Charge",15,null,null,"Pallet Charge",null,null,null,null,null,null,{"$f":"ROUNDUP(SUM(EML45:EML52),0)","v":0},{"$f":"EMD71","v":15},null,{"$f":"IF(EMO71*EMN71=0,\"\",EMO71*EMN71)","v":""},"Pallet Charge",15,null,null,"Pallet Charge",null,null,null,null,null,null,{"$f":"ROUNDUP(SUM(ENA45:ENA52),0)","v":0},{"$f":"EMS71","v":15},null,{"$f":"IF(END71*ENC71=0,\"\",END71*ENC71)","v":""},"Pallet Charge",15,null,null,"Pallet Charge",null,null,null,null,null,null,{"$f":"ROUNDUP(SUM(ENP45:ENP52),0)","v":0},{"$f":"ENH71","v":15},null,{"$f":"IF(ENS71*ENR71=0,\"\",ENS71*ENR71)","v":""},"Pallet Charge",15,null,null,"Pallet Charge",null,null,null,null,null,null,{"$f":"ROUNDUP(SUM(EOE45:EOE52),0)","v":0},{"$f":"ENW71","v":15},null,{"$f":"IF(EOH71*EOG71=0,\"\",EOH71*EOG71)","v":""},"Pallet Charge",15,null,null,"Pallet Charge",null,null,null,null,null,null,{"$f":"ROUNDUP(SUM(EOT45:EOT52),0)","v":0},{"$f":"EOL71","v":15},null,{"$f":"IF(EOW71*EOV71=0,\"\",EOW71*EOV71)","v":""},"Pallet Charge",15,null,null,"Pallet Charge",null,null,null,null,null,null,{"$f":"ROUNDUP(SUM(EPI45:EPI52),0)","v":0},{"$f":"EPA71","v":15},null,{"$f":"IF(EPL71*EPK71=0,\"\",EPL71*EPK71)","v":""},"Pallet Charge",15,null,null,"Pallet Charge",null,null,null,null,null,null,{"$f":"ROUNDUP(SUM(EPX45:EPX52),0)","v":0},{"$f":"EPP71","v":15},null,{"$f":"IF(EQA71*EPZ71=0,\"\",EQA71*EPZ71)","v":""},"Pallet Charge",15,null,null,"Pallet Charge",null,null,null,null,null,null,{"$f":"ROUNDUP(SUM(EQM45:EQM52),0)","v":0},{"$f":"EQE71","v":15},null,{"$f":"IF(EQP71*EQO71=0,\"\",EQP71*EQO71)","v":""},"Pallet Charge",15,null,null,"Pallet Charge",null,null,null,null,null,null,{"$f":"ROUNDUP(SUM(ERB45:ERB52),0)","v":0},{"$f":"EQT71","v":15},null,{"$f":"IF(ERE71*ERD71=0,\"\",ERE71*ERD71)","v":""},"Pallet Charge",15,null,null,"Pallet Charge",null,null,null,null,null,null,{"$f":"ROUNDUP(SUM(ERQ45:ERQ52),0)","v":0},{"$f":"ERI71","v":15},null,{"$f":"IF(ERT71*ERS71=0,\"\",ERT71*ERS71)","v":""},"Pallet Charge",15,null,null,"Pallet Charge",null,null,null,null,null,null,{"$f":"ROUNDUP(SUM(ESF45:ESF52),0)","v":0},{"$f":"ERX71","v":15},null,{"$f":"IF(ESI71*ESH71=0,\"\",ESI71*ESH71)","v":""},"Pallet Charge",15,null,null,"Pallet Charge",null,null,null,null,null,null,{"$f":"ROUNDUP(SUM(ESU45:ESU52),0)","v":0},{"$f":"ESM71","v":15},null,{"$f":"IF(ESX71*ESW71=0,\"\",ESX71*ESW71)","v":""},"Pallet Charge",15,null,null,"Pallet Charge",null,null,null,null,null,null,{"$f":"ROUNDUP(SUM(ETJ45:ETJ52),0)","v":0},{"$f":"ETB71","v":15},null,{"$f":"IF(ETM71*ETL71=0,\"\",ETM71*ETL71)","v":""},"Pallet Charge",15,null,null,"Pallet Charge",null,null,null,null,null,null,{"$f":"ROUNDUP(SUM(ETY45:ETY52),0)","v":0},{"$f":"ETQ71","v":15},null,{"$f":"IF(EUB71*EUA71=0,\"\",EUB71*EUA71)","v":""},"Pallet Charge",15,null,null,"Pallet Charge",null,null,null,null,null,null,{"$f":"ROUNDUP(SUM(EUN45:EUN52),0)","v":0},{"$f":"EUF71","v":15},null,{"$f":"IF(EUQ71*EUP71=0,\"\",EUQ71*EUP71)","v":""},"Pallet Charge",15,null,null,"Pallet Charge",null,null,null,null,null,null,{"$f":"ROUNDUP(SUM(EVC45:EVC52),0)","v":0},{"$f":"EUU71","v":15},null,{"$f":"IF(EVF71*EVE71=0,\"\",EVF71*EVE71)","v":""},"Pallet Charge",15,null,null,"Pallet Charge",null,null,null,null,null,null,{"$f":"ROUNDUP(SUM(EVR45:EVR52),0)","v":0},{"$f":"EVJ71","v":15},null,{"$f":"IF(EVU71*EVT71=0,\"\",EVU71*EVT71)","v":""},"Pallet Charge",15,null,null,"Pallet Charge",null,null,null,null,null,null,{"$f":"ROUNDUP(SUM(EWG45:EWG52),0)","v":0},{"$f":"EVY71","v":15},null,{"$f":"IF(EWJ71*EWI71=0,\"\",EWJ71*EWI71)","v":""},"Pallet Charge",15,null,null,"Pallet Charge",null,null,null,null,null,null,{"$f":"ROUNDUP(SUM(EWV45:EWV52),0)","v":0},{"$f":"EWN71","v":15},null,{"$f":"IF(EWY71*EWX71=0,\"\",EWY71*EWX71)","v":""},"Pallet Charge",15,null,null,"Pallet Charge",null,null,null,null,null,null,{"$f":"ROUNDUP(SUM(EXK45:EXK52),0)","v":0},{"$f":"EXC71","v":15},null,{"$f":"IF(EXN71*EXM71=0,\"\",EXN71*EXM71)","v":""},"Pallet Charge",15,null,null,"Pallet Charge",null,null,null,null,null,null,{"$f":"ROUNDUP(SUM(EXZ45:EXZ52),0)","v":0},{"$f":"EXR71","v":15},null,{"$f":"IF(EYC71*EYB71=0,\"\",EYC71*EYB71)","v":""},"Pallet Charge",15,null,null,"Pallet Charge",null,null,null,null,null,null,{"$f":"ROUNDUP(SUM(EYO45:EYO52),0)","v":0},{"$f":"EYG71","v":15},null,{"$f":"IF(EYR71*EYQ71=0,\"\",EYR71*EYQ71)","v":""},"Pallet Charge",15,null,null,"Pallet Charge",null,null,null,null,null,null,{"$f":"ROUNDUP(SUM(EZD45:EZD52),0)","v":0},{"$f":"EYV71","v":15},null,{"$f":"IF(EZG71*EZF71=0,\"\",EZG71*EZF71)","v":""},"Pallet Charge",15,null,null,"Pallet Charge",null,null,null,null,null,null,{"$f":"ROUNDUP(SUM(EZS45:EZS52),0)","v":0},{"$f":"EZK71","v":15},null,{"$f":"IF(EZV71*EZU71=0,\"\",EZV71*EZU71)","v":""},"Pallet Charge",15,null,null,"Pallet Charge",null,null,null,null,null,null,{"$f":"ROUNDUP(SUM(FAH45:FAH52),0)","v":0},{"$f":"EZZ71","v":15},null,{"$f":"IF(FAK71*FAJ71=0,\"\",FAK71*FAJ71)","v":""},"Pallet Charge",15,null,null,"Pallet Charge",null,null,null,null,null,null,{"$f":"ROUNDUP(SUM(FAW45:FAW52),0)","v":0},{"$f":"FAO71","v":15},null,{"$f":"IF(FAZ71*FAY71=0,\"\",FAZ71*FAY71)","v":""},"Pallet Charge",15,null,null,"Pallet Charge",null,null,null,null,null,null,{"$f":"ROUNDUP(SUM(FBL45:FBL52),0)","v":0},{"$f":"FBD71","v":15},null,{"$f":"IF(FBO71*FBN71=0,\"\",FBO71*FBN71)","v":""},"Pallet Charge",15,null,null,"Pallet Charge",null,null,null,null,null,null,{"$f":"ROUNDUP(SUM(FCA45:FCA52),0)","v":0},{"$f":"FBS71","v":15},null,{"$f":"IF(FCD71*FCC71=0,\"\",FCD71*FCC71)","v":""},"Pallet Charge",15,null,null,"Pallet Charge",null,null,null,null,null,null,{"$f":"ROUNDUP(SUM(FCP45:FCP52),0)","v":0},{"$f":"FCH71","v":15},null,{"$f":"IF(FCS71*FCR71=0,\"\",FCS71*FCR71)","v":""},"Pallet Charge",15,null,null,"Pallet Charge",null,null,null,null,null,null,{"$f":"ROUNDUP(SUM(FDE45:FDE52),0)","v":0},{"$f":"FCW71","v":15},null,{"$f":"IF(FDH71*FDG71=0,\"\",FDH71*FDG71)","v":""},"Pallet Charge",15,null,null,"Pallet Charge",null,null,null,null,null,null,{"$f":"ROUNDUP(SUM(FDT45:FDT52),0)","v":0},{"$f":"FDL71","v":15},null,{"$f":"IF(FDW71*FDV71=0,\"\",FDW71*FDV71)","v":""},"Pallet Charge",15,null,null,"Pallet Charge",null,null,null,null,null,null,{"$f":"ROUNDUP(SUM(FEI45:FEI52),0)","v":0},{"$f":"FEA71","v":15},null,{"$f":"IF(FEL71*FEK71=0,\"\",FEL71*FEK71)","v":""},"Pallet Charge",15,null,null,"Pallet Charge",null,null,null,null,null,null,{"$f":"ROUNDUP(SUM(FEX45:FEX52),0)","v":0},{"$f":"FEP71","v":15},null,{"$f":"IF(FFA71*FEZ71=0,\"\",FFA71*FEZ71)","v":""},"Pallet Charge",15,null,null,"Pallet Charge",null,null,null,null,null,null,{"$f":"ROUNDUP(SUM(FFM45:FFM52),0)","v":0},{"$f":"FFE71","v":15},null,{"$f":"IF(FFP71*FFO71=0,\"\",FFP71*FFO71)","v":""},"Pallet Charge",15,null,null,"Pallet Charge",null,null,null,null,null,null,{"$f":"ROUNDUP(SUM(FGB45:FGB52),0)","v":0},{"$f":"FFT71","v":15},null,{"$f":"IF(FGE71*FGD71=0,\"\",FGE71*FGD71)","v":""},"Pallet Charge",15,null,null,"Pallet Charge",null,null,null,null,null,null,{"$f":"ROUNDUP(SUM(FGQ45:FGQ52),0)","v":0},{"$f":"FGI71","v":15},null,{"$f":"IF(FGT71*FGS71=0,\"\",FGT71*FGS71)","v":""},"Pallet Charge",15,null,null,"Pallet Charge",null,null,null,null,null,null,{"$f":"ROUNDUP(SUM(FHF45:FHF52),0)","v":0},{"$f":"FGX71","v":15},null,{"$f":"IF(FHI71*FHH71=0,\"\",FHI71*FHH71)","v":""},"Pallet Charge",15,null,null,"Pallet Charge",null,null,null,null,null,null,{"$f":"ROUNDUP(SUM(FHU45:FHU52),0)","v":0},{"$f":"FHM71","v":15},null,{"$f":"IF(FHX71*FHW71=0,\"\",FHX71*FHW71)","v":""},"Pallet Charge",15,null,null,"Pallet Charge",null,null,null,null,null,null,{"$f":"ROUNDUP(SUM(FIJ45:FIJ52),0)","v":0},{"$f":"FIB71","v":15},null,{"$f":"IF(FIM71*FIL71=0,\"\",FIM71*FIL71)","v":""},"Pallet Charge",15,null,null,"Pallet Charge",null,null,null,null,null,null,{"$f":"ROUNDUP(SUM(FIY45:FIY52),0)","v":0},{"$f":"FIQ71","v":15},null,{"$f":"IF(FJB71*FJA71=0,\"\",FJB71*FJA71)","v":""},"Pallet Charge",15,null,null,"Pallet Charge",null,null,null,null,null,null,{"$f":"ROUNDUP(SUM(FJN45:FJN52),0)","v":0},{"$f":"FJF71","v":15},null,{"$f":"IF(FJQ71*FJP71=0,\"\",FJQ71*FJP71)","v":""},"Pallet Charge",15,null,null,"Pallet Charge",null,null,null,null,null,null,{"$f":"ROUNDUP(SUM(FKC45:FKC52),0)","v":0},{"$f":"FJU71","v":15},null,{"$f":"IF(FKF71*FKE71=0,\"\",FKF71*FKE71)","v":""},"Pallet Charge",15,null,null,"Pallet Charge",null,null,null,null,null,null,{"$f":"ROUNDUP(SUM(FKR45:FKR52),0)","v":0},{"$f":"FKJ71","v":15},null,{"$f":"IF(FKU71*FKT71=0,\"\",FKU71*FKT71)","v":""},"Pallet Charge",15,null,null,"Pallet Charge",null,null,null,null,null,null,{"$f":"ROUNDUP(SUM(FLG45:FLG52),0)","v":0},{"$f":"FKY71","v":15},null,{"$f":"IF(FLJ71*FLI71=0,\"\",FLJ71*FLI71)","v":""},"Pallet Charge",15,null,null,"Pallet Charge",null,null,null,null,null,null,{"$f":"ROUNDUP(SUM(FLV45:FLV52),0)","v":0},{"$f":"FLN71","v":15},null,{"$f":"IF(FLY71*FLX71=0,\"\",FLY71*FLX71)","v":""},"Pallet Charge",15,null,null,"Pallet Charge",null,null,null,null,null,null,{"$f":"ROUNDUP(SUM(FMK45:FMK52),0)","v":0},{"$f":"FMC71","v":15},null,{"$f":"IF(FMN71*FMM71=0,\"\",FMN71*FMM71)","v":""},"Pallet Charge",15,null,null,"Pallet Charge",null,null,null,null,null,null,{"$f":"ROUNDUP(SUM(FMZ45:FMZ52),0)","v":0},{"$f":"FMR71","v":15},null,{"$f":"IF(FNC71*FNB71=0,\"\",FNC71*FNB71)","v":""},"Pallet Charge",15,null,null,"Pallet Charge",null,null,null,null,null,null,{"$f":"ROUNDUP(SUM(FNO45:FNO52),0)","v":0},{"$f":"FNG71","v":15},null,{"$f":"IF(FNR71*FNQ71=0,\"\",FNR71*FNQ71)","v":""},"Pallet Charge",15,null,null,"Pallet Charge",null,null,null,null,null,null,{"$f":"ROUNDUP(SUM(FOD45:FOD52),0)","v":0},{"$f":"FNV71","v":15},null,{"$f":"IF(FOG71*FOF71=0,\"\",FOG71*FOF71)","v":""},"Pallet Charge",15,null,null,"Pallet Charge",null,null,null,null,null,null,{"$f":"ROUNDUP(SUM(FOS45:FOS52),0)","v":0},{"$f":"FOK71","v":15},null,{"$f":"IF(FOV71*FOU71=0,\"\",FOV71*FOU71)","v":""},"Pallet Charge",15,null,null,"Pallet Charge",null,null,null,null,null,null,{"$f":"ROUNDUP(SUM(FPH45:FPH52),0)","v":0},{"$f":"FOZ71","v":15},null,{"$f":"IF(FPK71*FPJ71=0,\"\",FPK71*FPJ71)","v":""},"Pallet Charge",15,null,null,"Pallet Charge",null,null,null,null,null,null,{"$f":"ROUNDUP(SUM(FPW45:FPW52),0)","v":0},{"$f":"FPO71","v":15},null,{"$f":"IF(FPZ71*FPY71=0,\"\",FPZ71*FPY71)","v":""},"Pallet Charge",15,null,null,"Pallet Charge",null,null,null,null,null,null,{"$f":"ROUNDUP(SUM(FQL45:FQL52),0)","v":0},{"$f":"FQD71","v":15},null,{"$f":"IF(FQO71*FQN71=0,\"\",FQO71*FQN71)","v":""},"Pallet Charge",15,null,null,"Pallet Charge",null,null,null,null,null,null,{"$f":"ROUNDUP(SUM(FRA45:FRA52),0)","v":0},{"$f":"FQS71","v":15},null,{"$f":"IF(FRD71*FRC71=0,\"\",FRD71*FRC71)","v":""},"Pallet Charge",15,null,null,"Pallet Charge",null,null,null,null,null,null,{"$f":"ROUNDUP(SUM(FRP45:FRP52),0)","v":0},{"$f":"FRH71","v":15},null,{"$f":"IF(FRS71*FRR71=0,\"\",FRS71*FRR71)","v":""},"Pallet Charge",15,null,null,"Pallet Charge",null,null,null,null,null,null,{"$f":"ROUNDUP(SUM(FSE45:FSE52),0)","v":0},{"$f":"FRW71","v":15},null,{"$f":"IF(FSH71*FSG71=0,\"\",FSH71*FSG71)","v":""},"Pallet Charge",15,null,null,"Pallet Charge",null,null,null,null,null,null,{"$f":"ROUNDUP(SUM(FST45:FST52),0)","v":0},{"$f":"FSL71","v":15},null,{"$f":"IF(FSW71*FSV71=0,\"\",FSW71*FSV71)","v":""},"Pallet Charge",15,null,null,"Pallet Charge",null,null,null,null,null,null,{"$f":"ROUNDUP(SUM(FTI45:FTI52),0)","v":0},{"$f":"FTA71","v":15},null,{"$f":"IF(FTL71*FTK71=0,\"\",FTL71*FTK71)","v":""},"Pallet Charge",15,null,null,"Pallet Charge",null,null,null,null,null,null,{"$f":"ROUNDUP(SUM(FTX45:FTX52),0)","v":0},{"$f":"FTP71","v":15},null,{"$f":"IF(FUA71*FTZ71=0,\"\",FUA71*FTZ71)","v":""},"Pallet Charge",15,null,null,"Pallet Charge",null,null,null,null,null,null,{"$f":"ROUNDUP(SUM(FUM45:FUM52),0)","v":0},{"$f":"FUE71","v":15},null,{"$f":"IF(FUP71*FUO71=0,\"\",FUP71*FUO71)","v":""},"Pallet Charge",15,null,null,"Pallet Charge",null,null,null,null,null,null,{"$f":"ROUNDUP(SUM(FVB45:FVB52),0)","v":0},{"$f":"FUT71","v":15},null,{"$f":"IF(FVE71*FVD71=0,\"\",FVE71*FVD71)","v":""},"Pallet Charge",15,null,null,"Pallet Charge",null,null,null,null,null,null,{"$f":"ROUNDUP(SUM(FVQ45:FVQ52),0)","v":0},{"$f":"FVI71","v":15},null,{"$f":"IF(FVT71*FVS71=0,\"\",FVT71*FVS71)","v":""},"Pallet Charge",15,null,null,"Pallet Charge",null,null,null,null,null,null,{"$f":"ROUNDUP(SUM(FWF45:FWF52),0)","v":0},{"$f":"FVX71","v":15},null,{"$f":"IF(FWI71*FWH71=0,\"\",FWI71*FWH71)","v":""},"Pallet Charge",15,null,null,"Pallet Charge",null,null,null,null,null,null,{"$f":"ROUNDUP(SUM(FWU45:FWU52),0)","v":0},{"$f":"FWM71","v":15},null,{"$f":"IF(FWX71*FWW71=0,\"\",FWX71*FWW71)","v":""},"Pallet Charge",15,null,null,"Pallet Charge",null,null,null,null,null,null,{"$f":"ROUNDUP(SUM(FXJ45:FXJ52),0)","v":0},{"$f":"FXB71","v":15},null,{"$f":"IF(FXM71*FXL71=0,\"\",FXM71*FXL71)","v":""},"Pallet Charge",15,null,null,"Pallet Charge",null,null,null,null,null,null,{"$f":"ROUNDUP(SUM(FXY45:FXY52),0)","v":0},{"$f":"FXQ71","v":15},null,{"$f":"IF(FYB71*FYA71=0,\"\",FYB71*FYA71)","v":""},"Pallet Charge",15,null,null,"Pallet Charge",null,null,null,null,null,null,{"$f":"ROUNDUP(SUM(FYN45:FYN52),0)","v":0},{"$f":"FYF71","v":15},null,{"$f":"IF(FYQ71*FYP71=0,\"\",FYQ71*FYP71)","v":""},"Pallet Charge",15,null,null,"Pallet Charge",null,null,null,null,null,null,{"$f":"ROUNDUP(SUM(FZC45:FZC52),0)","v":0},{"$f":"FYU71","v":15},null,{"$f":"IF(FZF71*FZE71=0,\"\",FZF71*FZE71)","v":""},"Pallet Charge",15,null,null,"Pallet Charge",null,null,null,null,null,null,{"$f":"ROUNDUP(SUM(FZR45:FZR52),0)","v":0},{"$f":"FZJ71","v":15},null,{"$f":"IF(FZU71*FZT71=0,\"\",FZU71*FZT71)","v":""},"Pallet Charge",15,null,null,"Pallet Charge",null,null,null,null,null,null,{"$f":"ROUNDUP(SUM(GAG45:GAG52),0)","v":0},{"$f":"FZY71","v":15},null,{"$f":"IF(GAJ71*GAI71=0,\"\",GAJ71*GAI71)","v":""},"Pallet Charge",15,null,null,"Pallet Charge",null,null,null,null,null,null,{"$f":"ROUNDUP(SUM(GAV45:GAV52),0)","v":0},{"$f":"GAN71","v":15},null,{"$f":"IF(GAY71*GAX71=0,\"\",GAY71*GAX71)","v":""},"Pallet Charge",15,null,null,"Pallet Charge",null,null,null,null,null,null,{"$f":"ROUNDUP(SUM(GBK45:GBK52),0)","v":0},{"$f":"GBC71","v":15},null,{"$f":"IF(GBN71*GBM71=0,\"\",GBN71*GBM71)","v":""},"Pallet Charge",15,null,null,"Pallet Charge",null,null,null,null,null,null,{"$f":"ROUNDUP(SUM(GBZ45:GBZ52),0)","v":0},{"$f":"GBR71","v":15},null,{"$f":"IF(GCC71*GCB71=0,\"\",GCC71*GCB71)","v":""},"Pallet Charge",15,null,null,"Pallet Charge",null,null,null,null,null,null,{"$f":"ROUNDUP(SUM(GCO45:GCO52),0)","v":0},{"$f":"GCG71","v":15},null,{"$f":"IF(GCR71*GCQ71=0,\"\",GCR71*GCQ71)","v":""},"Pallet Charge",15,null,null,"Pallet Charge",null,null,null,null,null,null,{"$f":"ROUNDUP(SUM(GDD45:GDD52),0)","v":0},{"$f":"GCV71","v":15},null,{"$f":"IF(GDG71*GDF71=0,\"\",GDG71*GDF71)","v":""},"Pallet Charge",15,null,null,"Pallet Charge",null,null,null,null,null,null,{"$f":"ROUNDUP(SUM(GDS45:GDS52),0)","v":0},{"$f":"GDK71","v":15},null,{"$f":"IF(GDV71*GDU71=0,\"\",GDV71*GDU71)","v":""},"Pallet Charge",15,null,null,"Pallet Charge",null,null,null,null,null,null,{"$f":"ROUNDUP(SUM(GEH45:GEH52),0)","v":0},{"$f":"GDZ71","v":15},null,{"$f":"IF(GEK71*GEJ71=0,\"\",GEK71*GEJ71)","v":""},"Pallet Charge",15,null,null,"Pallet Charge",null,null,null,null,null,null,{"$f":"ROUNDUP(SUM(GEW45:GEW52),0)","v":0},{"$f":"GEO71","v":15},null,{"$f":"IF(GEZ71*GEY71=0,\"\",GEZ71*GEY71)","v":""},"Pallet Charge",15,null,null,"Pallet Charge",null,null,null,null,null,null,{"$f":"ROUNDUP(SUM(GFL45:GFL52),0)","v":0},{"$f":"GFD71","v":15},null,{"$f":"IF(GFO71*GFN71=0,\"\",GFO71*GFN71)","v":""},"Pallet Charge",15,null,null,"Pallet Charge",null,null,null,null,null,null,{"$f":"ROUNDUP(SUM(GGA45:GGA52),0)","v":0},{"$f":"GFS71","v":15},null,{"$f":"IF(GGD71*GGC71=0,\"\",GGD71*GGC71)","v":""},"Pallet Charge",15,null,null,"Pallet Charge",null,null,null,null,null,null,{"$f":"ROUNDUP(SUM(GGP45:GGP52),0)","v":0},{"$f":"GGH71","v":15},null,{"$f":"IF(GGS71*GGR71=0,\"\",GGS71*GGR71)","v":""},"Pallet Charge",15,null,null,"Pallet Charge",null,null,null,null,null,null,{"$f":"ROUNDUP(SUM(GHE45:GHE52),0)","v":0},{"$f":"GGW71","v":15},null,{"$f":"IF(GHH71*GHG71=0,\"\",GHH71*GHG71)","v":""},"Pallet Charge",15,null,null,"Pallet Charge",null,null,null,null,null,null,{"$f":"ROUNDUP(SUM(GHT45:GHT52),0)","v":0},{"$f":"GHL71","v":15},null,{"$f":"IF(GHW71*GHV71=0,\"\",GHW71*GHV71)","v":""},"Pallet Charge",15,null,null,"Pallet Charge",null,null,null,null,null,null,{"$f":"ROUNDUP(SUM(GII45:GII52),0)","v":0},{"$f":"GIA71","v":15},null,{"$f":"IF(GIL71*GIK71=0,\"\",GIL71*GIK71)","v":""},"Pallet Charge",15,null,null,"Pallet Charge",null,null,null,null,null,null,{"$f":"ROUNDUP(SUM(GIX45:GIX52),0)","v":0},{"$f":"GIP71","v":15},null,{"$f":"IF(GJA71*GIZ71=0,\"\",GJA71*GIZ71)","v":""},"Pallet Charge",15,null,null,"Pallet Charge",null,null,null,null,null,null,{"$f":"ROUNDUP(SUM(GJM45:GJM52),0)","v":0},{"$f":"GJE71","v":15},null,{"$f":"IF(GJP71*GJO71=0,\"\",GJP71*GJO71)","v":""},"Pallet Charge",15,null,null,"Pallet Charge",null,null,null,null,null,null,{"$f":"ROUNDUP(SUM(GKB45:GKB52),0)","v":0},{"$f":"GJT71","v":15},null,{"$f":"IF(GKE71*GKD71=0,\"\",GKE71*GKD71)","v":""},"Pallet Charge",15,null,null,"Pallet Charge",null,null,null,null,null,null,{"$f":"ROUNDUP(SUM(GKQ45:GKQ52),0)","v":0},{"$f":"GKI71","v":15},null,{"$f":"IF(GKT71*GKS71=0,\"\",GKT71*GKS71)","v":""},"Pallet Charge",15,null,null,"Pallet Charge",null,null,null,null,null,null,{"$f":"ROUNDUP(SUM(GLF45:GLF52),0)","v":0},{"$f":"GKX71","v":15},null,{"$f":"IF(GLI71*GLH71=0,\"\",GLI71*GLH71)","v":""},"Pallet Charge",15,null,null,"Pallet Charge",null,null,null,null,null,null,{"$f":"ROUNDUP(SUM(GLU45:GLU52),0)","v":0},{"$f":"GLM71","v":15},null,{"$f":"IF(GLX71*GLW71=0,\"\",GLX71*GLW71)","v":""},"Pallet Charge",15,null,null,"Pallet Charge",null,null,null,null,null,null,{"$f":"ROUNDUP(SUM(GMJ45:GMJ52),0)","v":0},{"$f":"GMB71","v":15},null,{"$f":"IF(GMM71*GML71=0,\"\",GMM71*GML71)","v":""},"Pallet Charge",15,null,null,"Pallet Charge",null,null,null,null,null,null,{"$f":"ROUNDUP(SUM(GMY45:GMY52),0)","v":0},{"$f":"GMQ71","v":15},null,{"$f":"IF(GNB71*GNA71=0,\"\",GNB71*GNA71)","v":""},"Pallet Charge",15,null,null,"Pallet Charge",null,null,null,null,null,null,{"$f":"ROUNDUP(SUM(GNN45:GNN52),0)","v":0},{"$f":"GNF71","v":15},null,{"$f":"IF(GNQ71*GNP71=0,\"\",GNQ71*GNP71)","v":""},"Pallet Charge",15,null,null,"Pallet Charge",null,null,null,null,null,null,{"$f":"ROUNDUP(SUM(GOC45:GOC52),0)","v":0},{"$f":"GNU71","v":15},null,{"$f":"IF(GOF71*GOE71=0,\"\",GOF71*GOE71)","v":""},"Pallet Charge",15,null,null,"Pallet Charge",null,null,null,null,null,null,{"$f":"ROUNDUP(SUM(GOR45:GOR52),0)","v":0},{"$f":"GOJ71","v":15},null,{"$f":"IF(GOU71*GOT71=0,\"\",GOU71*GOT71)","v":""},"Pallet Charge",15,null,null,"Pallet Charge",null,null,null,null,null,null,{"$f":"ROUNDUP(SUM(GPG45:GPG52),0)","v":0},{"$f":"GOY71","v":15},null,{"$f":"IF(GPJ71*GPI71=0,\"\",GPJ71*GPI71)","v":""},"Pallet Charge",15,null,null,"Pallet Charge",null,null,null,null,null,null,{"$f":"ROUNDUP(SUM(GPV45:GPV52),0)","v":0},{"$f":"GPN71","v":15},null,{"$f":"IF(GPY71*GPX71=0,\"\",GPY71*GPX71)","v":""},"Pallet Charge",15,null,null,"Pallet Charge",null,null,null,null,null,null,{"$f":"ROUNDUP(SUM(GQK45:GQK52),0)","v":0},{"$f":"GQC71","v":15},null,{"$f":"IF(GQN71*GQM71=0,\"\",GQN71*GQM71)","v":""},"Pallet Charge",15,null,null,"Pallet Charge",null,null,null,null,null,null,{"$f":"ROUNDUP(SUM(GQZ45:GQZ52),0)","v":0},{"$f":"GQR71","v":15},null,{"$f":"IF(GRC71*GRB71=0,\"\",GRC71*GRB71)","v":""},"Pallet Charge",15,null,null,"Pallet Charge",null,null,null,null,null,null,{"$f":"ROUNDUP(SUM(GRO45:GRO52),0)","v":0},{"$f":"GRG71","v":15},null,{"$f":"IF(GRR71*GRQ71=0,\"\",GRR71*GRQ71)","v":""},"Pallet Charge",15,null,null,"Pallet Charge",null,null,null,null,null,null,{"$f":"ROUNDUP(SUM(GSD45:GSD52),0)","v":0},{"$f":"GRV71","v":15},null,{"$f":"IF(GSG71*GSF71=0,\"\",GSG71*GSF71)","v":""},"Pallet Charge",15,null,null,"Pallet Charge",null,null,null,null,null,null,{"$f":"ROUNDUP(SUM(GSS45:GSS52),0)","v":0},{"$f":"GSK71","v":15},null,{"$f":"IF(GSV71*GSU71=0,\"\",GSV71*GSU71)","v":""},"Pallet Charge",15,null,null,"Pallet Charge",null,null,null,null,null,null,{"$f":"ROUNDUP(SUM(GTH45:GTH52),0)","v":0},{"$f":"GSZ71","v":15},null,{"$f":"IF(GTK71*GTJ71=0,\"\",GTK71*GTJ71)","v":""},"Pallet Charge",15,null,null,"Pallet Charge",null,null,null,null,null,null,{"$f":"ROUNDUP(SUM(GTW45:GTW52),0)","v":0},{"$f":"GTO71","v":15},null,{"$f":"IF(GTZ71*GTY71=0,\"\",GTZ71*GTY71)","v":""},"Pallet Charge",15,null,null,"Pallet Charge",null,null,null,null,null,null,{"$f":"ROUNDUP(SUM(GUL45:GUL52),0)","v":0},{"$f":"GUD71","v":15},null,{"$f":"IF(GUO71*GUN71=0,\"\",GUO71*GUN71)","v":""},"Pallet Charge",15,null,null,"Pallet Charge",null,null,null,null,null,null,{"$f":"ROUNDUP(SUM(GVA45:GVA52),0)","v":0},{"$f":"GUS71","v":15},null,{"$f":"IF(GVD71*GVC71=0,\"\",GVD71*GVC71)","v":""},"Pallet Charge",15,null,null,"Pallet Charge",null,null,null,null,null,null,{"$f":"ROUNDUP(SUM(GVP45:GVP52),0)","v":0},{"$f":"GVH71","v":15},null,{"$f":"IF(GVS71*GVR71=0,\"\",GVS71*GVR71)","v":""},"Pallet Charge",15,null,null,"Pallet Charge",null,null,null,null,null,null,{"$f":"ROUNDUP(SUM(GWE45:GWE52),0)","v":0},{"$f":"GVW71","v":15},null,{"$f":"IF(GWH71*GWG71=0,\"\",GWH71*GWG71)","v":""},"Pallet Charge",15,null,null,"Pallet Charge",null,null,null,null,null,null,{"$f":"ROUNDUP(SUM(GWT45:GWT52),0)","v":0},{"$f":"GWL71","v":15},null,{"$f":"IF(GWW71*GWV71=0,\"\",GWW71*GWV71)","v":""},"Pallet Charge",15,null,null,"Pallet Charge",null,null,null,null,null,null,{"$f":"ROUNDUP(SUM(GXI45:GXI52),0)","v":0},{"$f":"GXA71","v":15},null,{"$f":"IF(GXL71*GXK71=0,\"\",GXL71*GXK71)","v":""},"Pallet Charge",15,null,null,"Pallet Charge",null,null,null,null,null,null,{"$f":"ROUNDUP(SUM(GXX45:GXX52),0)","v":0},{"$f":"GXP71","v":15},null,{"$f":"IF(GYA71*GXZ71=0,\"\",GYA71*GXZ71)","v":""},"Pallet Charge",15,null,null,"Pallet Charge",null,null,null,null,null,null,{"$f":"ROUNDUP(SUM(GYM45:GYM52),0)","v":0},{"$f":"GYE71","v":15},null,{"$f":"IF(GYP71*GYO71=0,\"\",GYP71*GYO71)","v":""},"Pallet Charge",15,null,null,"Pallet Charge",null,null,null,null,null,null,{"$f":"ROUNDUP(SUM(GZB45:GZB52),0)","v":0},{"$f":"GYT71","v":15},null,{"$f":"IF(GZE71*GZD71=0,\"\",GZE71*GZD71)","v":""},"Pallet Charge",15,null,null,"Pallet Charge",null,null,null,null,null,null,{"$f":"ROUNDUP(SUM(GZQ45:GZQ52),0)","v":0},{"$f":"GZI71","v":15},null,{"$f":"IF(GZT71*GZS71=0,\"\",GZT71*GZS71)","v":""},"Pallet Charge",15,null,null,"Pallet Charge",null,null,null,null,null,null,{"$f":"ROUNDUP(SUM(HAF45:HAF52),0)","v":0},{"$f":"GZX71","v":15},null,{"$f":"IF(HAI71*HAH71=0,\"\",HAI71*HAH71)","v":""},"Pallet Charge",15,null,null,"Pallet Charge",null,null,null,null,null,null,{"$f":"ROUNDUP(SUM(HAU45:HAU52),0)","v":0},{"$f":"HAM71","v":15},null,{"$f":"IF(HAX71*HAW71=0,\"\",HAX71*HAW71)","v":""},"Pallet Charge",15,null,null,"Pallet Charge",null,null,null,null,null,null,{"$f":"ROUNDUP(SUM(HBJ45:HBJ52),0)","v":0},{"$f":"HBB71","v":15},null,{"$f":"IF(HBM71*HBL71=0,\"\",HBM71*HBL71)","v":""},"Pallet Charge",15,null,null,"Pallet Charge",null,null,null,null,null,null,{"$f":"ROUNDUP(SUM(HBY45:HBY52),0)","v":0},{"$f":"HBQ71","v":15},null,{"$f":"IF(HCB71*HCA71=0,\"\",HCB71*HCA71)","v":""},"Pallet Charge",15,null,null,"Pallet Charge",null,null,null,null,null,null,{"$f":"ROUNDUP(SUM(HCN45:HCN52),0)","v":0},{"$f":"HCF71","v":15},null,{"$f":"IF(HCQ71*HCP71=0,\"\",HCQ71*HCP71)","v":""},"Pallet Charge",15,null,null,"Pallet Charge",null,null,null,null,null,null,{"$f":"ROUNDUP(SUM(HDC45:HDC52),0)","v":0},{"$f":"HCU71","v":15},null,{"$f":"IF(HDF71*HDE71=0,\"\",HDF71*HDE71)","v":""},"Pallet Charge",15,null,null,"Pallet Charge",null,null,null,null,null,null,{"$f":"ROUNDUP(SUM(HDR45:HDR52),0)","v":0},{"$f":"HDJ71","v":15},null,{"$f":"IF(HDU71*HDT71=0,\"\",HDU71*HDT71)","v":""},"Pallet Charge",15,null,null,"Pallet Charge",null,null,null,null,null,null,{"$f":"ROUNDUP(SUM(HEG45:HEG52),0)","v":0},{"$f":"HDY71","v":15},null,{"$f":"IF(HEJ71*HEI71=0,\"\",HEJ71*HEI71)","v":""},"Pallet Charge",15,null,null,"Pallet Charge",null,null,null,null,null,null,{"$f":"ROUNDUP(SUM(HEV45:HEV52),0)","v":0},{"$f":"HEN71","v":15},null,{"$f":"IF(HEY71*HEX71=0,\"\",HEY71*HEX71)","v":""},"Pallet Charge",15,null,null,"Pallet Charge",null,null,null,null,null,null,{"$f":"ROUNDUP(SUM(HFK45:HFK52),0)","v":0},{"$f":"HFC71","v":15},null,{"$f":"IF(HFN71*HFM71=0,\"\",HFN71*HFM71)","v":""},"Pallet Charge",15,null,null,"Pallet Charge",null,null,null,null,null,null,{"$f":"ROUNDUP(SUM(HFZ45:HFZ52),0)","v":0},{"$f":"HFR71","v":15},null,{"$f":"IF(HGC71*HGB71=0,\"\",HGC71*HGB71)","v":""},"Pallet Charge",15,null,null,"Pallet Charge",null,null,null,null,null,null,{"$f":"ROUNDUP(SUM(HGO45:HGO52),0)","v":0},{"$f":"HGG71","v":15},null,{"$f":"IF(HGR71*HGQ71=0,\"\",HGR71*HGQ71)","v":""},"Pallet Charge",15,null,null,"Pallet Charge",null,null,null,null,null,null,{"$f":"ROUNDUP(SUM(HHD45:HHD52),0)","v":0},{"$f":"HGV71","v":15},null,{"$f":"IF(HHG71*HHF71=0,\"\",HHG71*HHF71)","v":""},"Pallet Charge",15,null,null,"Pallet Charge",null,null,null,null,null,null,{"$f":"ROUNDUP(SUM(HHS45:HHS52),0)","v":0},{"$f":"HHK71","v":15},null,{"$f":"IF(HHV71*HHU71=0,\"\",HHV71*HHU71)","v":""},"Pallet Charge",15,null,null,"Pallet Charge",null,null,null,null,null,null,{"$f":"ROUNDUP(SUM(HIH45:HIH52),0)","v":0},{"$f":"HHZ71","v":15},null,{"$f":"IF(HIK71*HIJ71=0,\"\",HIK71*HIJ71)","v":""},"Pallet Charge",15,null,null,"Pallet Charge",null,null,null,null,null,null,{"$f":"ROUNDUP(SUM(HIW45:HIW52),0)","v":0},{"$f":"HIO71","v":15},null,{"$f":"IF(HIZ71*HIY71=0,\"\",HIZ71*HIY71)","v":""},"Pallet Charge",15,null,null,"Pallet Charge",null,null,null,null,null,null,{"$f":"ROUNDUP(SUM(HJL45:HJL52),0)","v":0},{"$f":"HJD71","v":15},null,{"$f":"IF(HJO71*HJN71=0,\"\",HJO71*HJN71)","v":""},"Pallet Charge",15,null,null,"Pallet Charge",null,null,null,null,null,null,{"$f":"ROUNDUP(SUM(HKA45:HKA52),0)","v":0},{"$f":"HJS71","v":15},null,{"$f":"IF(HKD71*HKC71=0,\"\",HKD71*HKC71)","v":""},"Pallet Charge",15,null,null,"Pallet Charge",null,null,null,null,null,null,{"$f":"ROUNDUP(SUM(HKP45:HKP52),0)","v":0},{"$f":"HKH71","v":15},null,{"$f":"IF(HKS71*HKR71=0,\"\",HKS71*HKR71)","v":""},"Pallet Charge",15,null,null,"Pallet Charge",null,null,null,null,null,null,{"$f":"ROUNDUP(SUM(HLE45:HLE52),0)","v":0},{"$f":"HKW71","v":15},null,{"$f":"IF(HLH71*HLG71=0,\"\",HLH71*HLG71)","v":""},"Pallet Charge",15,null,null,"Pallet Charge",null,null,null,null,null,null,{"$f":"ROUNDUP(SUM(HLT45:HLT52),0)","v":0},{"$f":"HLL71","v":15},null,{"$f":"IF(HLW71*HLV71=0,\"\",HLW71*HLV71)","v":""},"Pallet Charge",15,null,null,"Pallet Charge",null,null,null,null,null,null,{"$f":"ROUNDUP(SUM(HMI45:HMI52),0)","v":0},{"$f":"HMA71","v":15},null,{"$f":"IF(HML71*HMK71=0,\"\",HML71*HMK71)","v":""},"Pallet Charge",15,null,null,"Pallet Charge",null,null,null,null,null,null,{"$f":"ROUNDUP(SUM(HMX45:HMX52),0)","v":0},{"$f":"HMP71","v":15},null,{"$f":"IF(HNA71*HMZ71=0,\"\",HNA71*HMZ71)","v":""},"Pallet Charge",15,null,null,"Pallet Charge",null,null,null,null,null,null,{"$f":"ROUNDUP(SUM(HNM45:HNM52),0)","v":0},{"$f":"HNE71","v":15},null,{"$f":"IF(HNP71*HNO71=0,\"\",HNP71*HNO71)","v":""},"Pallet Charge",15,null,null,"Pallet Charge",null,null,null,null,null,null,{"$f":"ROUNDUP(SUM(HOB45:HOB52),0)","v":0},{"$f":"HNT71","v":15},null,{"$f":"IF(HOE71*HOD71=0,\"\",HOE71*HOD71)","v":""},"Pallet Charge",15,null,null,"Pallet Charge",null,null,null,null,null,null,{"$f":"ROUNDUP(SUM(HOQ45:HOQ52),0)","v":0},{"$f":"HOI71","v":15},null,{"$f":"IF(HOT71*HOS71=0,\"\",HOT71*HOS71)","v":""},"Pallet Charge",15,null,null,"Pallet Charge",null,null,null,null,null,null,{"$f":"ROUNDUP(SUM(HPF45:HPF52),0)","v":0},{"$f":"HOX71","v":15},null,{"$f":"IF(HPI71*HPH71=0,\"\",HPI71*HPH71)","v":""},"Pallet Charge",15,null,null,"Pallet Charge",null,null,null,null,null,null,{"$f":"ROUNDUP(SUM(HPU45:HPU52),0)","v":0},{"$f":"HPM71","v":15},null,{"$f":"IF(HPX71*HPW71=0,\"\",HPX71*HPW71)","v":""},"Pallet Charge",15,null,null,"Pallet Charge",null,null,null,null,null,null,{"$f":"ROUNDUP(SUM(HQJ45:HQJ52),0)","v":0},{"$f":"HQB71","v":15},null,{"$f":"IF(HQM71*HQL71=0,\"\",HQM71*HQL71)","v":""},"Pallet Charge",15,null,null,"Pallet Charge",null,null,null,null,null,null,{"$f":"ROUNDUP(SUM(HQY45:HQY52),0)","v":0},{"$f":"HQQ71","v":15},null,{"$f":"IF(HRB71*HRA71=0,\"\",HRB71*HRA71)","v":""},"Pallet Charge",15,null,null,"Pallet Charge",null,null,null,null,null,null,{"$f":"ROUNDUP(SUM(HRN45:HRN52),0)","v":0},{"$f":"HRF71","v":15},null,{"$f":"IF(HRQ71*HRP71=0,\"\",HRQ71*HRP71)","v":""},"Pallet Charge",15,null,null,"Pallet Charge",null,null,null,null,null,null,{"$f":"ROUNDUP(SUM(HSC45:HSC52),0)","v":0},{"$f":"HRU71","v":15},null,{"$f":"IF(HSF71*HSE71=0,\"\",HSF71*HSE71)","v":""},"Pallet Charge",15,null,null,"Pallet Charge",null,null,null,null,null,null,{"$f":"ROUNDUP(SUM(HSR45:HSR52),0)","v":0},{"$f":"HSJ71","v":15},null,{"$f":"IF(HSU71*HST71=0,\"\",HSU71*HST71)","v":""},"Pallet Charge",15,null,null,"Pallet Charge",null,null,null,null,null,null,{"$f":"ROUNDUP(SUM(HTG45:HTG52),0)","v":0},{"$f":"HSY71","v":15},null,{"$f":"IF(HTJ71*HTI71=0,\"\",HTJ71*HTI71)","v":""},"Pallet Charge",15,null,null,"Pallet Charge",null,null,null,null,null,null,{"$f":"ROUNDUP(SUM(HTV45:HTV52),0)","v":0},{"$f":"HTN71","v":15},null,{"$f":"IF(HTY71*HTX71=0,\"\",HTY71*HTX71)","v":""},"Pallet Charge",15,null,null,"Pallet Charge",null,null,null,null,null,null,{"$f":"ROUNDUP(SUM(HUK45:HUK52),0)","v":0},{"$f":"HUC71","v":15},null,{"$f":"IF(HUN71*HUM71=0,\"\",HUN71*HUM71)","v":""},"Pallet Charge",15,null,null,"Pallet Charge",null,null,null,null,null,null,{"$f":"ROUNDUP(SUM(HUZ45:HUZ52),0)","v":0},{"$f":"HUR71","v":15},null,{"$f":"IF(HVC71*HVB71=0,\"\",HVC71*HVB71)","v":""},"Pallet Charge",15,null,null,"Pallet Charge",null,null,null,null,null,null,{"$f":"ROUNDUP(SUM(HVO45:HVO52),0)","v":0},{"$f":"HVG71","v":15},null,{"$f":"IF(HVR71*HVQ71=0,\"\",HVR71*HVQ71)","v":""},"Pallet Charge",15,null,null,"Pallet Charge",null,null,null,null,null,null,{"$f":"ROUNDUP(SUM(HWD45:HWD52),0)","v":0},{"$f":"HVV71","v":15},null,{"$f":"IF(HWG71*HWF71=0,\"\",HWG71*HWF71)","v":""},"Pallet Charge",15,null,null,"Pallet Charge",null,null,null,null,null,null,{"$f":"ROUNDUP(SUM(HWS45:HWS52),0)","v":0},{"$f":"HWK71","v":15},null,{"$f":"IF(HWV71*HWU71=0,\"\",HWV71*HWU71)","v":""},"Pallet Charge",15,null,null,"Pallet Charge",null,null,null,null,null,null,{"$f":"ROUNDUP(SUM(HXH45:HXH52),0)","v":0},{"$f":"HWZ71","v":15},null,{"$f":"IF(HXK71*HXJ71=0,\"\",HXK71*HXJ71)","v":""},"Pallet Charge",15,null,null,"Pallet Charge",null,null,null,null,null,null,{"$f":"ROUNDUP(SUM(HXW45:HXW52),0)","v":0},{"$f":"HXO71","v":15},null,{"$f":"IF(HXZ71*HXY71=0,\"\",HXZ71*HXY71)","v":""},"Pallet Charge",15,null,null,"Pallet Charge",null,null,null,null,null,null,{"$f":"ROUNDUP(SUM(HYL45:HYL52),0)","v":0},{"$f":"HYD71","v":15},null,{"$f":"IF(HYO71*HYN71=0,\"\",HYO71*HYN71)","v":""},"Pallet Charge",15,null,null,"Pallet Charge",null,null,null,null,null,null,{"$f":"ROUNDUP(SUM(HZA45:HZA52),0)","v":0},{"$f":"HYS71","v":15},null,{"$f":"IF(HZD71*HZC71=0,\"\",HZD71*HZC71)","v":""},"Pallet Charge",15,null,null,"Pallet Charge",null,null,null,null,null,null,{"$f":"ROUNDUP(SUM(HZP45:HZP52),0)","v":0},{"$f":"HZH71","v":15},null,{"$f":"IF(HZS71*HZR71=0,\"\",HZS71*HZR71)","v":""},"Pallet Charge",15,null,null,"Pallet Charge",null,null,null,null,null,null,{"$f":"ROUNDUP(SUM(IAE45:IAE52),0)","v":0},{"$f":"HZW71","v":15},null,{"$f":"IF(IAH71*IAG71=0,\"\",IAH71*IAG71)","v":""},"Pallet Charge",15,null,null,"Pallet Charge",null,null,null,null,null,null,{"$f":"ROUNDUP(SUM(IAT45:IAT52),0)","v":0},{"$f":"IAL71","v":15},null,{"$f":"IF(IAW71*IAV71=0,\"\",IAW71*IAV71)","v":""},"Pallet Charge",15,null,null,"Pallet Charge",null,null,null,null,null,null,{"$f":"ROUNDUP(SUM(IBI45:IBI52),0)","v":0},{"$f":"IBA71","v":15},null,{"$f":"IF(IBL71*IBK71=0,\"\",IBL71*IBK71)","v":""},"Pallet Charge",15,null,null,"Pallet Charge",null,null,null,null,null,null,{"$f":"ROUNDUP(SUM(IBX45:IBX52),0)","v":0},{"$f":"IBP71","v":15},null,{"$f":"IF(ICA71*IBZ71=0,\"\",ICA71*IBZ71)","v":""},"Pallet Charge",15,null,null,"Pallet Charge",null,null,null,null,null,null,{"$f":"ROUNDUP(SUM(ICM45:ICM52),0)","v":0},{"$f":"ICE71","v":15},null,{"$f":"IF(ICP71*ICO71=0,\"\",ICP71*ICO71)","v":""},"Pallet Charge",15,null,null,"Pallet Charge",null,null,null,null,null,null,{"$f":"ROUNDUP(SUM(IDB45:IDB52),0)","v":0},{"$f":"ICT71","v":15},null,{"$f":"IF(IDE71*IDD71=0,\"\",IDE71*IDD71)","v":""},"Pallet Charge",15,null,null,"Pallet Charge",null,null,null,null,null,null,{"$f":"ROUNDUP(SUM(IDQ45:IDQ52),0)","v":0},{"$f":"IDI71","v":15},null,{"$f":"IF(IDT71*IDS71=0,\"\",IDT71*IDS71)","v":""},"Pallet Charge",15,null,null,"Pallet Charge",null,null,null,null,null,null,{"$f":"ROUNDUP(SUM(IEF45:IEF52),0)","v":0},{"$f":"IDX71","v":15},null,{"$f":"IF(IEI71*IEH71=0,\"\",IEI71*IEH71)","v":""},"Pallet Charge",15,null,null,"Pallet Charge",null,null,null,null,null,null,{"$f":"ROUNDUP(SUM(IEU45:IEU52),0)","v":0},{"$f":"IEM71","v":15},null,{"$f":"IF(IEX71*IEW71=0,\"\",IEX71*IEW71)","v":""},"Pallet Charge",15,null,null,"Pallet Charge",null,null,null,null,null,null,{"$f":"ROUNDUP(SUM(IFJ45:IFJ52),0)","v":0},{"$f":"IFB71","v":15},null,{"$f":"IF(IFM71*IFL71=0,\"\",IFM71*IFL71)","v":""},"Pallet Charge",15,null,null,"Pallet Charge",null,null,null,null,null,null,{"$f":"ROUNDUP(SUM(IFY45:IFY52),0)","v":0},{"$f":"IFQ71","v":15},null,{"$f":"IF(IGB71*IGA71=0,\"\",IGB71*IGA71)","v":""},"Pallet Charge",15,null,null,"Pallet Charge",null,null,null,null,null,null,{"$f":"ROUNDUP(SUM(IGN45:IGN52),0)","v":0},{"$f":"IGF71","v":15},null,{"$f":"IF(IGQ71*IGP71=0,\"\",IGQ71*IGP71)","v":""},"Pallet Charge",15,null,null,"Pallet Charge",null,null,null,null,null,null,{"$f":"ROUNDUP(SUM(IHC45:IHC52),0)","v":0},{"$f":"IGU71","v":15},null,{"$f":"IF(IHF71*IHE71=0,\"\",IHF71*IHE71)","v":""},"Pallet Charge",15,null,null,"Pallet Charge",null,null,null,null,null,null,{"$f":"ROUNDUP(SUM(IHR45:IHR52),0)","v":0},{"$f":"IHJ71","v":15},null,{"$f":"IF(IHU71*IHT71=0,\"\",IHU71*IHT71)","v":""},"Pallet Charge",15,null,null,"Pallet Charge",null,null,null,null,null,null,{"$f":"ROUNDUP(SUM(IIG45:IIG52),0)","v":0},{"$f":"IHY71","v":15},null,{"$f":"IF(IIJ71*III71=0,\"\",IIJ71*III71)","v":""},"Pallet Charge",15,null,null,"Pallet Charge",null,null,null,null,null,null,{"$f":"ROUNDUP(SUM(IIV45:IIV52),0)","v":0},{"$f":"IIN71","v":15},null,{"$f":"IF(IIY71*IIX71=0,\"\",IIY71*IIX71)","v":""},"Pallet Charge",15,null,null,"Pallet Charge",null,null,null,null,null,null,{"$f":"ROUNDUP(SUM(IJK45:IJK52),0)","v":0},{"$f":"IJC71","v":15},null,{"$f":"IF(IJN71*IJM71=0,\"\",IJN71*IJM71)","v":""},"Pallet Charge",15,null,null,"Pallet Charge",null,null,null,null,null,null,{"$f":"ROUNDUP(SUM(IJZ45:IJZ52),0)","v":0},{"$f":"IJR71","v":15},null,{"$f":"IF(IKC71*IKB71=0,\"\",IKC71*IKB71)","v":""},"Pallet Charge",15,null,null,"Pallet Charge",null,null,null,null,null,null,{"$f":"ROUNDUP(SUM(IKO45:IKO52),0)","v":0},{"$f":"IKG71","v":15},null,{"$f":"IF(IKR71*IKQ71=0,\"\",IKR71*IKQ71)","v":""},"Pallet Charge",15,null,null,"Pallet Charge",null,null,null,null,null,null,{"$f":"ROUNDUP(SUM(ILD45:ILD52),0)","v":0},{"$f":"IKV71","v":15},null,{"$f":"IF(ILG71*ILF71=0,\"\",ILG71*ILF71)","v":""},"Pallet Charge",15,null,null,"Pallet Charge",null,null,null,null,null,null,{"$f":"ROUNDUP(SUM(ILS45:ILS52),0)","v":0},{"$f":"ILK71","v":15},null,{"$f":"IF(ILV71*ILU71=0,\"\",ILV71*ILU71)","v":""},"Pallet Charge",15,null,null,"Pallet Charge",null,null,null,null,null,null,{"$f":"ROUNDUP(SUM(IMH45:IMH52),0)","v":0},{"$f":"ILZ71","v":15},null,{"$f":"IF(IMK71*IMJ71=0,\"\",IMK71*IMJ71)","v":""},"Pallet Charge",15,null,null,"Pallet Charge",null,null,null,null,null,null,{"$f":"ROUNDUP(SUM(IMW45:IMW52),0)","v":0},{"$f":"IMO71","v":15},null,{"$f":"IF(IMZ71*IMY71=0,\"\",IMZ71*IMY71)","v":""},"Pallet Charge",15,null,null,"Pallet Charge",null,null,null,null,null,null,{"$f":"ROUNDUP(SUM(INL45:INL52),0)","v":0},{"$f":"IND71","v":15},null,{"$f":"IF(INO71*INN71=0,\"\",INO71*INN71)","v":""},"Pallet Charge",15,null,null,"Pallet Charge",null,null,null,null,null,null,{"$f":"ROUNDUP(SUM(IOA45:IOA52),0)","v":0},{"$f":"INS71","v":15},null,{"$f":"IF(IOD71*IOC71=0,\"\",IOD71*IOC71)","v":""},"Pallet Charge",15,null,null,"Pallet Charge",null,null,null,null,null,null,{"$f":"ROUNDUP(SUM(IOP45:IOP52),0)","v":0},{"$f":"IOH71","v":15},null,{"$f":"IF(IOS71*IOR71=0,\"\",IOS71*IOR71)","v":""},"Pallet Charge",15,null,null,"Pallet Charge",null,null,null,null,null,null,{"$f":"ROUNDUP(SUM(IPE45:IPE52),0)","v":0},{"$f":"IOW71","v":15},null,{"$f":"IF(IPH71*IPG71=0,\"\",IPH71*IPG71)","v":""},"Pallet Charge",15,null,null,"Pallet Charge",null,null,null,null,null,null,{"$f":"ROUNDUP(SUM(IPT45:IPT52),0)","v":0},{"$f":"IPL71","v":15},null,{"$f":"IF(IPW71*IPV71=0,\"\",IPW71*IPV71)","v":""},"Pallet Charge",15,null,null,"Pallet Charge",null,null,null,null,null,null,{"$f":"ROUNDUP(SUM(IQI45:IQI52),0)","v":0},{"$f":"IQA71","v":15},null,{"$f":"IF(IQL71*IQK71=0,\"\",IQL71*IQK71)","v":""},"Pallet Charge",15,null,null,"Pallet Charge",null,null,null,null,null,null,{"$f":"ROUNDUP(SUM(IQX45:IQX52),0)","v":0},{"$f":"IQP71","v":15},null,{"$f":"IF(IRA71*IQZ71=0,\"\",IRA71*IQZ71)","v":""},"Pallet Charge",15,null,null,"Pallet Charge",null,null,null,null,null,null,{"$f":"ROUNDUP(SUM(IRM45:IRM52),0)","v":0},{"$f":"IRE71","v":15},null,{"$f":"IF(IRP71*IRO71=0,\"\",IRP71*IRO71)","v":""},"Pallet Charge",15,null,null,"Pallet Charge",null,null,null,null,null,null,{"$f":"ROUNDUP(SUM(ISB45:ISB52),0)","v":0},{"$f":"IRT71","v":15},null,{"$f":"IF(ISE71*ISD71=0,\"\",ISE71*ISD71)","v":""},"Pallet Charge",15,null,null,"Pallet Charge",null,null,null,null,null,null,{"$f":"ROUNDUP(SUM(ISQ45:ISQ52),0)","v":0},{"$f":"ISI71","v":15},null,{"$f":"IF(IST71*ISS71=0,\"\",IST71*ISS71)","v":""},"Pallet Charge",15,null,null,"Pallet Charge",null,null,null,null,null,null,{"$f":"ROUNDUP(SUM(ITF45:ITF52),0)","v":0},{"$f":"ISX71","v":15},null,{"$f":"IF(ITI71*ITH71=0,\"\",ITI71*ITH71)","v":""},"Pallet Charge",15,null,null,"Pallet Charge",null,null,null,null,null,null,{"$f":"ROUNDUP(SUM(ITU45:ITU52),0)","v":0},{"$f":"ITM71","v":15},null,{"$f":"IF(ITX71*ITW71=0,\"\",ITX71*ITW71)","v":""},"Pallet Charge",15,null,null,"Pallet Charge",null,null,null,null,null,null,{"$f":"ROUNDUP(SUM(IUJ45:IUJ52),0)","v":0},{"$f":"IUB71","v":15},null,{"$f":"IF(IUM71*IUL71=0,\"\",IUM71*IUL71)","v":""},"Pallet Charge",15,null,null,"Pallet Charge",null,null,null,null,null,null,{"$f":"ROUNDUP(SUM(IUY45:IUY52),0)","v":0},{"$f":"IUQ71","v":15},null,{"$f":"IF(IVB71*IVA71=0,\"\",IVB71*IVA71)","v":""},"Pallet Charge",15,null,null,"Pallet Charge",null,null,null,null,null,null,{"$f":"ROUNDUP(SUM(IVN45:IVN52),0)","v":0},{"$f":"IVF71","v":15},null,{"$f":"IF(IVQ71*IVP71=0,\"\",IVQ71*IVP71)","v":""},"Pallet Charge",15,null,null,"Pallet Charge",null,null,null,null,null,null,{"$f":"ROUNDUP(SUM(IWC45:IWC52),0)","v":0},{"$f":"IVU71","v":15},null,{"$f":"IF(IWF71*IWE71=0,\"\",IWF71*IWE71)","v":""},"Pallet Charge",15,null,null,"Pallet Charge",null,null,null,null,null,null,{"$f":"ROUNDUP(SUM(IWR45:IWR52),0)","v":0},{"$f":"IWJ71","v":15},null,{"$f":"IF(IWU71*IWT71=0,\"\",IWU71*IWT71)","v":""},"Pallet Charge",15,null,null,"Pallet Charge",null,null,null,null,null,null,{"$f":"ROUNDUP(SUM(IXG45:IXG52),0)","v":0},{"$f":"IWY71","v":15},null,{"$f":"IF(IXJ71*IXI71=0,\"\",IXJ71*IXI71)","v":""},"Pallet Charge",15,null,null,"Pallet Charge",null,null,null,null,null,null,{"$f":"ROUNDUP(SUM(IXV45:IXV52),0)","v":0},{"$f":"IXN71","v":15},null,{"$f":"IF(IXY71*IXX71=0,\"\",IXY71*IXX71)","v":""},"Pallet Charge",15,null,null,"Pallet Charge",null,null,null,null,null,null,{"$f":"ROUNDUP(SUM(IYK45:IYK52),0)","v":0},{"$f":"IYC71","v":15},null,{"$f":"IF(IYN71*IYM71=0,\"\",IYN71*IYM71)","v":""},"Pallet Charge",15,null,null,"Pallet Charge",null,null,null,null,null,null,{"$f":"ROUNDUP(SUM(IYZ45:IYZ52),0)","v":0},{"$f":"IYR71","v":15},null,{"$f":"IF(IZC71*IZB71=0,\"\",IZC71*IZB71)","v":""},"Pallet Charge",15,null,null,"Pallet Charge",null,null,null,null,null,null,{"$f":"ROUNDUP(SUM(IZO45:IZO52),0)","v":0},{"$f":"IZG71","v":15},null,{"$f":"IF(IZR71*IZQ71=0,\"\",IZR71*IZQ71)","v":""},"Pallet Charge",15,null,null,"Pallet Charge",null,null,null,null,null,null,{"$f":"ROUNDUP(SUM(JAD45:JAD52),0)","v":0},{"$f":"IZV71","v":15},null,{"$f":"IF(JAG71*JAF71=0,\"\",JAG71*JAF71)","v":""},"Pallet Charge",15,null,null,"Pallet Charge",null,null,null,null,null,null,{"$f":"ROUNDUP(SUM(JAS45:JAS52),0)","v":0},{"$f":"JAK71","v":15},null,{"$f":"IF(JAV71*JAU71=0,\"\",JAV71*JAU71)","v":""},"Pallet Charge",15,null,null,"Pallet Charge",null,null,null,null,null,null,{"$f":"ROUNDUP(SUM(JBH45:JBH52),0)","v":0},{"$f":"JAZ71","v":15},null,{"$f":"IF(JBK71*JBJ71=0,\"\",JBK71*JBJ71)","v":""},"Pallet Charge",15,null,null,"Pallet Charge",null,null,null,null,null,null,{"$f":"ROUNDUP(SUM(JBW45:JBW52),0)","v":0},{"$f":"JBO71","v":15},null,{"$f":"IF(JBZ71*JBY71=0,\"\",JBZ71*JBY71)","v":""},"Pallet Charge",15,null,null,"Pallet Charge",null,null,null,null,null,null,{"$f":"ROUNDUP(SUM(JCL45:JCL52),0)","v":0},{"$f":"JCD71","v":15},null,{"$f":"IF(JCO71*JCN71=0,\"\",JCO71*JCN71)","v":""},"Pallet Charge",15,null,null,"Pallet Charge",null,null,null,null,null,null,{"$f":"ROUNDUP(SUM(JDA45:JDA52),0)","v":0},{"$f":"JCS71","v":15},null,{"$f":"IF(JDD71*JDC71=0,\"\",JDD71*JDC71)","v":""},"Pallet Charge",15,null,null,"Pallet Charge",null,null,null,null,null,null,{"$f":"ROUNDUP(SUM(JDP45:JDP52),0)","v":0},{"$f":"JDH71","v":15},null,{"$f":"IF(JDS71*JDR71=0,\"\",JDS71*JDR71)","v":""},"Pallet Charge",15,null,null,"Pallet Charge",null,null,null,null,null,null,{"$f":"ROUNDUP(SUM(JEE45:JEE52),0)","v":0},{"$f":"JDW71","v":15},null,{"$f":"IF(JEH71*JEG71=0,\"\",JEH71*JEG71)","v":""},"Pallet Charge",15,null,null,"Pallet Charge",null,null,null,null,null,null,{"$f":"ROUNDUP(SUM(JET45:JET52),0)","v":0},{"$f":"JEL71","v":15},null,{"$f":"IF(JEW71*JEV71=0,\"\",JEW71*JEV71)","v":""},"Pallet Charge",15,null,null,"Pallet Charge",null,null,null,null,null,null,{"$f":"ROUNDUP(SUM(JFI45:JFI52),0)","v":0},{"$f":"JFA71","v":15},null,{"$f":"IF(JFL71*JFK71=0,\"\",JFL71*JFK71)","v":""},"Pallet Charge",15,null,null,"Pallet Charge",null,null,null,null,null,null,{"$f":"ROUNDUP(SUM(JFX45:JFX52),0)","v":0},{"$f":"JFP71","v":15},null,{"$f":"IF(JGA71*JFZ71=0,\"\",JGA71*JFZ71)","v":""},"Pallet Charge",15,null,null,"Pallet Charge",null,null,null,null,null,null,{"$f":"ROUNDUP(SUM(JGM45:JGM52),0)","v":0},{"$f":"JGE71","v":15},null,{"$f":"IF(JGP71*JGO71=0,\"\",JGP71*JGO71)","v":""},"Pallet Charge",15,null,null,"Pallet Charge",null,null,null,null,null,null,{"$f":"ROUNDUP(SUM(JHB45:JHB52),0)","v":0},{"$f":"JGT71","v":15},null,{"$f":"IF(JHE71*JHD71=0,\"\",JHE71*JHD71)","v":""},"Pallet Charge",15,null,null,"Pallet Charge",null,null,null,null,null,null,{"$f":"ROUNDUP(SUM(JHQ45:JHQ52),0)","v":0},{"$f":"JHI71","v":15},null,{"$f":"IF(JHT71*JHS71=0,\"\",JHT71*JHS71)","v":""},"Pallet Charge",15,null,null,"Pallet Charge",null,null,null,null,null,null,{"$f":"ROUNDUP(SUM(JIF45:JIF52),0)","v":0},{"$f":"JHX71","v":15},null,{"$f":"IF(JII71*JIH71=0,\"\",JII71*JIH71)","v":""},"Pallet Charge",15,null,null,"Pallet Charge",null,null,null,null,null,null,{"$f":"ROUNDUP(SUM(JIU45:JIU52),0)","v":0},{"$f":"JIM71","v":15},null,{"$f":"IF(JIX71*JIW71=0,\"\",JIX71*JIW71)","v":""},"Pallet Charge",15,null,null,"Pallet Charge",null,null,null,null,null,null,{"$f":"ROUNDUP(SUM(JJJ45:JJJ52),0)","v":0},{"$f":"JJB71","v":15},null,{"$f":"IF(JJM71*JJL71=0,\"\",JJM71*JJL71)","v":""},"Pallet Charge",15,null,null,"Pallet Charge",null,null,null,null,null,null,{"$f":"ROUNDUP(SUM(JJY45:JJY52),0)","v":0},{"$f":"JJQ71","v":15},null,{"$f":"IF(JKB71*JKA71=0,\"\",JKB71*JKA71)","v":""},"Pallet Charge",15,null,null,"Pallet Charge",null,null,null,null,null,null,{"$f":"ROUNDUP(SUM(JKN45:JKN52),0)","v":0},{"$f":"JKF71","v":15},null,{"$f":"IF(JKQ71*JKP71=0,\"\",JKQ71*JKP71)","v":""},"Pallet Charge",15,null,null,"Pallet Charge",null,null,null,null,null,null,{"$f":"ROUNDUP(SUM(JLC45:JLC52),0)","v":0},{"$f":"JKU71","v":15},null,{"$f":"IF(JLF71*JLE71=0,\"\",JLF71*JLE71)","v":""},"Pallet Charge",15,null,null,"Pallet Charge",null,null,null,null,null,null,{"$f":"ROUNDUP(SUM(JLR45:JLR52),0)","v":0},{"$f":"JLJ71","v":15},null,{"$f":"IF(JLU71*JLT71=0,\"\",JLU71*JLT71)","v":""},"Pallet Charge",15,null,null,"Pallet Charge",null,null,null,null,null,null,{"$f":"ROUNDUP(SUM(JMG45:JMG52),0)","v":0},{"$f":"JLY71","v":15},null,{"$f":"IF(JMJ71*JMI71=0,\"\",JMJ71*JMI71)","v":""},"Pallet Charge",15,null,null,"Pallet Charge",null,null,null,null,null,null,{"$f":"ROUNDUP(SUM(JMV45:JMV52),0)","v":0},{"$f":"JMN71","v":15},null,{"$f":"IF(JMY71*JMX71=0,\"\",JMY71*JMX71)","v":""},"Pallet Charge",15,null,null,"Pallet Charge",null,null,null,null,null,null,{"$f":"ROUNDUP(SUM(JNK45:JNK52),0)","v":0},{"$f":"JNC71","v":15},null,{"$f":"IF(JNN71*JNM71=0,\"\",JNN71*JNM71)","v":""},"Pallet Charge",15,null,null,"Pallet Charge",null,null,null,null,null,null,{"$f":"ROUNDUP(SUM(JNZ45:JNZ52),0)","v":0},{"$f":"JNR71","v":15},null,{"$f":"IF(JOC71*JOB71=0,\"\",JOC71*JOB71)","v":""},"Pallet Charge",15,null,null,"Pallet Charge",null,null,null,null,null,null,{"$f":"ROUNDUP(SUM(JOO45:JOO52),0)","v":0},{"$f":"JOG71","v":15},null,{"$f":"IF(JOR71*JOQ71=0,\"\",JOR71*JOQ71)","v":""},"Pallet Charge",15,null,null,"Pallet Charge",null,null,null,null,null,null,{"$f":"ROUNDUP(SUM(JPD45:JPD52),0)","v":0},{"$f":"JOV71","v":15},null,{"$f":"IF(JPG71*JPF71=0,\"\",JPG71*JPF71)","v":""},"Pallet Charge",15,null,null,"Pallet Charge",null,null,null,null,null,null,{"$f":"ROUNDUP(SUM(JPS45:JPS52),0)","v":0},{"$f":"JPK71","v":15},null,{"$f":"IF(JPV71*JPU71=0,\"\",JPV71*JPU71)","v":""},"Pallet Charge",15,null,null,"Pallet Charge",null,null,null,null,null,null,{"$f":"ROUNDUP(SUM(JQH45:JQH52),0)","v":0},{"$f":"JPZ71","v":15},null,{"$f":"IF(JQK71*JQJ71=0,\"\",JQK71*JQJ71)","v":""},"Pallet Charge",15,null,null,"Pallet Charge",null,null,null,null,null,null,{"$f":"ROUNDUP(SUM(JQW45:JQW52),0)","v":0},{"$f":"JQO71","v":15},null,{"$f":"IF(JQZ71*JQY71=0,\"\",JQZ71*JQY71)","v":""},"Pallet Charge",15,null,null,"Pallet Charge",null,null,null,null,null,null,{"$f":"ROUNDUP(SUM(JRL45:JRL52),0)","v":0},{"$f":"JRD71","v":15},null,{"$f":"IF(JRO71*JRN71=0,\"\",JRO71*JRN71)","v":""},"Pallet Charge",15,null,null,"Pallet Charge",null,null,null,null,null,null,{"$f":"ROUNDUP(SUM(JSA45:JSA52),0)","v":0},{"$f":"JRS71","v":15},null,{"$f":"IF(JSD71*JSC71=0,\"\",JSD71*JSC71)","v":""},"Pallet Charge",15,null,null,"Pallet Charge",null,null,null,null,null,null,{"$f":"ROUNDUP(SUM(JSP45:JSP52),0)","v":0},{"$f":"JSH71","v":15},null,{"$f":"IF(JSS71*JSR71=0,\"\",JSS71*JSR71)","v":""},"Pallet Charge",15,null,null,"Pallet Charge",null,null,null,null,null,null,{"$f":"ROUNDUP(SUM(JTE45:JTE52),0)","v":0},{"$f":"JSW71","v":15},null,{"$f":"IF(JTH71*JTG71=0,\"\",JTH71*JTG71)","v":""},"Pallet Charge",15,null,null,"Pallet Charge",null,null,null,null,null,null,{"$f":"ROUNDUP(SUM(JTT45:JTT52),0)","v":0},{"$f":"JTL71","v":15},null,{"$f":"IF(JTW71*JTV71=0,\"\",JTW71*JTV71)","v":""},"Pallet Charge",15,null,null,"Pallet Charge",null,null,null,null,null,null,{"$f":"ROUNDUP(SUM(JUI45:JUI52),0)","v":0},{"$f":"JUA71","v":15},null,{"$f":"IF(JUL71*JUK71=0,\"\",JUL71*JUK71)","v":""},"Pallet Charge",15,null,null,"Pallet Charge",null,null,null,null,null,null,{"$f":"ROUNDUP(SUM(JUX45:JUX52),0)","v":0},{"$f":"JUP71","v":15},null,{"$f":"IF(JVA71*JUZ71=0,\"\",JVA71*JUZ71)","v":""},"Pallet Charge",15,null,null,"Pallet Charge",null,null,null,null,null,null,{"$f":"ROUNDUP(SUM(JVM45:JVM52),0)","v":0},{"$f":"JVE71","v":15},null,{"$f":"IF(JVP71*JVO71=0,\"\",JVP71*JVO71)","v":""},"Pallet Charge",15,null,null,"Pallet Charge",null,null,null,null,null,null,{"$f":"ROUNDUP(SUM(JWB45:JWB52),0)","v":0},{"$f":"JVT71","v":15},null,{"$f":"IF(JWE71*JWD71=0,\"\",JWE71*JWD71)","v":""},"Pallet Charge",15,null,null,"Pallet Charge",null,null,null,null,null,null,{"$f":"ROUNDUP(SUM(JWQ45:JWQ52),0)","v":0},{"$f":"JWI71","v":15},null,{"$f":"IF(JWT71*JWS71=0,\"\",JWT71*JWS71)","v":""},"Pallet Charge",15,null,null,"Pallet Charge",null,null,null,null,null,null,{"$f":"ROUNDUP(SUM(JXF45:JXF52),0)","v":0},{"$f":"JWX71","v":15},null,{"$f":"IF(JXI71*JXH71=0,\"\",JXI71*JXH71)","v":""},"Pallet Charge",15,null,null,"Pallet Charge",null,null,null,null,null,null,{"$f":"ROUNDUP(SUM(JXU45:JXU52),0)","v":0},{"$f":"JXM71","v":15},null,{"$f":"IF(JXX71*JXW71=0,\"\",JXX71*JXW71)","v":""},"Pallet Charge",15,null,null,"Pallet Charge",null,null,null,null,null,null,{"$f":"ROUNDUP(SUM(JYJ45:JYJ52),0)","v":0},{"$f":"JYB71","v":15},null,{"$f":"IF(JYM71*JYL71=0,\"\",JYM71*JYL71)","v":""},"Pallet Charge",15,null,null,"Pallet Charge",null,null,null,null,null,null,{"$f":"ROUNDUP(SUM(JYY45:JYY52),0)","v":0},{"$f":"JYQ71","v":15},null,{"$f":"IF(JZB71*JZA71=0,\"\",JZB71*JZA71)","v":""},"Pallet Charge",15,null,null,"Pallet Charge",null,null,null,null,null,null,{"$f":"ROUNDUP(SUM(JZN45:JZN52),0)","v":0},{"$f":"JZF71","v":15},null,{"$f":"IF(JZQ71*JZP71=0,\"\",JZQ71*JZP71)","v":""},"Pallet Charge",15,null,null,"Pallet Charge",null,null,null,null,null,null,{"$f":"ROUNDUP(SUM(KAC45:KAC52),0)","v":0},{"$f":"JZU71","v":15},null,{"$f":"IF(KAF71*KAE71=0,\"\",KAF71*KAE71)","v":""},"Pallet Charge",15,null,null,"Pallet Charge",null,null,null,null,null,null,{"$f":"ROUNDUP(SUM(KAR45:KAR52),0)","v":0},{"$f":"KAJ71","v":15},null,{"$f":"IF(KAU71*KAT71=0,\"\",KAU71*KAT71)","v":""},"Pallet Charge",15,null,null,"Pallet Charge",null,null,null,null,null,null,{"$f":"ROUNDUP(SUM(KBG45:KBG52),0)","v":0},{"$f":"KAY71","v":15},null,{"$f":"IF(KBJ71*KBI71=0,\"\",KBJ71*KBI71)","v":""},"Pallet Charge",15,null,null,"Pallet Charge",null,null,null,null,null,null,{"$f":"ROUNDUP(SUM(KBV45:KBV52),0)","v":0},{"$f":"KBN71","v":15},null,{"$f":"IF(KBY71*KBX71=0,\"\",KBY71*KBX71)","v":""},"Pallet Charge",15,null,null,"Pallet Charge",null,null,null,null,null,null,{"$f":"ROUNDUP(SUM(KCK45:KCK52),0)","v":0},{"$f":"KCC71","v":15},null,{"$f":"IF(KCN71*KCM71=0,\"\",KCN71*KCM71)","v":""},"Pallet Charge",15,null,null,"Pallet Charge",null,null,null,null,null,null,{"$f":"ROUNDUP(SUM(KCZ45:KCZ52),0)","v":0},{"$f":"KCR71","v":15},null,{"$f":"IF(KDC71*KDB71=0,\"\",KDC71*KDB71)","v":""},"Pallet Charge",15,null,null,"Pallet Charge",null,null,null,null,null,null,{"$f":"ROUNDUP(SUM(KDO45:KDO52),0)","v":0},{"$f":"KDG71","v":15},null,{"$f":"IF(KDR71*KDQ71=0,\"\",KDR71*KDQ71)","v":""},"Pallet Charge",15,null,null,"Pallet Charge",null,null,null,null,null,null,{"$f":"ROUNDUP(SUM(KED45:KED52),0)","v":0},{"$f":"KDV71","v":15},null,{"$f":"IF(KEG71*KEF71=0,\"\",KEG71*KEF71)","v":""},"Pallet Charge",15,null,null,"Pallet Charge",null,null,null,null,null,null,{"$f":"ROUNDUP(SUM(KES45:KES52),0)","v":0},{"$f":"KEK71","v":15},null,{"$f":"IF(KEV71*KEU71=0,\"\",KEV71*KEU71)","v":""},"Pallet Charge",15,null,null,"Pallet Charge",null,null,null,null,null,null,{"$f":"ROUNDUP(SUM(KFH45:KFH52),0)","v":0},{"$f":"KEZ71","v":15},null,{"$f":"IF(KFK71*KFJ71=0,\"\",KFK71*KFJ71)","v":""},"Pallet Charge",15,null,null,"Pallet Charge",null,null,null,null,null,null,{"$f":"ROUNDUP(SUM(KFW45:KFW52),0)","v":0},{"$f":"KFO71","v":15},null,{"$f":"IF(KFZ71*KFY71=0,\"\",KFZ71*KFY71)","v":""},"Pallet Charge",15,null,null,"Pallet Charge",null,null,null,null,null,null,{"$f":"ROUNDUP(SUM(KGL45:KGL52),0)","v":0},{"$f":"KGD71","v":15},null,{"$f":"IF(KGO71*KGN71=0,\"\",KGO71*KGN71)","v":""},"Pallet Charge",15,null,null,"Pallet Charge",null,null,null,null,null,null,{"$f":"ROUNDUP(SUM(KHA45:KHA52),0)","v":0},{"$f":"KGS71","v":15},null,{"$f":"IF(KHD71*KHC71=0,\"\",KHD71*KHC71)","v":""},"Pallet Charge",15,null,null,"Pallet Charge",null,null,null,null,null,null,{"$f":"ROUNDUP(SUM(KHP45:KHP52),0)","v":0},{"$f":"KHH71","v":15},null,{"$f":"IF(KHS71*KHR71=0,\"\",KHS71*KHR71)","v":""},"Pallet Charge",15,null,null,"Pallet Charge",null,null,null,null,null,null,{"$f":"ROUNDUP(SUM(KIE45:KIE52),0)","v":0},{"$f":"KHW71","v":15},null,{"$f":"IF(KIH71*KIG71=0,\"\",KIH71*KIG71)","v":""},"Pallet Charge",15,null,null,"Pallet Charge",null,null,null,null,null,null,{"$f":"ROUNDUP(SUM(KIT45:KIT52),0)","v":0},{"$f":"KIL71","v":15},null,{"$f":"IF(KIW71*KIV71=0,\"\",KIW71*KIV71)","v":""},"Pallet Charge",15,null,null,"Pallet Charge",null,null,null,null,null,null,{"$f":"ROUNDUP(SUM(KJI45:KJI52),0)","v":0},{"$f":"KJA71","v":15},null,{"$f":"IF(KJL71*KJK71=0,\"\",KJL71*KJK71)","v":""},"Pallet Charge",15,null,null,"Pallet Charge",null,null,null,null,null,null,{"$f":"ROUNDUP(SUM(KJX45:KJX52),0)","v":0},{"$f":"KJP71","v":15},null,{"$f":"IF(KKA71*KJZ71=0,\"\",KKA71*KJZ71)","v":""},"Pallet Charge",15,null,null,"Pallet Charge",null,null,null,null,null,null,{"$f":"ROUNDUP(SUM(KKM45:KKM52),0)","v":0},{"$f":"KKE71","v":15},null,{"$f":"IF(KKP71*KKO71=0,\"\",KKP71*KKO71)","v":""},"Pallet Charge",15,null,null,"Pallet Charge",null,null,null,null,null,null,{"$f":"ROUNDUP(SUM(KLB45:KLB52),0)","v":0},{"$f":"KKT71","v":15},null,{"$f":"IF(KLE71*KLD71=0,\"\",KLE71*KLD71)","v":""},"Pallet Charge",15,null,null,"Pallet Charge",null,null,null,null,null,null,{"$f":"ROUNDUP(SUM(KLQ45:KLQ52),0)","v":0},{"$f":"KLI71","v":15},null,{"$f":"IF(KLT71*KLS71=0,\"\",KLT71*KLS71)","v":""},"Pallet Charge",15,null,null,"Pallet Charge",null,null,null,null,null,null,{"$f":"ROUNDUP(SUM(KMF45:KMF52),0)","v":0},{"$f":"KLX71","v":15},null,{"$f":"IF(KMI71*KMH71=0,\"\",KMI71*KMH71)","v":""},"Pallet Charge",15,null,null,"Pallet Charge",null,null,null,null,null,null,{"$f":"ROUNDUP(SUM(KMU45:KMU52),0)","v":0},{"$f":"KMM71","v":15},null,{"$f":"IF(KMX71*KMW71=0,\"\",KMX71*KMW71)","v":""},"Pallet Charge",15,null,null,"Pallet Charge",null,null,null,null,null,null,{"$f":"ROUNDUP(SUM(KNJ45:KNJ52),0)","v":0},{"$f":"KNB71","v":15},null,{"$f":"IF(KNM71*KNL71=0,\"\",KNM71*KNL71)","v":""},"Pallet Charge",15,null,null,"Pallet Charge",null,null,null,null,null,null,{"$f":"ROUNDUP(SUM(KNY45:KNY52),0)","v":0},{"$f":"KNQ71","v":15},null,{"$f":"IF(KOB71*KOA71=0,\"\",KOB71*KOA71)","v":""},"Pallet Charge",15,null,null,"Pallet Charge",null,null,null,null,null,null,{"$f":"ROUNDUP(SUM(KON45:KON52),0)","v":0},{"$f":"KOF71","v":15},null,{"$f":"IF(KOQ71*KOP71=0,\"\",KOQ71*KOP71)","v":""},"Pallet Charge",15,null,null,"Pallet Charge",null,null,null,null,null,null,{"$f":"ROUNDUP(SUM(KPC45:KPC52),0)","v":0},{"$f":"KOU71","v":15},null,{"$f":"IF(KPF71*KPE71=0,\"\",KPF71*KPE71)","v":""},"Pallet Charge",15,null,null,"Pallet Charge",null,null,null,null,null,null,{"$f":"ROUNDUP(SUM(KPR45:KPR52),0)","v":0},{"$f":"KPJ71","v":15},null,{"$f":"IF(KPU71*KPT71=0,\"\",KPU71*KPT71)","v":""},"Pallet Charge",15,null,null,"Pallet Charge",null,null,null,null,null,null,{"$f":"ROUNDUP(SUM(KQG45:KQG52),0)","v":0},{"$f":"KPY71","v":15},null,{"$f":"IF(KQJ71*KQI71=0,\"\",KQJ71*KQI71)","v":""},"Pallet Charge",15,null,null,"Pallet Charge",null,null,null,null,null,null,{"$f":"ROUNDUP(SUM(KQV45:KQV52),0)","v":0},{"$f":"KQN71","v":15},null,{"$f":"IF(KQY71*KQX71=0,\"\",KQY71*KQX71)","v":""},"Pallet Charge",15,null,null,"Pallet Charge",null,null,null,null,null,null,{"$f":"ROUNDUP(SUM(KRK45:KRK52),0)","v":0},{"$f":"KRC71","v":15},null,{"$f":"IF(KRN71*KRM71=0,\"\",KRN71*KRM71)","v":""},"Pallet Charge",15,null,null,"Pallet Charge",null,null,null,null,null,null,{"$f":"ROUNDUP(SUM(KRZ45:KRZ52),0)","v":0},{"$f":"KRR71","v":15},null,{"$f":"IF(KSC71*KSB71=0,\"\",KSC71*KSB71)","v":""},"Pallet Charge",15,null,null,"Pallet Charge",null,null,null,null,null,null,{"$f":"ROUNDUP(SUM(KSO45:KSO52),0)","v":0},{"$f":"KSG71","v":15},null,{"$f":"IF(KSR71*KSQ71=0,\"\",KSR71*KSQ71)","v":""},"Pallet Charge",15,null,null,"Pallet Charge",null,null,null,null,null,null,{"$f":"ROUNDUP(SUM(KTD45:KTD52),0)","v":0},{"$f":"KSV71","v":15},null,{"$f":"IF(KTG71*KTF71=0,\"\",KTG71*KTF71)","v":""},"Pallet Charge",15,null,null,"Pallet Charge",null,null,null,null,null,null,{"$f":"ROUNDUP(SUM(KTS45:KTS52),0)","v":0},{"$f":"KTK71","v":15},null,{"$f":"IF(KTV71*KTU71=0,\"\",KTV71*KTU71)","v":""},"Pallet Charge",15,null,null,"Pallet Charge",null,null,null,null,null,null,{"$f":"ROUNDUP(SUM(KUH45:KUH52),0)","v":0},{"$f":"KTZ71","v":15},null,{"$f":"IF(KUK71*KUJ71=0,\"\",KUK71*KUJ71)","v":""},"Pallet Charge",15,null,null,"Pallet Charge",null,null,null,null,null,null,{"$f":"ROUNDUP(SUM(KUW45:KUW52),0)","v":0},{"$f":"KUO71","v":15},null,{"$f":"IF(KUZ71*KUY71=0,\"\",KUZ71*KUY71)","v":""},"Pallet Charge",15,null,null,"Pallet Charge",null,null,null,null,null,null,{"$f":"ROUNDUP(SUM(KVL45:KVL52),0)","v":0},{"$f":"KVD71","v":15},null,{"$f":"IF(KVO71*KVN71=0,\"\",KVO71*KVN71)","v":""},"Pallet Charge",15,null,null,"Pallet Charge",null,null,null,null,null,null,{"$f":"ROUNDUP(SUM(KWA45:KWA52),0)","v":0},{"$f":"KVS71","v":15},null,{"$f":"IF(KWD71*KWC71=0,\"\",KWD71*KWC71)","v":""},"Pallet Charge",15,null,null,"Pallet Charge",null,null,null,null,null,null,{"$f":"ROUNDUP(SUM(KWP45:KWP52),0)","v":0},{"$f":"KWH71","v":15},null,{"$f":"IF(KWS71*KWR71=0,\"\",KWS71*KWR71)","v":""},"Pallet Charge",15,null,null,"Pallet Charge",null,null,null,null,null,null,{"$f":"ROUNDUP(SUM(KXE45:KXE52),0)","v":0},{"$f":"KWW71","v":15},null,{"$f":"IF(KXH71*KXG71=0,\"\",KXH71*KXG71)","v":""},"Pallet Charge",15,null,null,"Pallet Charge",null,null,null,null,null,null,{"$f":"ROUNDUP(SUM(KXT45:KXT52),0)","v":0},{"$f":"KXL71","v":15},null,{"$f":"IF(KXW71*KXV71=0,\"\",KXW71*KXV71)","v":""},"Pallet Charge",15,null,null,"Pallet Charge",null,null,null,null,null,null,{"$f":"ROUNDUP(SUM(KYI45:KYI52),0)","v":0},{"$f":"KYA71","v":15},null,{"$f":"IF(KYL71*KYK71=0,\"\",KYL71*KYK71)","v":""},"Pallet Charge",15,null,null,"Pallet Charge",null,null,null,null,null,null,{"$f":"ROUNDUP(SUM(KYX45:KYX52),0)","v":0},{"$f":"KYP71","v":15},null,{"$f":"IF(KZA71*KYZ71=0,\"\",KZA71*KYZ71)","v":""},"Pallet Charge",15,null,null,"Pallet Charge",null,null,null,null,null,null,{"$f":"ROUNDUP(SUM(KZM45:KZM52),0)","v":0},{"$f":"KZE71","v":15},null,{"$f":"IF(KZP71*KZO71=0,\"\",KZP71*KZO71)","v":""},"Pallet Charge",15,null,null,"Pallet Charge",null,null,null,null,null,null,{"$f":"ROUNDUP(SUM(LAB45:LAB52),0)","v":0},{"$f":"KZT71","v":15},null,{"$f":"IF(LAE71*LAD71=0,\"\",LAE71*LAD71)","v":""},"Pallet Charge",15,null,null,"Pallet Charge",null,null,null,null,null,null,{"$f":"ROUNDUP(SUM(LAQ45:LAQ52),0)","v":0},{"$f":"LAI71","v":15},null,{"$f":"IF(LAT71*LAS71=0,\"\",LAT71*LAS71)","v":""},"Pallet Charge",15,null,null,"Pallet Charge",null,null,null,null,null,null,{"$f":"ROUNDUP(SUM(LBF45:LBF52),0)","v":0},{"$f":"LAX71","v":15},null,{"$f":"IF(LBI71*LBH71=0,\"\",LBI71*LBH71)","v":""},"Pallet Charge",15,null,null,"Pallet Charge",null,null,null,null,null,null,{"$f":"ROUNDUP(SUM(LBU45:LBU52),0)","v":0},{"$f":"LBM71","v":15},null,{"$f":"IF(LBX71*LBW71=0,\"\",LBX71*LBW71)","v":""},"Pallet Charge",15,null,null,"Pallet Charge",null,null,null,null,null,null,{"$f":"ROUNDUP(SUM(LCJ45:LCJ52),0)","v":0},{"$f":"LCB71","v":15},null,{"$f":"IF(LCM71*LCL71=0,\"\",LCM71*LCL71)","v":""},"Pallet Charge",15,null,null,"Pallet Charge",null,null,null,null,null,null,{"$f":"ROUNDUP(SUM(LCY45:LCY52),0)","v":0},{"$f":"LCQ71","v":15},null,{"$f":"IF(LDB71*LDA71=0,\"\",LDB71*LDA71)","v":""},"Pallet Charge",15,null,null,"Pallet Charge",null,null,null,null,null,null,{"$f":"ROUNDUP(SUM(LDN45:LDN52),0)","v":0},{"$f":"LDF71","v":15},null,{"$f":"IF(LDQ71*LDP71=0,\"\",LDQ71*LDP71)","v":""},"Pallet Charge",15,null,null,"Pallet Charge",null,null,null,null,null,null,{"$f":"ROUNDUP(SUM(LEC45:LEC52),0)","v":0},{"$f":"LDU71","v":15},null,{"$f":"IF(LEF71*LEE71=0,\"\",LEF71*LEE71)","v":""},"Pallet Charge",15,null,null,"Pallet Charge",null,null,null,null,null,null,{"$f":"ROUNDUP(SUM(LER45:LER52),0)","v":0},{"$f":"LEJ71","v":15},null,{"$f":"IF(LEU71*LET71=0,\"\",LEU71*LET71)","v":""},"Pallet Charge",15,null,null,"Pallet Charge",null,null,null,null,null,null,{"$f":"ROUNDUP(SUM(LFG45:LFG52),0)","v":0},{"$f":"LEY71","v":15},null,{"$f":"IF(LFJ71*LFI71=0,\"\",LFJ71*LFI71)","v":""},"Pallet Charge",15,null,null,"Pallet Charge",null,null,null,null,null,null,{"$f":"ROUNDUP(SUM(LFV45:LFV52),0)","v":0},{"$f":"LFN71","v":15},null,{"$f":"IF(LFY71*LFX71=0,\"\",LFY71*LFX71)","v":""},"Pallet Charge",15,null,null,"Pallet Charge",null,null,null,null,null,null,{"$f":"ROUNDUP(SUM(LGK45:LGK52),0)","v":0},{"$f":"LGC71","v":15},null,{"$f":"IF(LGN71*LGM71=0,\"\",LGN71*LGM71)","v":""},"Pallet Charge",15,null,null,"Pallet Charge",null,null,null,null,null,null,{"$f":"ROUNDUP(SUM(LGZ45:LGZ52),0)","v":0},{"$f":"LGR71","v":15},null,{"$f":"IF(LHC71*LHB71=0,\"\",LHC71*LHB71)","v":""},"Pallet Charge",15,null,null,"Pallet Charge",null,null,null,null,null,null,{"$f":"ROUNDUP(SUM(LHO45:LHO52),0)","v":0},{"$f":"LHG71","v":15},null,{"$f":"IF(LHR71*LHQ71=0,\"\",LHR71*LHQ71)","v":""},"Pallet Charge",15,null,null,"Pallet Charge",null,null,null,null,null,null,{"$f":"ROUNDUP(SUM(LID45:LID52),0)","v":0},{"$f":"LHV71","v":15},null,{"$f":"IF(LIG71*LIF71=0,\"\",LIG71*LIF71)","v":""},"Pallet Charge",15,null,null,"Pallet Charge",null,null,null,null,null,null,{"$f":"ROUNDUP(SUM(LIS45:LIS52),0)","v":0},{"$f":"LIK71","v":15},null,{"$f":"IF(LIV71*LIU71=0,\"\",LIV71*LIU71)","v":""},"Pallet Charge",15,null,null,"Pallet Charge",null,null,null,null,null,null,{"$f":"ROUNDUP(SUM(LJH45:LJH52),0)","v":0},{"$f":"LIZ71","v":15},null,{"$f":"IF(LJK71*LJJ71=0,\"\",LJK71*LJJ71)","v":""},"Pallet Charge",15,null,null,"Pallet Charge",null,null,null,null,null,null,{"$f":"ROUNDUP(SUM(LJW45:LJW52),0)","v":0},{"$f":"LJO71","v":15},null,{"$f":"IF(LJZ71*LJY71=0,\"\",LJZ71*LJY71)","v":""},"Pallet Charge",15,null,null,"Pallet Charge",null,null,null,null,null,null,{"$f":"ROUNDUP(SUM(LKL45:LKL52),0)","v":0},{"$f":"LKD71","v":15},null,{"$f":"IF(LKO71*LKN71=0,\"\",LKO71*LKN71)","v":""},"Pallet Charge",15,null,null,"Pallet Charge",null,null,null,null,null,null,{"$f":"ROUNDUP(SUM(LLA45:LLA52),0)","v":0},{"$f":"LKS71","v":15},null,{"$f":"IF(LLD71*LLC71=0,\"\",LLD71*LLC71)","v":""},"Pallet Charge",15,null,null,"Pallet Charge",null,null,null,null,null,null,{"$f":"ROUNDUP(SUM(LLP45:LLP52),0)","v":0},{"$f":"LLH71","v":15},null,{"$f":"IF(LLS71*LLR71=0,\"\",LLS71*LLR71)","v":""},"Pallet Charge",15,null,null,"Pallet Charge",null,null,null,null,null,null,{"$f":"ROUNDUP(SUM(LME45:LME52),0)","v":0},{"$f":"LLW71","v":15},null,{"$f":"IF(LMH71*LMG71=0,\"\",LMH71*LMG71)","v":""},"Pallet Charge",15,null,null,"Pallet Charge",null,null,null,null,null,null,{"$f":"ROUNDUP(SUM(LMT45:LMT52),0)","v":0},{"$f":"LML71","v":15},null,{"$f":"IF(LMW71*LMV71=0,\"\",LMW71*LMV71)","v":""},"Pallet Charge",15,null,null,"Pallet Charge",null,null,null,null,null,null,{"$f":"ROUNDUP(SUM(LNI45:LNI52),0)","v":0},{"$f":"LNA71","v":15},null,{"$f":"IF(LNL71*LNK71=0,\"\",LNL71*LNK71)","v":""},"Pallet Charge",15,null,null,"Pallet Charge",null,null,null,null,null,null,{"$f":"ROUNDUP(SUM(LNX45:LNX52),0)","v":0},{"$f":"LNP71","v":15},null,{"$f":"IF(LOA71*LNZ71=0,\"\",LOA71*LNZ71)","v":""},"Pallet Charge",15,null,null,"Pallet Charge",null,null,null,null,null,null,{"$f":"ROUNDUP(SUM(LOM45:LOM52),0)","v":0},{"$f":"LOE71","v":15},null,{"$f":"IF(LOP71*LOO71=0,\"\",LOP71*LOO71)","v":""},"Pallet Charge",15,null,null,"Pallet Charge",null,null,null,null,null,null,{"$f":"ROUNDUP(SUM(LPB45:LPB52),0)","v":0},{"$f":"LOT71","v":15},null,{"$f":"IF(LPE71*LPD71=0,\"\",LPE71*LPD71)","v":""},"Pallet Charge",15,null,null,"Pallet Charge",null,null,null,null,null,null,{"$f":"ROUNDUP(SUM(LPQ45:LPQ52),0)","v":0},{"$f":"LPI71","v":15},null,{"$f":"IF(LPT71*LPS71=0,\"\",LPT71*LPS71)","v":""},"Pallet Charge",15,null,null,"Pallet Charge",null,null,null,null,null,null,{"$f":"ROUNDUP(SUM(LQF45:LQF52),0)","v":0},{"$f":"LPX71","v":15},null,{"$f":"IF(LQI71*LQH71=0,\"\",LQI71*LQH71)","v":""},"Pallet Charge",15,null,null,"Pallet Charge",null,null,null,null,null,null,{"$f":"ROUNDUP(SUM(LQU45:LQU52),0)","v":0},{"$f":"LQM71","v":15},null,{"$f":"IF(LQX71*LQW71=0,\"\",LQX71*LQW71)","v":""},"Pallet Charge",15,null,null,"Pallet Charge",null,null,null,null,null,null,{"$f":"ROUNDUP(SUM(LRJ45:LRJ52),0)","v":0},{"$f":"LRB71","v":15},null,{"$f":"IF(LRM71*LRL71=0,\"\",LRM71*LRL71)","v":""},"Pallet Charge",15,null,null,"Pallet Charge",null,null,null,null,null,null,{"$f":"ROUNDUP(SUM(LRY45:LRY52),0)","v":0},{"$f":"LRQ71","v":15},null,{"$f":"IF(LSB71*LSA71=0,\"\",LSB71*LSA71)","v":""},"Pallet Charge",15,null,null,"Pallet Charge",null,null,null,null,null,null,{"$f":"ROUNDUP(SUM(LSN45:LSN52),0)","v":0},{"$f":"LSF71","v":15},null,{"$f":"IF(LSQ71*LSP71=0,\"\",LSQ71*LSP71)","v":""},"Pallet Charge",15,null,null,"Pallet Charge",null,null,null,null,null,null,{"$f":"ROUNDUP(SUM(LTC45:LTC52),0)","v":0},{"$f":"LSU71","v":15},null,{"$f":"IF(LTF71*LTE71=0,\"\",LTF71*LTE71)","v":""},"Pallet Charge",15,null,null,"Pallet Charge",null,null,null,null,null,null,{"$f":"ROUNDUP(SUM(LTR45:LTR52),0)","v":0},{"$f":"LTJ71","v":15},null,{"$f":"IF(LTU71*LTT71=0,\"\",LTU71*LTT71)","v":""},"Pallet Charge",15,null,null,"Pallet Charge",null,null,null,null,null,null,{"$f":"ROUNDUP(SUM(LUG45:LUG52),0)","v":0},{"$f":"LTY71","v":15},null,{"$f":"IF(LUJ71*LUI71=0,\"\",LUJ71*LUI71)","v":""},"Pallet Charge",15,null,null,"Pallet Charge",null,null,null,null,null,null,{"$f":"ROUNDUP(SUM(LUV45:LUV52),0)","v":0},{"$f":"LUN71","v":15},null,{"$f":"IF(LUY71*LUX71=0,\"\",LUY71*LUX71)","v":""},"Pallet Charge",15,null,null,"Pallet Charge",null,null,null,null,null,null,{"$f":"ROUNDUP(SUM(LVK45:LVK52),0)","v":0},{"$f":"LVC71","v":15},null,{"$f":"IF(LVN71*LVM71=0,\"\",LVN71*LVM71)","v":""},"Pallet Charge",15,null,null,"Pallet Charge",null,null,null,null,null,null,{"$f":"ROUNDUP(SUM(LVZ45:LVZ52),0)","v":0},{"$f":"LVR71","v":15},null,{"$f":"IF(LWC71*LWB71=0,\"\",LWC71*LWB71)","v":""},"Pallet Charge",15,null,null,"Pallet Charge",null,null,null,null,null,null,{"$f":"ROUNDUP(SUM(LWO45:LWO52),0)","v":0},{"$f":"LWG71","v":15},null,{"$f":"IF(LWR71*LWQ71=0,\"\",LWR71*LWQ71)","v":""},"Pallet Charge",15,null,null,"Pallet Charge",null,null,null,null,null,null,{"$f":"ROUNDUP(SUM(LXD45:LXD52),0)","v":0},{"$f":"LWV71","v":15},null,{"$f":"IF(LXG71*LXF71=0,\"\",LXG71*LXF71)","v":""},"Pallet Charge",15,null,null,"Pallet Charge",null,null,null,null,null,null,{"$f":"ROUNDUP(SUM(LXS45:LXS52),0)","v":0},{"$f":"LXK71","v":15},null,{"$f":"IF(LXV71*LXU71=0,\"\",LXV71*LXU71)","v":""},"Pallet Charge",15,null,null,"Pallet Charge",null,null,null,null,null,null,{"$f":"ROUNDUP(SUM(LYH45:LYH52),0)","v":0},{"$f":"LXZ71","v":15},null,{"$f":"IF(LYK71*LYJ71=0,\"\",LYK71*LYJ71)","v":""},"Pallet Charge",15,null,null,"Pallet Charge",null,null,null,null,null,null,{"$f":"ROUNDUP(SUM(LYW45:LYW52),0)","v":0},{"$f":"LYO71","v":15},null,{"$f":"IF(LYZ71*LYY71=0,\"\",LYZ71*LYY71)","v":""},"Pallet Charge",15,null,null,"Pallet Charge",null,null,null,null,null,null,{"$f":"ROUNDUP(SUM(LZL45:LZL52),0)","v":0},{"$f":"LZD71","v":15},null,{"$f":"IF(LZO71*LZN71=0,\"\",LZO71*LZN71)","v":""},"Pallet Charge",15,null,null,"Pallet Charge",null,null,null,null,null,null,{"$f":"ROUNDUP(SUM(MAA45:MAA52),0)","v":0},{"$f":"LZS71","v":15},null,{"$f":"IF(MAD71*MAC71=0,\"\",MAD71*MAC71)","v":""},"Pallet Charge",15,null,null,"Pallet Charge",null,null,null,null,null,null,{"$f":"ROUNDUP(SUM(MAP45:MAP52),0)","v":0},{"$f":"MAH71","v":15},null,{"$f":"IF(MAS71*MAR71=0,\"\",MAS71*MAR71)","v":""},"Pallet Charge",15,null,null,"Pallet Charge",null,null,null,null,null,null,{"$f":"ROUNDUP(SUM(MBE45:MBE52),0)","v":0},{"$f":"MAW71","v":15},null,{"$f":"IF(MBH71*MBG71=0,\"\",MBH71*MBG71)","v":""},"Pallet Charge",15,null,null,"Pallet Charge",null,null,null,null,null,null,{"$f":"ROUNDUP(SUM(MBT45:MBT52),0)","v":0},{"$f":"MBL71","v":15},null,{"$f":"IF(MBW71*MBV71=0,\"\",MBW71*MBV71)","v":""},"Pallet Charge",15,null,null,"Pallet Charge",null,null,null,null,null,null,{"$f":"ROUNDUP(SUM(MCI45:MCI52),0)","v":0},{"$f":"MCA71","v":15},null,{"$f":"IF(MCL71*MCK71=0,\"\",MCL71*MCK71)","v":""},"Pallet Charge",15,null,null,"Pallet Charge",null,null,null,null,null,null,{"$f":"ROUNDUP(SUM(MCX45:MCX52),0)","v":0},{"$f":"MCP71","v":15},null,{"$f":"IF(MDA71*MCZ71=0,\"\",MDA71*MCZ71)","v":""},"Pallet Charge",15,null,null,"Pallet Charge",null,null,null,null,null,null,{"$f":"ROUNDUP(SUM(MDM45:MDM52),0)","v":0},{"$f":"MDE71","v":15},null,{"$f":"IF(MDP71*MDO71=0,\"\",MDP71*MDO71)","v":""},"Pallet Charge",15,null,null,"Pallet Charge",null,null,null,null,null,null,{"$f":"ROUNDUP(SUM(MEB45:MEB52),0)","v":0},{"$f":"MDT71","v":15},null,{"$f":"IF(MEE71*MED71=0,\"\",MEE71*MED71)","v":""},"Pallet Charge",15,null,null,"Pallet Charge",null,null,null,null,null,null,{"$f":"ROUNDUP(SUM(MEQ45:MEQ52),0)","v":0},{"$f":"MEI71","v":15},null,{"$f":"IF(MET71*MES71=0,\"\",MET71*MES71)","v":""},"Pallet Charge",15,null,null,"Pallet Charge",null,null,null,null,null,null,{"$f":"ROUNDUP(SUM(MFF45:MFF52),0)","v":0},{"$f":"MEX71","v":15},null,{"$f":"IF(MFI71*MFH71=0,\"\",MFI71*MFH71)","v":""},"Pallet Charge",15,null,null,"Pallet Charge",null,null,null,null,null,null,{"$f":"ROUNDUP(SUM(MFU45:MFU52),0)","v":0},{"$f":"MFM71","v":15},null,{"$f":"IF(MFX71*MFW71=0,\"\",MFX71*MFW71)","v":""},"Pallet Charge",15,null,null,"Pallet Charge",null,null,null,null,null,null,{"$f":"ROUNDUP(SUM(MGJ45:MGJ52),0)","v":0},{"$f":"MGB71","v":15},null,{"$f":"IF(MGM71*MGL71=0,\"\",MGM71*MGL71)","v":""},"Pallet Charge",15,null,null,"Pallet Charge",null,null,null,null,null,null,{"$f":"ROUNDUP(SUM(MGY45:MGY52),0)","v":0},{"$f":"MGQ71","v":15},null,{"$f":"IF(MHB71*MHA71=0,\"\",MHB71*MHA71)","v":""},"Pallet Charge",15,null,null,"Pallet Charge",null,null,null,null,null,null,{"$f":"ROUNDUP(SUM(MHN45:MHN52),0)","v":0},{"$f":"MHF71","v":15},null,{"$f":"IF(MHQ71*MHP71=0,\"\",MHQ71*MHP71)","v":""},"Pallet Charge",15,null,null,"Pallet Charge",null,null,null,null,null,null,{"$f":"ROUNDUP(SUM(MIC45:MIC52),0)","v":0},{"$f":"MHU71","v":15},null,{"$f":"IF(MIF71*MIE71=0,\"\",MIF71*MIE71)","v":""},"Pallet Charge",15,null,null,"Pallet Charge",null,null,null,null,null,null,{"$f":"ROUNDUP(SUM(MIR45:MIR52),0)","v":0},{"$f":"MIJ71","v":15},null,{"$f":"IF(MIU71*MIT71=0,\"\",MIU71*MIT71)","v":""},"Pallet Charge",15,null,null,"Pallet Charge",null,null,null,null,null,null,{"$f":"ROUNDUP(SUM(MJG45:MJG52),0)","v":0},{"$f":"MIY71","v":15},null,{"$f":"IF(MJJ71*MJI71=0,\"\",MJJ71*MJI71)","v":""},"Pallet Charge",15,null,null,"Pallet Charge",null,null,null,null,null,null,{"$f":"ROUNDUP(SUM(MJV45:MJV52),0)","v":0},{"$f":"MJN71","v":15},null,{"$f":"IF(MJY71*MJX71=0,\"\",MJY71*MJX71)","v":""},"Pallet Charge",15,null,null,"Pallet Charge",null,null,null,null,null,null,{"$f":"ROUNDUP(SUM(MKK45:MKK52),0)","v":0},{"$f":"MKC71","v":15},null,{"$f":"IF(MKN71*MKM71=0,\"\",MKN71*MKM71)","v":""},"Pallet Charge",15,null,null,"Pallet Charge",null,null,null,null,null,null,{"$f":"ROUNDUP(SUM(MKZ45:MKZ52),0)","v":0},{"$f":"MKR71","v":15},null,{"$f":"IF(MLC71*MLB71=0,\"\",MLC71*MLB71)","v":""},"Pallet Charge",15,null,null,"Pallet Charge",null,null,null,null,null,null,{"$f":"ROUNDUP(SUM(MLO45:MLO52),0)","v":0},{"$f":"MLG71","v":15},null,{"$f":"IF(MLR71*MLQ71=0,\"\",MLR71*MLQ71)","v":""},"Pallet Charge",15,null,null,"Pallet Charge",null,null,null,null,null,null,{"$f":"ROUNDUP(SUM(MMD45:MMD52),0)","v":0},{"$f":"MLV71","v":15},null,{"$f":"IF(MMG71*MMF71=0,\"\",MMG71*MMF71)","v":""},"Pallet Charge",15,null,null,"Pallet Charge",null,null,null,null,null,null,{"$f":"ROUNDUP(SUM(MMS45:MMS52),0)","v":0},{"$f":"MMK71","v":15},null,{"$f":"IF(MMV71*MMU71=0,\"\",MMV71*MMU71)","v":""},"Pallet Charge",15,null,null,"Pallet Charge",null,null,null,null,null,null,{"$f":"ROUNDUP(SUM(MNH45:MNH52),0)","v":0},{"$f":"MMZ71","v":15},null,{"$f":"IF(MNK71*MNJ71=0,\"\",MNK71*MNJ71)","v":""},"Pallet Charge",15,null,null,"Pallet Charge",null,null,null,null,null,null,{"$f":"ROUNDUP(SUM(MNW45:MNW52),0)","v":0},{"$f":"MNO71","v":15},null,{"$f":"IF(MNZ71*MNY71=0,\"\",MNZ71*MNY71)","v":""},"Pallet Charge",15,null,null,"Pallet Charge",null,null,null,null,null,null,{"$f":"ROUNDUP(SUM(MOL45:MOL52),0)","v":0},{"$f":"MOD71","v":15},null,{"$f":"IF(MOO71*MON71=0,\"\",MOO71*MON71)","v":""},"Pallet Charge",15,null,null,"Pallet Charge",null,null,null,null,null,null,{"$f":"ROUNDUP(SUM(MPA45:MPA52),0)","v":0},{"$f":"MOS71","v":15},null,{"$f":"IF(MPD71*MPC71=0,\"\",MPD71*MPC71)","v":""},"Pallet Charge",15,null,null,"Pallet Charge",null,null,null,null,null,null,{"$f":"ROUNDUP(SUM(MPP45:MPP52),0)","v":0},{"$f":"MPH71","v":15},null,{"$f":"IF(MPS71*MPR71=0,\"\",MPS71*MPR71)","v":""},"Pallet Charge",15,null,null,"Pallet Charge",null,null,null,null,null,null,{"$f":"ROUNDUP(SUM(MQE45:MQE52),0)","v":0},{"$f":"MPW71","v":15},null,{"$f":"IF(MQH71*MQG71=0,\"\",MQH71*MQG71)","v":""},"Pallet Charge",15,null,null,"Pallet Charge",null,null,null,null,null,null,{"$f":"ROUNDUP(SUM(MQT45:MQT52),0)","v":0},{"$f":"MQL71","v":15},null,{"$f":"IF(MQW71*MQV71=0,\"\",MQW71*MQV71)","v":""},"Pallet Charge",15,null,null,"Pallet Charge",null,null,null,null,null,null,{"$f":"ROUNDUP(SUM(MRI45:MRI52),0)","v":0},{"$f":"MRA71","v":15},null,{"$f":"IF(MRL71*MRK71=0,\"\",MRL71*MRK71)","v":""},"Pallet Charge",15,null,null,"Pallet Charge",null,null,null,null,null,null,{"$f":"ROUNDUP(SUM(MRX45:MRX52),0)","v":0},{"$f":"MRP71","v":15},null,{"$f":"IF(MSA71*MRZ71=0,\"\",MSA71*MRZ71)","v":""},"Pallet Charge",15,null,null,"Pallet Charge",null,null,null,null,null,null,{"$f":"ROUNDUP(SUM(MSM45:MSM52),0)","v":0},{"$f":"MSE71","v":15},null,{"$f":"IF(MSP71*MSO71=0,\"\",MSP71*MSO71)","v":""},"Pallet Charge",15,null,null,"Pallet Charge",null,null,null,null,null,null,{"$f":"ROUNDUP(SUM(MTB45:MTB52),0)","v":0},{"$f":"MST71","v":15},null,{"$f":"IF(MTE71*MTD71=0,\"\",MTE71*MTD71)","v":""},"Pallet Charge",15,null,null,"Pallet Charge",null,null,null,null,null,null,{"$f":"ROUNDUP(SUM(MTQ45:MTQ52),0)","v":0},{"$f":"MTI71","v":15},null,{"$f":"IF(MTT71*MTS71=0,\"\",MTT71*MTS71)","v":""},"Pallet Charge",15,null,null,"Pallet Charge",null,null,null,null,null,null,{"$f":"ROUNDUP(SUM(MUF45:MUF52),0)","v":0},{"$f":"MTX71","v":15},null,{"$f":"IF(MUI71*MUH71=0,\"\",MUI71*MUH71)","v":""},"Pallet Charge",15,null,null,"Pallet Charge",null,null,null,null,null,null,{"$f":"ROUNDUP(SUM(MUU45:MUU52),0)","v":0},{"$f":"MUM71","v":15},null,{"$f":"IF(MUX71*MUW71=0,\"\",MUX71*MUW71)","v":""},"Pallet Charge",15,null,null,"Pallet Charge",null,null,null,null,null,null,{"$f":"ROUNDUP(SUM(MVJ45:MVJ52),0)","v":0},{"$f":"MVB71","v":15},null,{"$f":"IF(MVM71*MVL71=0,\"\",MVM71*MVL71)","v":""},"Pallet Charge",15,null,null,"Pallet Charge",null,null,null,null,null,null,{"$f":"ROUNDUP(SUM(MVY45:MVY52),0)","v":0},{"$f":"MVQ71","v":15},null,{"$f":"IF(MWB71*MWA71=0,\"\",MWB71*MWA71)","v":""},"Pallet Charge",15,null,null,"Pallet Charge",null,null,null,null,null,null,{"$f":"ROUNDUP(SUM(MWN45:MWN52),0)","v":0},{"$f":"MWF71","v":15},null,{"$f":"IF(MWQ71*MWP71=0,\"\",MWQ71*MWP71)","v":""},"Pallet Charge",15,null,null,"Pallet Charge",null,null,null,null,null,null,{"$f":"ROUNDUP(SUM(MXC45:MXC52),0)","v":0},{"$f":"MWU71","v":15},null,{"$f":"IF(MXF71*MXE71=0,\"\",MXF71*MXE71)","v":""},"Pallet Charge",15,null,null,"Pallet Charge",null,null,null,null,null,null,{"$f":"ROUNDUP(SUM(MXR45:MXR52),0)","v":0},{"$f":"MXJ71","v":15},null,{"$f":"IF(MXU71*MXT71=0,\"\",MXU71*MXT71)","v":""},"Pallet Charge",15,null,null,"Pallet Charge",null,null,null,null,null,null,{"$f":"ROUNDUP(SUM(MYG45:MYG52),0)","v":0},{"$f":"MXY71","v":15},null,{"$f":"IF(MYJ71*MYI71=0,\"\",MYJ71*MYI71)","v":""},"Pallet Charge",15,null,null,"Pallet Charge",null,null,null,null,null,null,{"$f":"ROUNDUP(SUM(MYV45:MYV52),0)","v":0},{"$f":"MYN71","v":15},null,{"$f":"IF(MYY71*MYX71=0,\"\",MYY71*MYX71)","v":""},"Pallet Charge",15,null,null,"Pallet Charge",null,null,null,null,null,null,{"$f":"ROUNDUP(SUM(MZK45:MZK52),0)","v":0},{"$f":"MZC71","v":15},null,{"$f":"IF(MZN71*MZM71=0,\"\",MZN71*MZM71)","v":""},"Pallet Charge",15,null,null,"Pallet Charge",null,null,null,null,null,null,{"$f":"ROUNDUP(SUM(MZZ45:MZZ52),0)","v":0},{"$f":"MZR71","v":15},null,{"$f":"IF(NAC71*NAB71=0,\"\",NAC71*NAB71)","v":""},"Pallet Charge",15,null,null,"Pallet Charge",null,null,null,null,null,null,{"$f":"ROUNDUP(SUM(NAO45:NAO52),0)","v":0},{"$f":"NAG71","v":15},null,{"$f":"IF(NAR71*NAQ71=0,\"\",NAR71*NAQ71)","v":""},"Pallet Charge",15,null,null,"Pallet Charge",null,null,null,null,null,null,{"$f":"ROUNDUP(SUM(NBD45:NBD52),0)","v":0},{"$f":"NAV71","v":15},null,{"$f":"IF(NBG71*NBF71=0,\"\",NBG71*NBF71)","v":""},"Pallet Charge",15,null,null,"Pallet Charge",null,null,null,null,null,null,{"$f":"ROUNDUP(SUM(NBS45:NBS52),0)","v":0},{"$f":"NBK71","v":15},null,{"$f":"IF(NBV71*NBU71=0,\"\",NBV71*NBU71)","v":""},"Pallet Charge",15,null,null,"Pallet Charge",null,null,null,null,null,null,{"$f":"ROUNDUP(SUM(NCH45:NCH52),0)","v":0},{"$f":"NBZ71","v":15},null,{"$f":"IF(NCK71*NCJ71=0,\"\",NCK71*NCJ71)","v":""},"Pallet Charge",15,null,null,"Pallet Charge",null,null,null,null,null,null,{"$f":"ROUNDUP(SUM(NCW45:NCW52),0)","v":0},{"$f":"NCO71","v":15},null,{"$f":"IF(NCZ71*NCY71=0,\"\",NCZ71*NCY71)","v":""},"Pallet Charge",15,null,null,"Pallet Charge",null,null,null,null,null,null,{"$f":"ROUNDUP(SUM(NDL45:NDL52),0)","v":0},{"$f":"NDD71","v":15},null,{"$f":"IF(NDO71*NDN71=0,\"\",NDO71*NDN71)","v":""},"Pallet Charge",15,null,null,"Pallet Charge",null,null,null,null,null,null,{"$f":"ROUNDUP(SUM(NEA45:NEA52),0)","v":0},{"$f":"NDS71","v":15},null,{"$f":"IF(NED71*NEC71=0,\"\",NED71*NEC71)","v":""},"Pallet Charge",15,null,null,"Pallet Charge",null,null,null,null,null,null,{"$f":"ROUNDUP(SUM(NEP45:NEP52),0)","v":0},{"$f":"NEH71","v":15},null,{"$f":"IF(NES71*NER71=0,\"\",NES71*NER71)","v":""},"Pallet Charge",15,null,null,"Pallet Charge",null,null,null,null,null,null,{"$f":"ROUNDUP(SUM(NFE45:NFE52),0)","v":0},{"$f":"NEW71","v":15},null,{"$f":"IF(NFH71*NFG71=0,\"\",NFH71*NFG71)","v":""},"Pallet Charge",15,null,null,"Pallet Charge",null,null,null,null,null,null,{"$f":"ROUNDUP(SUM(NFT45:NFT52),0)","v":0},{"$f":"NFL71","v":15},null,{"$f":"IF(NFW71*NFV71=0,\"\",NFW71*NFV71)","v":""},"Pallet Charge",15,null,null,"Pallet Charge",null,null,null,null,null,null,{"$f":"ROUNDUP(SUM(NGI45:NGI52),0)","v":0},{"$f":"NGA71","v":15},null,{"$f":"IF(NGL71*NGK71=0,\"\",NGL71*NGK71)","v":""},"Pallet Charge",15,null,null,"Pallet Charge",null,null,null,null,null,null,{"$f":"ROUNDUP(SUM(NGX45:NGX52),0)","v":0},{"$f":"NGP71","v":15},null,{"$f":"IF(NHA71*NGZ71=0,\"\",NHA71*NGZ71)","v":""},"Pallet Charge",15,null,null,"Pallet Charge",null,null,null,null,null,null,{"$f":"ROUNDUP(SUM(NHM45:NHM52),0)","v":0},{"$f":"NHE71","v":15},null,{"$f":"IF(NHP71*NHO71=0,\"\",NHP71*NHO71)","v":""},"Pallet Charge",15,null,null,"Pallet Charge",null,null,null,null,null,null,{"$f":"ROUNDUP(SUM(NIB45:NIB52),0)","v":0},{"$f":"NHT71","v":15},null,{"$f":"IF(NIE71*NID71=0,\"\",NIE71*NID71)","v":""},"Pallet Charge",15,null,null,"Pallet Charge",null,null,null,null,null,null,{"$f":"ROUNDUP(SUM(NIQ45:NIQ52),0)","v":0},{"$f":"NII71","v":15},null,{"$f":"IF(NIT71*NIS71=0,\"\",NIT71*NIS71)","v":""},"Pallet Charge",15,null,null,"Pallet Charge",null,null,null,null,null,null,{"$f":"ROUNDUP(SUM(NJF45:NJF52),0)","v":0},{"$f":"NIX71","v":15},null,{"$f":"IF(NJI71*NJH71=0,\"\",NJI71*NJH71)","v":""},"Pallet Charge",15,null,null,"Pallet Charge",null,null,null,null,null,null,{"$f":"ROUNDUP(SUM(NJU45:NJU52),0)","v":0},{"$f":"NJM71","v":15},null,{"$f":"IF(NJX71*NJW71=0,\"\",NJX71*NJW71)","v":""},"Pallet Charge",15,null,null,"Pallet Charge",null,null,null,null,null,null,{"$f":"ROUNDUP(SUM(NKJ45:NKJ52),0)","v":0},{"$f":"NKB71","v":15},null,{"$f":"IF(NKM71*NKL71=0,\"\",NKM71*NKL71)","v":""},"Pallet Charge",15,null,null,"Pallet Charge",null,null,null,null,null,null,{"$f":"ROUNDUP(SUM(NKY45:NKY52),0)","v":0},{"$f":"NKQ71","v":15},null,{"$f":"IF(NLB71*NLA71=0,\"\",NLB71*NLA71)","v":""},"Pallet Charge",15,null,null,"Pallet Charge",null,null,null,null,null,null,{"$f":"ROUNDUP(SUM(NLN45:NLN52),0)","v":0},{"$f":"NLF71","v":15},null,{"$f":"IF(NLQ71*NLP71=0,\"\",NLQ71*NLP71)","v":""},"Pallet Charge",15,null,null,"Pallet Charge",null,null,null,null,null,null,{"$f":"ROUNDUP(SUM(NMC45:NMC52),0)","v":0},{"$f":"NLU71","v":15},null,{"$f":"IF(NMF71*NME71=0,\"\",NMF71*NME71)","v":""},"Pallet Charge",15,null,null,"Pallet Charge",null,null,null,null,null,null,{"$f":"ROUNDUP(SUM(NMR45:NMR52),0)","v":0},{"$f":"NMJ71","v":15},null,{"$f":"IF(NMU71*NMT71=0,\"\",NMU71*NMT71)","v":""},"Pallet Charge",15,null,null,"Pallet Charge",null,null,null,null,null,null,{"$f":"ROUNDUP(SUM(NNG45:NNG52),0)","v":0},{"$f":"NMY71","v":15},null,{"$f":"IF(NNJ71*NNI71=0,\"\",NNJ71*NNI71)","v":""},"Pallet Charge",15,null,null,"Pallet Charge",null,null,null,null,null,null,{"$f":"ROUNDUP(SUM(NNV45:NNV52),0)","v":0},{"$f":"NNN71","v":15},null,{"$f":"IF(NNY71*NNX71=0,\"\",NNY71*NNX71)","v":""},"Pallet Charge",15,null,null,"Pallet Charge",null,null,null,null,null,null,{"$f":"ROUNDUP(SUM(NOK45:NOK52),0)","v":0},{"$f":"NOC71","v":15},null,{"$f":"IF(NON71*NOM71=0,\"\",NON71*NOM71)","v":""},"Pallet Charge",15,null,null,"Pallet Charge",null,null,null,null,null,null,{"$f":"ROUNDUP(SUM(NOZ45:NOZ52),0)","v":0},{"$f":"NOR71","v":15},null,{"$f":"IF(NPC71*NPB71=0,\"\",NPC71*NPB71)","v":""},"Pallet Charge",15,null,null,"Pallet Charge",null,null,null,null,null,null,{"$f":"ROUNDUP(SUM(NPO45:NPO52),0)","v":0},{"$f":"NPG71","v":15},null,{"$f":"IF(NPR71*NPQ71=0,\"\",NPR71*NPQ71)","v":""},"Pallet Charge",15,null,null,"Pallet Charge",null,null,null,null,null,null,{"$f":"ROUNDUP(SUM(NQD45:NQD52),0)","v":0},{"$f":"NPV71","v":15},null,{"$f":"IF(NQG71*NQF71=0,\"\",NQG71*NQF71)","v":""},"Pallet Charge",15,null,null,"Pallet Charge",null,null,null,null,null,null,{"$f":"ROUNDUP(SUM(NQS45:NQS52),0)","v":0},{"$f":"NQK71","v":15},null,{"$f":"IF(NQV71*NQU71=0,\"\",NQV71*NQU71)","v":""},"Pallet Charge",15,null,null,"Pallet Charge",null,null,null,null,null,null,{"$f":"ROUNDUP(SUM(NRH45:NRH52),0)","v":0},{"$f":"NQZ71","v":15},null,{"$f":"IF(NRK71*NRJ71=0,\"\",NRK71*NRJ71)","v":""},"Pallet Charge",15,null,null,"Pallet Charge",null,null,null,null,null,null,{"$f":"ROUNDUP(SUM(NRW45:NRW52),0)","v":0},{"$f":"NRO71","v":15},null,{"$f":"IF(NRZ71*NRY71=0,\"\",NRZ71*NRY71)","v":""},"Pallet Charge",15,null,null,"Pallet Charge",null,null,null,null,null,null,{"$f":"ROUNDUP(SUM(NSL45:NSL52),0)","v":0},{"$f":"NSD71","v":15},null,{"$f":"IF(NSO71*NSN71=0,\"\",NSO71*NSN71)","v":""},"Pallet Charge",15,null,null,"Pallet Charge",null,null,null,null,null,null,{"$f":"ROUNDUP(SUM(NTA45:NTA52),0)","v":0},{"$f":"NSS71","v":15},null,{"$f":"IF(NTD71*NTC71=0,\"\",NTD71*NTC71)","v":""},"Pallet Charge",15,null,null,"Pallet Charge",null,null,null,null,null,null,{"$f":"ROUNDUP(SUM(NTP45:NTP52),0)","v":0},{"$f":"NTH71","v":15},null,{"$f":"IF(NTS71*NTR71=0,\"\",NTS71*NTR71)","v":""},"Pallet Charge",15,null,null,"Pallet Charge",null,null,null,null,null,null,{"$f":"ROUNDUP(SUM(NUE45:NUE52),0)","v":0},{"$f":"NTW71","v":15},null,{"$f":"IF(NUH71*NUG71=0,\"\",NUH71*NUG71)","v":""},"Pallet Charge",15,null,null,"Pallet Charge",null,null,null,null,null,null,{"$f":"ROUNDUP(SUM(NUT45:NUT52),0)","v":0},{"$f":"NUL71","v":15},null,{"$f":"IF(NUW71*NUV71=0,\"\",NUW71*NUV71)","v":""},"Pallet Charge",15,null,null,"Pallet Charge",null,null,null,null,null,null,{"$f":"ROUNDUP(SUM(NVI45:NVI52),0)","v":0},{"$f":"NVA71","v":15},null,{"$f":"IF(NVL71*NVK71=0,\"\",NVL71*NVK71)","v":""},"Pallet Charge",15,null,null,"Pallet Charge",null,null,null,null,null,null,{"$f":"ROUNDUP(SUM(NVX45:NVX52),0)","v":0},{"$f":"NVP71","v":15},null,{"$f":"IF(NWA71*NVZ71=0,\"\",NWA71*NVZ71)","v":""},"Pallet Charge",15,null,null,"Pallet Charge",null,null,null,null,null,null,{"$f":"ROUNDUP(SUM(NWM45:NWM52),0)","v":0},{"$f":"NWE71","v":15},null,{"$f":"IF(NWP71*NWO71=0,\"\",NWP71*NWO71)","v":""},"Pallet Charge",15,null,null,"Pallet Charge",null,null,null,null,null,null,{"$f":"ROUNDUP(SUM(NXB45:NXB52),0)","v":0},{"$f":"NWT71","v":15},null,{"$f":"IF(NXE71*NXD71=0,\"\",NXE71*NXD71)","v":""},"Pallet Charge",15,null,null,"Pallet Charge",null,null,null,null,null,null,{"$f":"ROUNDUP(SUM(NXQ45:NXQ52),0)","v":0},{"$f":"NXI71","v":15},null,{"$f":"IF(NXT71*NXS71=0,\"\",NXT71*NXS71)","v":""},"Pallet Charge",15,null,null,"Pallet Charge",null,null,null,null,null,null,{"$f":"ROUNDUP(SUM(NYF45:NYF52),0)","v":0},{"$f":"NXX71","v":15},null,{"$f":"IF(NYI71*NYH71=0,\"\",NYI71*NYH71)","v":""},"Pallet Charge",15,null,null,"Pallet Charge",null,null,null,null,null,null,{"$f":"ROUNDUP(SUM(NYU45:NYU52),0)","v":0},{"$f":"NYM71","v":15},null,{"$f":"IF(NYX71*NYW71=0,\"\",NYX71*NYW71)","v":""},"Pallet Charge",15,null,null,"Pallet Charge",null,null,null,null,null,null,{"$f":"ROUNDUP(SUM(NZJ45:NZJ52),0)","v":0},{"$f":"NZB71","v":15},null,{"$f":"IF(NZM71*NZL71=0,\"\",NZM71*NZL71)","v":""},"Pallet Charge",15,null,null,"Pallet Charge",null,null,null,null,null,null,{"$f":"ROUNDUP(SUM(NZY45:NZY52),0)","v":0},{"$f":"NZQ71","v":15},null,{"$f":"IF(OAB71*OAA71=0,\"\",OAB71*OAA71)","v":""},"Pallet Charge",15,null,null,"Pallet Charge",null,null,null,null,null,null,{"$f":"ROUNDUP(SUM(OAN45:OAN52),0)","v":0},{"$f":"OAF71","v":15},null,{"$f":"IF(OAQ71*OAP71=0,\"\",OAQ71*OAP71)","v":""},"Pallet Charge",15,null,null,"Pallet Charge",null,null,null,null,null,null,{"$f":"ROUNDUP(SUM(OBC45:OBC52),0)","v":0},{"$f":"OAU71","v":15},null,{"$f":"IF(OBF71*OBE71=0,\"\",OBF71*OBE71)","v":""},"Pallet Charge",15,null,null,"Pallet Charge",null,null,null,null,null,null,{"$f":"ROUNDUP(SUM(OBR45:OBR52),0)","v":0},{"$f":"OBJ71","v":15},null,{"$f":"IF(OBU71*OBT71=0,\"\",OBU71*OBT71)","v":""},"Pallet Charge",15,null,null,"Pallet Charge",null,null,null,null,null,null,{"$f":"ROUNDUP(SUM(OCG45:OCG52),0)","v":0},{"$f":"OBY71","v":15},null,{"$f":"IF(OCJ71*OCI71=0,\"\",OCJ71*OCI71)","v":""},"Pallet Charge",15,null,null,"Pallet Charge",null,null,null,null,null,null,{"$f":"ROUNDUP(SUM(OCV45:OCV52),0)","v":0},{"$f":"OCN71","v":15},null,{"$f":"IF(OCY71*OCX71=0,\"\",OCY71*OCX71)","v":""},"Pallet Charge",15,null,null,"Pallet Charge",null,null,null,null,null,null,{"$f":"ROUNDUP(SUM(ODK45:ODK52),0)","v":0},{"$f":"ODC71","v":15},null,{"$f":"IF(ODN71*ODM71=0,\"\",ODN71*ODM71)","v":""},"Pallet Charge",15,null,null,"Pallet Charge",null,null,null,null,null,null,{"$f":"ROUNDUP(SUM(ODZ45:ODZ52),0)","v":0},{"$f":"ODR71","v":15},null,{"$f":"IF(OEC71*OEB71=0,\"\",OEC71*OEB71)","v":""},"Pallet Charge",15,null,null,"Pallet Charge",null,null,null,null,null,null,{"$f":"ROUNDUP(SUM(OEO45:OEO52),0)","v":0},{"$f":"OEG71","v":15},null,{"$f":"IF(OER71*OEQ71=0,\"\",OER71*OEQ71)","v":""},"Pallet Charge",15,null,null,"Pallet Charge",null,null,null,null,null,null,{"$f":"ROUNDUP(SUM(OFD45:OFD52),0)","v":0},{"$f":"OEV71","v":15},null,{"$f":"IF(OFG71*OFF71=0,\"\",OFG71*OFF71)","v":""},"Pallet Charge",15,null,null,"Pallet Charge",null,null,null,null,null,null,{"$f":"ROUNDUP(SUM(OFS45:OFS52),0)","v":0},{"$f":"OFK71","v":15},null,{"$f":"IF(OFV71*OFU71=0,\"\",OFV71*OFU71)","v":""},"Pallet Charge",15,null,null,"Pallet Charge",null,null,null,null,null,null,{"$f":"ROUNDUP(SUM(OGH45:OGH52),0)","v":0},{"$f":"OFZ71","v":15},null,{"$f":"IF(OGK71*OGJ71=0,\"\",OGK71*OGJ71)","v":""},"Pallet Charge",15,null,null,"Pallet Charge",null,null,null,null,null,null,{"$f":"ROUNDUP(SUM(OGW45:OGW52),0)","v":0},{"$f":"OGO71","v":15},null,{"$f":"IF(OGZ71*OGY71=0,\"\",OGZ71*OGY71)","v":""},"Pallet Charge",15,null,null,"Pallet Charge",null,null,null,null,null,null,{"$f":"ROUNDUP(SUM(OHL45:OHL52),0)","v":0},{"$f":"OHD71","v":15},null,{"$f":"IF(OHO71*OHN71=0,\"\",OHO71*OHN71)","v":""},"Pallet Charge",15,null,null,"Pallet Charge",null,null,null,null,null,null,{"$f":"ROUNDUP(SUM(OIA45:OIA52),0)","v":0},{"$f":"OHS71","v":15},null,{"$f":"IF(OID71*OIC71=0,\"\",OID71*OIC71)","v":""},"Pallet Charge",15,null,null,"Pallet Charge",null,null,null,null,null,null,{"$f":"ROUNDUP(SUM(OIP45:OIP52),0)","v":0},{"$f":"OIH71","v":15},null,{"$f":"IF(OIS71*OIR71=0,\"\",OIS71*OIR71)","v":""},"Pallet Charge",15,null,null,"Pallet Charge",null,null,null,null,null,null,{"$f":"ROUNDUP(SUM(OJE45:OJE52),0)","v":0},{"$f":"OIW71","v":15},null,{"$f":"IF(OJH71*OJG71=0,\"\",OJH71*OJG71)","v":""},"Pallet Charge",15,null,null,"Pallet Charge",null,null,null,null,null,null,{"$f":"ROUNDUP(SUM(OJT45:OJT52),0)","v":0},{"$f":"OJL71","v":15},null,{"$f":"IF(OJW71*OJV71=0,\"\",OJW71*OJV71)","v":""},"Pallet Charge",15,null,null,"Pallet Charge",null,null,null,null,null,null,{"$f":"ROUNDUP(SUM(OKI45:OKI52),0)","v":0},{"$f":"OKA71","v":15},null,{"$f":"IF(OKL71*OKK71=0,\"\",OKL71*OKK71)","v":""},"Pallet Charge",15,null,null,"Pallet Charge",null,null,null,null,null,null,{"$f":"ROUNDUP(SUM(OKX45:OKX52),0)","v":0},{"$f":"OKP71","v":15},null,{"$f":"IF(OLA71*OKZ71=0,\"\",OLA71*OKZ71)","v":""},"Pallet Charge",15,null,null,"Pallet Charge",null,null,null,null,null,null,{"$f":"ROUNDUP(SUM(OLM45:OLM52),0)","v":0},{"$f":"OLE71","v":15},null,{"$f":"IF(OLP71*OLO71=0,\"\",OLP71*OLO71)","v":""},"Pallet Charge",15,null,null,"Pallet Charge",null,null,null,null,null,null,{"$f":"ROUNDUP(SUM(OMB45:OMB52),0)","v":0},{"$f":"OLT71","v":15},null,{"$f":"IF(OME71*OMD71=0,\"\",OME71*OMD71)","v":""},"Pallet Charge",15,null,null,"Pallet Charge",null,null,null,null,null,null,{"$f":"ROUNDUP(SUM(OMQ45:OMQ52),0)","v":0},{"$f":"OMI71","v":15},null,{"$f":"IF(OMT71*OMS71=0,\"\",OMT71*OMS71)","v":""},"Pallet Charge",15,null,null,"Pallet Charge",null,null,null,null,null,null,{"$f":"ROUNDUP(SUM(ONF45:ONF52),0)","v":0},{"$f":"OMX71","v":15},null,{"$f":"IF(ONI71*ONH71=0,\"\",ONI71*ONH71)","v":""},"Pallet Charge",15,null,null,"Pallet Charge",null,null,null,null,null,null,{"$f":"ROUNDUP(SUM(ONU45:ONU52),0)","v":0},{"$f":"ONM71","v":15},null,{"$f":"IF(ONX71*ONW71=0,\"\",ONX71*ONW71)","v":""},"Pallet Charge",15,null,null,"Pallet Charge",null,null,null,null,null,null,{"$f":"ROUNDUP(SUM(OOJ45:OOJ52),0)","v":0},{"$f":"OOB71","v":15},null,{"$f":"IF(OOM71*OOL71=0,\"\",OOM71*OOL71)","v":""},"Pallet Charge",15,null,null,"Pallet Charge",null,null,null,null,null,null,{"$f":"ROUNDUP(SUM(OOY45:OOY52),0)","v":0},{"$f":"OOQ71","v":15},null,{"$f":"IF(OPB71*OPA71=0,\"\",OPB71*OPA71)","v":""},"Pallet Charge",15,null,null,"Pallet Charge",null,null,null,null,null,null,{"$f":"ROUNDUP(SUM(OPN45:OPN52),0)","v":0},{"$f":"OPF71","v":15},null,{"$f":"IF(OPQ71*OPP71=0,\"\",OPQ71*OPP71)","v":""},"Pallet Charge",15,null,null,"Pallet Charge",null,null,null,null,null,null,{"$f":"ROUNDUP(SUM(OQC45:OQC52),0)","v":0},{"$f":"OPU71","v":15},null,{"$f":"IF(OQF71*OQE71=0,\"\",OQF71*OQE71)","v":""},"Pallet Charge",15,null,null,"Pallet Charge",null,null,null,null,null,null,{"$f":"ROUNDUP(SUM(OQR45:OQR52),0)","v":0},{"$f":"OQJ71","v":15},null,{"$f":"IF(OQU71*OQT71=0,\"\",OQU71*OQT71)","v":""},"Pallet Charge",15,null,null,"Pallet Charge",null,null,null,null,null,null,{"$f":"ROUNDUP(SUM(ORG45:ORG52),0)","v":0},{"$f":"OQY71","v":15},null,{"$f":"IF(ORJ71*ORI71=0,\"\",ORJ71*ORI71)","v":""},"Pallet Charge",15,null,null,"Pallet Charge",null,null,null,null,null,null,{"$f":"ROUNDUP(SUM(ORV45:ORV52),0)","v":0},{"$f":"ORN71","v":15},null,{"$f":"IF(ORY71*ORX71=0,\"\",ORY71*ORX71)","v":""},"Pallet Charge",15,null,null,"Pallet Charge",null,null,null,null,null,null,{"$f":"ROUNDUP(SUM(OSK45:OSK52),0)","v":0},{"$f":"OSC71","v":15},null,{"$f":"IF(OSN71*OSM71=0,\"\",OSN71*OSM71)","v":""},"Pallet Charge",15,null,null,"Pallet Charge",null,null,null,null,null,null,{"$f":"ROUNDUP(SUM(OSZ45:OSZ52),0)","v":0},{"$f":"OSR71","v":15},null,{"$f":"IF(OTC71*OTB71=0,\"\",OTC71*OTB71)","v":""},"Pallet Charge",15,null,null,"Pallet Charge",null,null,null,null,null,null,{"$f":"ROUNDUP(SUM(OTO45:OTO52),0)","v":0},{"$f":"OTG71","v":15},null,{"$f":"IF(OTR71*OTQ71=0,\"\",OTR71*OTQ71)","v":""},"Pallet Charge",15,null,null,"Pallet Charge",null,null,null,null,null,null,{"$f":"ROUNDUP(SUM(OUD45:OUD52),0)","v":0},{"$f":"OTV71","v":15},null,{"$f":"IF(OUG71*OUF71=0,\"\",OUG71*OUF71)","v":""},"Pallet Charge",15,null,null,"Pallet Charge",null,null,null,null,null,null,{"$f":"ROUNDUP(SUM(OUS45:OUS52),0)","v":0},{"$f":"OUK71","v":15},null,{"$f":"IF(OUV71*OUU71=0,\"\",OUV71*OUU71)","v":""},"Pallet Charge",15,null,null,"Pallet Charge",null,null,null,null,null,null,{"$f":"ROUNDUP(SUM(OVH45:OVH52),0)","v":0},{"$f":"OUZ71","v":15},null,{"$f":"IF(OVK71*OVJ71=0,\"\",OVK71*OVJ71)","v":""},"Pallet Charge",15,null,null,"Pallet Charge",null,null,null,null,null,null,{"$f":"ROUNDUP(SUM(OVW45:OVW52),0)","v":0},{"$f":"OVO71","v":15},null,{"$f":"IF(OVZ71*OVY71=0,\"\",OVZ71*OVY71)","v":""},"Pallet Charge",15,null,null,"Pallet Charge",null,null,null,null,null,null,{"$f":"ROUNDUP(SUM(OWL45:OWL52),0)","v":0},{"$f":"OWD71","v":15},null,{"$f":"IF(OWO71*OWN71=0,\"\",OWO71*OWN71)","v":""},"Pallet Charge",15,null,null,"Pallet Charge",null,null,null,null,null,null,{"$f":"ROUNDUP(SUM(OXA45:OXA52),0)","v":0},{"$f":"OWS71","v":15},null,{"$f":"IF(OXD71*OXC71=0,\"\",OXD71*OXC71)","v":""},"Pallet Charge",15,null,null,"Pallet Charge",null,null,null,null,null,null,{"$f":"ROUNDUP(SUM(OXP45:OXP52),0)","v":0},{"$f":"OXH71","v":15},null,{"$f":"IF(OXS71*OXR71=0,\"\",OXS71*OXR71)","v":""},"Pallet Charge",15,null,null,"Pallet Charge",null,null,null,null,null,null,{"$f":"ROUNDUP(SUM(OYE45:OYE52),0)","v":0},{"$f":"OXW71","v":15},null,{"$f":"IF(OYH71*OYG71=0,\"\",OYH71*OYG71)","v":""},"Pallet Charge",15,null,null,"Pallet Charge",null,null,null,null,null,null,{"$f":"ROUNDUP(SUM(OYT45:OYT52),0)","v":0},{"$f":"OYL71","v":15},null,{"$f":"IF(OYW71*OYV71=0,\"\",OYW71*OYV71)","v":""},"Pallet Charge",15,null,null,"Pallet Charge",null,null,null,null,null,null,{"$f":"ROUNDUP(SUM(OZI45:OZI52),0)","v":0},{"$f":"OZA71","v":15},null,{"$f":"IF(OZL71*OZK71=0,\"\",OZL71*OZK71)","v":""},"Pallet Charge",15,null,null,"Pallet Charge",null,null,null,null,null,null,{"$f":"ROUNDUP(SUM(OZX45:OZX52),0)","v":0},{"$f":"OZP71","v":15},null,{"$f":"IF(PAA71*OZZ71=0,\"\",PAA71*OZZ71)","v":""},"Pallet Charge",15,null,null,"Pallet Charge",null,null,null,null,null,null,{"$f":"ROUNDUP(SUM(PAM45:PAM52),0)","v":0},{"$f":"PAE71","v":15},null,{"$f":"IF(PAP71*PAO71=0,\"\",PAP71*PAO71)","v":""},"Pallet Charge",15,null,null,"Pallet Charge",null,null,null,null,null,null,{"$f":"ROUNDUP(SUM(PBB45:PBB52),0)","v":0},{"$f":"PAT71","v":15},null,{"$f":"IF(PBE71*PBD71=0,\"\",PBE71*PBD71)","v":""},"Pallet Charge",15,null,null,"Pallet Charge",null,null,null,null,null,null,{"$f":"ROUNDUP(SUM(PBQ45:PBQ52),0)","v":0},{"$f":"PBI71","v":15},null,{"$f":"IF(PBT71*PBS71=0,\"\",PBT71*PBS71)","v":""},"Pallet Charge",15,null,null,"Pallet Charge",null,null,null,null,null,null,{"$f":"ROUNDUP(SUM(PCF45:PCF52),0)","v":0},{"$f":"PBX71","v":15},null,{"$f":"IF(PCI71*PCH71=0,\"\",PCI71*PCH71)","v":""},"Pallet Charge",15,null,null,"Pallet Charge",null,null,null,null,null,null,{"$f":"ROUNDUP(SUM(PCU45:PCU52),0)","v":0},{"$f":"PCM71","v":15},null,{"$f":"IF(PCX71*PCW71=0,\"\",PCX71*PCW71)","v":""},"Pallet Charge",15,null,null,"Pallet Charge",null,null,null,null,null,null,{"$f":"ROUNDUP(SUM(PDJ45:PDJ52),0)","v":0},{"$f":"PDB71","v":15},null,{"$f":"IF(PDM71*PDL71=0,\"\",PDM71*PDL71)","v":""},"Pallet Charge",15,null,null,"Pallet Charge",null,null,null,null,null,null,{"$f":"ROUNDUP(SUM(PDY45:PDY52),0)","v":0},{"$f":"PDQ71","v":15},null,{"$f":"IF(PEB71*PEA71=0,\"\",PEB71*PEA71)","v":""},"Pallet Charge",15,null,null,"Pallet Charge",null,null,null,null,null,null,{"$f":"ROUNDUP(SUM(PEN45:PEN52),0)","v":0},{"$f":"PEF71","v":15},null,{"$f":"IF(PEQ71*PEP71=0,\"\",PEQ71*PEP71)","v":""},"Pallet Charge",15,null,null,"Pallet Charge",null,null,null,null,null,null,{"$f":"ROUNDUP(SUM(PFC45:PFC52),0)","v":0},{"$f":"PEU71","v":15},null,{"$f":"IF(PFF71*PFE71=0,\"\",PFF71*PFE71)","v":""},"Pallet Charge",15,null,null,"Pallet Charge",null,null,null,null,null,null,{"$f":"ROUNDUP(SUM(PFR45:PFR52),0)","v":0},{"$f":"PFJ71","v":15},null,{"$f":"IF(PFU71*PFT71=0,\"\",PFU71*PFT71)","v":""},"Pallet Charge",15,null,null,"Pallet Charge",null,null,null,null,null,null,{"$f":"ROUNDUP(SUM(PGG45:PGG52),0)","v":0},{"$f":"PFY71","v":15},null,{"$f":"IF(PGJ71*PGI71=0,\"\",PGJ71*PGI71)","v":""},"Pallet Charge",15,null,null,"Pallet Charge",null,null,null,null,null,null,{"$f":"ROUNDUP(SUM(PGV45:PGV52),0)","v":0},{"$f":"PGN71","v":15},null,{"$f":"IF(PGY71*PGX71=0,\"\",PGY71*PGX71)","v":""},"Pallet Charge",15,null,null,"Pallet Charge",null,null,null,null,null,null,{"$f":"ROUNDUP(SUM(PHK45:PHK52),0)","v":0},{"$f":"PHC71","v":15},null,{"$f":"IF(PHN71*PHM71=0,\"\",PHN71*PHM71)","v":""},"Pallet Charge",15,null,null,"Pallet Charge",null,null,null,null,null,null,{"$f":"ROUNDUP(SUM(PHZ45:PHZ52),0)","v":0},{"$f":"PHR71","v":15},null,{"$f":"IF(PIC71*PIB71=0,\"\",PIC71*PIB71)","v":""},"Pallet Charge",15,null,null,"Pallet Charge",null,null,null,null,null,null,{"$f":"ROUNDUP(SUM(PIO45:PIO52),0)","v":0},{"$f":"PIG71","v":15},null,{"$f":"IF(PIR71*PIQ71=0,\"\",PIR71*PIQ71)","v":""},"Pallet Charge",15,null,null,"Pallet Charge",null,null,null,null,null,null,{"$f":"ROUNDUP(SUM(PJD45:PJD52),0)","v":0},{"$f":"PIV71","v":15},null,{"$f":"IF(PJG71*PJF71=0,\"\",PJG71*PJF71)","v":""},"Pallet Charge",15,null,null,"Pallet Charge",null,null,null,null,null,null,{"$f":"ROUNDUP(SUM(PJS45:PJS52),0)","v":0},{"$f":"PJK71","v":15},null,{"$f":"IF(PJV71*PJU71=0,\"\",PJV71*PJU71)","v":""},"Pallet Charge",15,null,null,"Pallet Charge",null,null,null,null,null,null,{"$f":"ROUNDUP(SUM(PKH45:PKH52),0)","v":0},{"$f":"PJZ71","v":15},null,{"$f":"IF(PKK71*PKJ71=0,\"\",PKK71*PKJ71)","v":""},"Pallet Charge",15,null,null,"Pallet Charge",null,null,null,null,null,null,{"$f":"ROUNDUP(SUM(PKW45:PKW52),0)","v":0},{"$f":"PKO71","v":15},null,{"$f":"IF(PKZ71*PKY71=0,\"\",PKZ71*PKY71)","v":""},"Pallet Charge",15,null,null,"Pallet Charge",null,null,null,null,null,null,{"$f":"ROUNDUP(SUM(PLL45:PLL52),0)","v":0},{"$f":"PLD71","v":15},null,{"$f":"IF(PLO71*PLN71=0,\"\",PLO71*PLN71)","v":""},"Pallet Charge",15,null,null,"Pallet Charge",null,null,null,null,null,null,{"$f":"ROUNDUP(SUM(PMA45:PMA52),0)","v":0},{"$f":"PLS71","v":15},null,{"$f":"IF(PMD71*PMC71=0,\"\",PMD71*PMC71)","v":""},"Pallet Charge",15,null,null,"Pallet Charge",null,null,null,null,null,null,{"$f":"ROUNDUP(SUM(PMP45:PMP52),0)","v":0},{"$f":"PMH71","v":15},null,{"$f":"IF(PMS71*PMR71=0,\"\",PMS71*PMR71)","v":""},"Pallet Charge",15,null,null,"Pallet Charge",null,null,null,null,null,null,{"$f":"ROUNDUP(SUM(PNE45:PNE52),0)","v":0},{"$f":"PMW71","v":15},null,{"$f":"IF(PNH71*PNG71=0,\"\",PNH71*PNG71)","v":""},"Pallet Charge",15,null,null,"Pallet Charge",null,null,null,null,null,null,{"$f":"ROUNDUP(SUM(PNT45:PNT52),0)","v":0},{"$f":"PNL71","v":15},null,{"$f":"IF(PNW71*PNV71=0,\"\",PNW71*PNV71)","v":""},"Pallet Charge",15,null,null,"Pallet Charge",null,null,null,null,null,null,{"$f":"ROUNDUP(SUM(POI45:POI52),0)","v":0},{"$f":"POA71","v":15},null,{"$f":"IF(POL71*POK71=0,\"\",POL71*POK71)","v":""},"Pallet Charge",15,null,null,"Pallet Charge",null,null,null,null,null,null,{"$f":"ROUNDUP(SUM(POX45:POX52),0)","v":0},{"$f":"POP71","v":15},null,{"$f":"IF(PPA71*POZ71=0,\"\",PPA71*POZ71)","v":""},"Pallet Charge",15,null,null,"Pallet Charge",null,null,null,null,null,null,{"$f":"ROUNDUP(SUM(PPM45:PPM52),0)","v":0},{"$f":"PPE71","v":15},null,{"$f":"IF(PPP71*PPO71=0,\"\",PPP71*PPO71)","v":""},"Pallet Charge",15,null,null,"Pallet Charge",null,null,null,null,null,null,{"$f":"ROUNDUP(SUM(PQB45:PQB52),0)","v":0},{"$f":"PPT71","v":15},null,{"$f":"IF(PQE71*PQD71=0,\"\",PQE71*PQD71)","v":""},"Pallet Charge",15,null,null,"Pallet Charge",null,null,null,null,null,null,{"$f":"ROUNDUP(SUM(PQQ45:PQQ52),0)","v":0},{"$f":"PQI71","v":15},null,{"$f":"IF(PQT71*PQS71=0,\"\",PQT71*PQS71)","v":""},"Pallet Charge",15,null,null,"Pallet Charge",null,null,null,null,null,null,{"$f":"ROUNDUP(SUM(PRF45:PRF52),0)","v":0},{"$f":"PQX71","v":15},null,{"$f":"IF(PRI71*PRH71=0,\"\",PRI71*PRH71)","v":""},"Pallet Charge",15,null,null,"Pallet Charge",null,null,null,null,null,null,{"$f":"ROUNDUP(SUM(PRU45:PRU52),0)","v":0},{"$f":"PRM71","v":15},null,{"$f":"IF(PRX71*PRW71=0,\"\",PRX71*PRW71)","v":""},"Pallet Charge",15,null,null,"Pallet Charge",null,null,null,null,null,null,{"$f":"ROUNDUP(SUM(PSJ45:PSJ52),0)","v":0},{"$f":"PSB71","v":15},null,{"$f":"IF(PSM71*PSL71=0,\"\",PSM71*PSL71)","v":""},"Pallet Charge",15,null,null,"Pallet Charge",null,null,null,null,null,null,{"$f":"ROUNDUP(SUM(PSY45:PSY52),0)","v":0},{"$f":"PSQ71","v":15},null,{"$f":"IF(PTB71*PTA71=0,\"\",PTB71*PTA71)","v":""},"Pallet Charge",15,null,null,"Pallet Charge",null,null,null,null,null,null,{"$f":"ROUNDUP(SUM(PTN45:PTN52),0)","v":0},{"$f":"PTF71","v":15},null,{"$f":"IF(PTQ71*PTP71=0,\"\",PTQ71*PTP71)","v":""},"Pallet Charge",15,null,null,"Pallet Charge",null,null,null,null,null,null,{"$f":"ROUNDUP(SUM(PUC45:PUC52),0)","v":0},{"$f":"PTU71","v":15},null,{"$f":"IF(PUF71*PUE71=0,\"\",PUF71*PUE71)","v":""},"Pallet Charge",15,null,null,"Pallet Charge",null,null,null,null,null,null,{"$f":"ROUNDUP(SUM(PUR45:PUR52),0)","v":0},{"$f":"PUJ71","v":15},null,{"$f":"IF(PUU71*PUT71=0,\"\",PUU71*PUT71)","v":""},"Pallet Charge",15,null,null,"Pallet Charge",null,null,null,null,null,null,{"$f":"ROUNDUP(SUM(PVG45:PVG52),0)","v":0},{"$f":"PUY71","v":15},null,{"$f":"IF(PVJ71*PVI71=0,\"\",PVJ71*PVI71)","v":""},"Pallet Charge",15,null,null,"Pallet Charge",null,null,null,null,null,null,{"$f":"ROUNDUP(SUM(PVV45:PVV52),0)","v":0},{"$f":"PVN71","v":15},null,{"$f":"IF(PVY71*PVX71=0,\"\",PVY71*PVX71)","v":""},"Pallet Charge",15,null,null,"Pallet Charge",null,null,null,null,null,null,{"$f":"ROUNDUP(SUM(PWK45:PWK52),0)","v":0},{"$f":"PWC71","v":15},null,{"$f":"IF(PWN71*PWM71=0,\"\",PWN71*PWM71)","v":""},"Pallet Charge",15,null,null,"Pallet Charge",null,null,null,null,null,null,{"$f":"ROUNDUP(SUM(PWZ45:PWZ52),0)","v":0},{"$f":"PWR71","v":15},null,{"$f":"IF(PXC71*PXB71=0,\"\",PXC71*PXB71)","v":""},"Pallet Charge",15,null,null,"Pallet Charge",null,null,null,null,null,null,{"$f":"ROUNDUP(SUM(PXO45:PXO52),0)","v":0},{"$f":"PXG71","v":15},null,{"$f":"IF(PXR71*PXQ71=0,\"\",PXR71*PXQ71)","v":""},"Pallet Charge",15,null,null,"Pallet Charge",null,null,null,null,null,null,{"$f":"ROUNDUP(SUM(PYD45:PYD52),0)","v":0},{"$f":"PXV71","v":15},null,{"$f":"IF(PYG71*PYF71=0,\"\",PYG71*PYF71)","v":""},"Pallet Charge",15,null,null,"Pallet Charge",null,null,null,null,null,null,{"$f":"ROUNDUP(SUM(PYS45:PYS52),0)","v":0},{"$f":"PYK71","v":15},null,{"$f":"IF(PYV71*PYU71=0,\"\",PYV71*PYU71)","v":""},"Pallet Charge",15,null,null,"Pallet Charge",null,null,null,null,null,null,{"$f":"ROUNDUP(SUM(PZH45:PZH52),0)","v":0},{"$f":"PYZ71","v":15},null,{"$f":"IF(PZK71*PZJ71=0,\"\",PZK71*PZJ71)","v":""},"Pallet Charge",15,null,null,"Pallet Charge",null,null,null,null,null,null,{"$f":"ROUNDUP(SUM(PZW45:PZW52),0)","v":0},{"$f":"PZO71","v":15},null,{"$f":"IF(PZZ71*PZY71=0,\"\",PZZ71*PZY71)","v":""},"Pallet Charge",15,null,null,"Pallet Charge",null,null,null,null,null,null,{"$f":"ROUNDUP(SUM(QAL45:QAL52),0)","v":0},{"$f":"QAD71","v":15},null,{"$f":"IF(QAO71*QAN71=0,\"\",QAO71*QAN71)","v":""},"Pallet Charge",15,null,null,"Pallet Charge",null,null,null,null,null,null,{"$f":"ROUNDUP(SUM(QBA45:QBA52),0)","v":0},{"$f":"QAS71","v":15},null,{"$f":"IF(QBD71*QBC71=0,\"\",QBD71*QBC71)","v":""},"Pallet Charge",15,null,null,"Pallet Charge",null,null,null,null,null,null,{"$f":"ROUNDUP(SUM(QBP45:QBP52),0)","v":0},{"$f":"QBH71","v":15},null,{"$f":"IF(QBS71*QBR71=0,\"\",QBS71*QBR71)","v":""},"Pallet Charge",15,null,null,"Pallet Charge",null,null,null,null,null,null,{"$f":"ROUNDUP(SUM(QCE45:QCE52),0)","v":0},{"$f":"QBW71","v":15},null,{"$f":"IF(QCH71*QCG71=0,\"\",QCH71*QCG71)","v":""},"Pallet Charge",15,null,null,"Pallet Charge",null,null,null,null,null,null,{"$f":"ROUNDUP(SUM(QCT45:QCT52),0)","v":0},{"$f":"QCL71","v":15},null,{"$f":"IF(QCW71*QCV71=0,\"\",QCW71*QCV71)","v":""},"Pallet Charge",15,null,null,"Pallet Charge",null,null,null,null,null,null,{"$f":"ROUNDUP(SUM(QDI45:QDI52),0)","v":0},{"$f":"QDA71","v":15},null,{"$f":"IF(QDL71*QDK71=0,\"\",QDL71*QDK71)","v":""},"Pallet Charge",15,null,null,"Pallet Charge",null,null,null,null,null,null,{"$f":"ROUNDUP(SUM(QDX45:QDX52),0)","v":0},{"$f":"QDP71","v":15},null,{"$f":"IF(QEA71*QDZ71=0,\"\",QEA71*QDZ71)","v":""},"Pallet Charge",15,null,null,"Pallet Charge",null,null,null,null,null,null,{"$f":"ROUNDUP(SUM(QEM45:QEM52),0)","v":0},{"$f":"QEE71","v":15},null,{"$f":"IF(QEP71*QEO71=0,\"\",QEP71*QEO71)","v":""},"Pallet Charge",15,null,null,"Pallet Charge",null,null,null,null,null,null,{"$f":"ROUNDUP(SUM(QFB45:QFB52),0)","v":0},{"$f":"QET71","v":15},null,{"$f":"IF(QFE71*QFD71=0,\"\",QFE71*QFD71)","v":""},"Pallet Charge",15,null,null,"Pallet Charge",null,null,null,null,null,null,{"$f":"ROUNDUP(SUM(QFQ45:QFQ52),0)","v":0},{"$f":"QFI71","v":15},null,{"$f":"IF(QFT71*QFS71=0,\"\",QFT71*QFS71)","v":""},"Pallet Charge",15,null,null,"Pallet Charge",null,null,null,null,null,null,{"$f":"ROUNDUP(SUM(QGF45:QGF52),0)","v":0},{"$f":"QFX71","v":15},null,{"$f":"IF(QGI71*QGH71=0,\"\",QGI71*QGH71)","v":""},"Pallet Charge",15,null,null,"Pallet Charge",null,null,null,null,null,null,{"$f":"ROUNDUP(SUM(QGU45:QGU52),0)","v":0},{"$f":"QGM71","v":15},null,{"$f":"IF(QGX71*QGW71=0,\"\",QGX71*QGW71)","v":""},"Pallet Charge",15,null,null,"Pallet Charge",null,null,null,null,null,null,{"$f":"ROUNDUP(SUM(QHJ45:QHJ52),0)","v":0},{"$f":"QHB71","v":15},null,{"$f":"IF(QHM71*QHL71=0,\"\",QHM71*QHL71)","v":""},"Pallet Charge",15,null,null,"Pallet Charge",null,null,null,null,null,null,{"$f":"ROUNDUP(SUM(QHY45:QHY52),0)","v":0},{"$f":"QHQ71","v":15},null,{"$f":"IF(QIB71*QIA71=0,\"\",QIB71*QIA71)","v":""},"Pallet Charge",15,null,null,"Pallet Charge",null,null,null,null,null,null,{"$f":"ROUNDUP(SUM(QIN45:QIN52),0)","v":0},{"$f":"QIF71","v":15},null,{"$f":"IF(QIQ71*QIP71=0,\"\",QIQ71*QIP71)","v":""},"Pallet Charge",15,null,null,"Pallet Charge",null,null,null,null,null,null,{"$f":"ROUNDUP(SUM(QJC45:QJC52),0)","v":0},{"$f":"QIU71","v":15},null,{"$f":"IF(QJF71*QJE71=0,\"\",QJF71*QJE71)","v":""},"Pallet Charge",15,null,null,"Pallet Charge",null,null,null,null,null,null,{"$f":"ROUNDUP(SUM(QJR45:QJR52),0)","v":0},{"$f":"QJJ71","v":15},null,{"$f":"IF(QJU71*QJT71=0,\"\",QJU71*QJT71)","v":""},"Pallet Charge",15,null,null,"Pallet Charge",null,null,null,null,null,null,{"$f":"ROUNDUP(SUM(QKG45:QKG52),0)","v":0},{"$f":"QJY71","v":15},null,{"$f":"IF(QKJ71*QKI71=0,\"\",QKJ71*QKI71)","v":""},"Pallet Charge",15,null,null,"Pallet Charge",null,null,null,null,null,null,{"$f":"ROUNDUP(SUM(QKV45:QKV52),0)","v":0},{"$f":"QKN71","v":15},null,{"$f":"IF(QKY71*QKX71=0,\"\",QKY71*QKX71)","v":""},"Pallet Charge",15,null,null,"Pallet Charge",null,null,null,null,null,null,{"$f":"ROUNDUP(SUM(QLK45:QLK52),0)","v":0},{"$f":"QLC71","v":15},null,{"$f":"IF(QLN71*QLM71=0,\"\",QLN71*QLM71)","v":""},"Pallet Charge",15,null,null,"Pallet Charge",null,null,null,null,null,null,{"$f":"ROUNDUP(SUM(QLZ45:QLZ52),0)","v":0},{"$f":"QLR71","v":15},null,{"$f":"IF(QMC71*QMB71=0,\"\",QMC71*QMB71)","v":""},"Pallet Charge",15,null,null,"Pallet Charge",null,null,null,null,null,null,{"$f":"ROUNDUP(SUM(QMO45:QMO52),0)","v":0},{"$f":"QMG71","v":15},null,{"$f":"IF(QMR71*QMQ71=0,\"\",QMR71*QMQ71)","v":""},"Pallet Charge",15,null,null,"Pallet Charge",null,null,null,null,null,null,{"$f":"ROUNDUP(SUM(QND45:QND52),0)","v":0},{"$f":"QMV71","v":15},null,{"$f":"IF(QNG71*QNF71=0,\"\",QNG71*QNF71)","v":""},"Pallet Charge",15,null,null,"Pallet Charge",null,null,null,null,null,null,{"$f":"ROUNDUP(SUM(QNS45:QNS52),0)","v":0},{"$f":"QNK71","v":15},null,{"$f":"IF(QNV71*QNU71=0,\"\",QNV71*QNU71)","v":""},"Pallet Charge",15,null,null,"Pallet Charge",null,null,null,null,null,null,{"$f":"ROUNDUP(SUM(QOH45:QOH52),0)","v":0},{"$f":"QNZ71","v":15},null,{"$f":"IF(QOK71*QOJ71=0,\"\",QOK71*QOJ71)","v":""},"Pallet Charge",15,null,null,"Pallet Charge",null,null,null,null,null,null,{"$f":"ROUNDUP(SUM(QOW45:QOW52),0)","v":0},{"$f":"QOO71","v":15},null,{"$f":"IF(QOZ71*QOY71=0,\"\",QOZ71*QOY71)","v":""},"Pallet Charge",15,null,null,"Pallet Charge",null,null,null,null,null,null,{"$f":"ROUNDUP(SUM(QPL45:QPL52),0)","v":0},{"$f":"QPD71","v":15},null,{"$f":"IF(QPO71*QPN71=0,\"\",QPO71*QPN71)","v":""},"Pallet Charge",15,null,null,"Pallet Charge",null,null,null,null,null,null,{"$f":"ROUNDUP(SUM(QQA45:QQA52),0)","v":0},{"$f":"QPS71","v":15},null,{"$f":"IF(QQD71*QQC71=0,\"\",QQD71*QQC71)","v":""},"Pallet Charge",15,null,null,"Pallet Charge",null,null,null,null,null,null,{"$f":"ROUNDUP(SUM(QQP45:QQP52),0)","v":0},{"$f":"QQH71","v":15},null,{"$f":"IF(QQS71*QQR71=0,\"\",QQS71*QQR71)","v":""},"Pallet Charge",15,null,null,"Pallet Charge",null,null,null,null,null,null,{"$f":"ROUNDUP(SUM(QRE45:QRE52),0)","v":0},{"$f":"QQW71","v":15},null,{"$f":"IF(QRH71*QRG71=0,\"\",QRH71*QRG71)","v":""},"Pallet Charge",15,null,null,"Pallet Charge",null,null,null,null,null,null,{"$f":"ROUNDUP(SUM(QRT45:QRT52),0)","v":0},{"$f":"QRL71","v":15},null,{"$f":"IF(QRW71*QRV71=0,\"\",QRW71*QRV71)","v":""},"Pallet Charge",15,null,null,"Pallet Charge",null,null,null,null,null,null,{"$f":"ROUNDUP(SUM(QSI45:QSI52),0)","v":0},{"$f":"QSA71","v":15},null,{"$f":"IF(QSL71*QSK71=0,\"\",QSL71*QSK71)","v":""},"Pallet Charge",15,null,null,"Pallet Charge",null,null,null,null,null,null,{"$f":"ROUNDUP(SUM(QSX45:QSX52),0)","v":0},{"$f":"QSP71","v":15},null,{"$f":"IF(QTA71*QSZ71=0,\"\",QTA71*QSZ71)","v":""},"Pallet Charge",15,null,null,"Pallet Charge",null,null,null,null,null,null,{"$f":"ROUNDUP(SUM(QTM45:QTM52),0)","v":0},{"$f":"QTE71","v":15},null,{"$f":"IF(QTP71*QTO71=0,\"\",QTP71*QTO71)","v":""},"Pallet Charge",15,null,null,"Pallet Charge",null,null,null,null,null,null,{"$f":"ROUNDUP(SUM(QUB45:QUB52),0)","v":0},{"$f":"QTT71","v":15},null,{"$f":"IF(QUE71*QUD71=0,\"\",QUE71*QUD71)","v":""},"Pallet Charge",15,null,null,"Pallet Charge",null,null,null,null,null,null,{"$f":"ROUNDUP(SUM(QUQ45:QUQ52),0)","v":0},{"$f":"QUI71","v":15},null,{"$f":"IF(QUT71*QUS71=0,\"\",QUT71*QUS71)","v":""},"Pallet Charge",15,null,null,"Pallet Charge",null,null,null,null,null,null,{"$f":"ROUNDUP(SUM(QVF45:QVF52),0)","v":0},{"$f":"QUX71","v":15},null,{"$f":"IF(QVI71*QVH71=0,\"\",QVI71*QVH71)","v":""},"Pallet Charge",15,null,null,"Pallet Charge",null,null,null,null,null,null,{"$f":"ROUNDUP(SUM(QVU45:QVU52),0)","v":0},{"$f":"QVM71","v":15},null,{"$f":"IF(QVX71*QVW71=0,\"\",QVX71*QVW71)","v":""},"Pallet Charge",15,null,null,"Pallet Charge",null,null,null,null,null,null,{"$f":"ROUNDUP(SUM(QWJ45:QWJ52),0)","v":0},{"$f":"QWB71","v":15},null,{"$f":"IF(QWM71*QWL71=0,\"\",QWM71*QWL71)","v":""},"Pallet Charge",15,null,null,"Pallet Charge",null,null,null,null,null,null,{"$f":"ROUNDUP(SUM(QWY45:QWY52),0)","v":0},{"$f":"QWQ71","v":15},null,{"$f":"IF(QXB71*QXA71=0,\"\",QXB71*QXA71)","v":""},"Pallet Charge",15,null,null,"Pallet Charge",null,null,null,null,null,null,{"$f":"ROUNDUP(SUM(QXN45:QXN52),0)","v":0},{"$f":"QXF71","v":15},null,{"$f":"IF(QXQ71*QXP71=0,\"\",QXQ71*QXP71)","v":""},"Pallet Charge",15,null,null,"Pallet Charge",null,null,null,null,null,null,{"$f":"ROUNDUP(SUM(QYC45:QYC52),0)","v":0},{"$f":"QXU71","v":15},null,{"$f":"IF(QYF71*QYE71=0,\"\",QYF71*QYE71)","v":""},"Pallet Charge",15,null,null,"Pallet Charge",null,null,null,null,null,null,{"$f":"ROUNDUP(SUM(QYR45:QYR52),0)","v":0},{"$f":"QYJ71","v":15},null,{"$f":"IF(QYU71*QYT71=0,\"\",QYU71*QYT71)","v":""},"Pallet Charge",15,null,null,"Pallet Charge",null,null,null,null,null,null,{"$f":"ROUNDUP(SUM(QZG45:QZG52),0)","v":0},{"$f":"QYY71","v":15},null,{"$f":"IF(QZJ71*QZI71=0,\"\",QZJ71*QZI71)","v":""},"Pallet Charge",15,null,null,"Pallet Charge",null,null,null,null,null,null,{"$f":"ROUNDUP(SUM(QZV45:QZV52),0)","v":0},{"$f":"QZN71","v":15},null,{"$f":"IF(QZY71*QZX71=0,\"\",QZY71*QZX71)","v":""},"Pallet Charge",15,null,null,"Pallet Charge",null,null,null,null,null,null,{"$f":"ROUNDUP(SUM(RAK45:RAK52),0)","v":0},{"$f":"RAC71","v":15},null,{"$f":"IF(RAN71*RAM71=0,\"\",RAN71*RAM71)","v":""},"Pallet Charge",15,null,null,"Pallet Charge",null,null,null,null,null,null,{"$f":"ROUNDUP(SUM(RAZ45:RAZ52),0)","v":0},{"$f":"RAR71","v":15},null,{"$f":"IF(RBC71*RBB71=0,\"\",RBC71*RBB71)","v":""},"Pallet Charge",15,null,null,"Pallet Charge",null,null,null,null,null,null,{"$f":"ROUNDUP(SUM(RBO45:RBO52),0)","v":0},{"$f":"RBG71","v":15},null,{"$f":"IF(RBR71*RBQ71=0,\"\",RBR71*RBQ71)","v":""},"Pallet Charge",15,null,null,"Pallet Charge",null,null,null,null,null,null,{"$f":"ROUNDUP(SUM(RCD45:RCD52),0)","v":0},{"$f":"RBV71","v":15},null,{"$f":"IF(RCG71*RCF71=0,\"\",RCG71*RCF71)","v":""},"Pallet Charge",15,null,null,"Pallet Charge",null,null,null,null,null,null,{"$f":"ROUNDUP(SUM(RCS45:RCS52),0)","v":0},{"$f":"RCK71","v":15},null,{"$f":"IF(RCV71*RCU71=0,\"\",RCV71*RCU71)","v":""},"Pallet Charge",15,null,null,"Pallet Charge",null,null,null,null,null,null,{"$f":"ROUNDUP(SUM(RDH45:RDH52),0)","v":0},{"$f":"RCZ71","v":15},null,{"$f":"IF(RDK71*RDJ71=0,\"\",RDK71*RDJ71)","v":""},"Pallet Charge",15,null,null,"Pallet Charge",null,null,null,null,null,null,{"$f":"ROUNDUP(SUM(RDW45:RDW52),0)","v":0},{"$f":"RDO71","v":15},null,{"$f":"IF(RDZ71*RDY71=0,\"\",RDZ71*RDY71)","v":""},"Pallet Charge",15,null,null,"Pallet Charge",null,null,null,null,null,null,{"$f":"ROUNDUP(SUM(REL45:REL52),0)","v":0},{"$f":"RED71","v":15},null,{"$f":"IF(REO71*REN71=0,\"\",REO71*REN71)","v":""},"Pallet Charge",15,null,null,"Pallet Charge",null,null,null,null,null,null,{"$f":"ROUNDUP(SUM(RFA45:RFA52),0)","v":0},{"$f":"RES71","v":15},null,{"$f":"IF(RFD71*RFC71=0,\"\",RFD71*RFC71)","v":""},"Pallet Charge",15,null,null,"Pallet Charge",null,null,null,null,null,null,{"$f":"ROUNDUP(SUM(RFP45:RFP52),0)","v":0},{"$f":"RFH71","v":15},null,{"$f":"IF(RFS71*RFR71=0,\"\",RFS71*RFR71)","v":""},"Pallet Charge",15,null,null,"Pallet Charge",null,null,null,null,null,null,{"$f":"ROUNDUP(SUM(RGE45:RGE52),0)","v":0},{"$f":"RFW71","v":15},null,{"$f":"IF(RGH71*RGG71=0,\"\",RGH71*RGG71)","v":""},"Pallet Charge",15,null,null,"Pallet Charge",null,null,null,null,null,null,{"$f":"ROUNDUP(SUM(RGT45:RGT52),0)","v":0},{"$f":"RGL71","v":15},null,{"$f":"IF(RGW71*RGV71=0,\"\",RGW71*RGV71)","v":""},"Pallet Charge",15,null,null,"Pallet Charge",null,null,null,null,null,null,{"$f":"ROUNDUP(SUM(RHI45:RHI52),0)","v":0},{"$f":"RHA71","v":15},null,{"$f":"IF(RHL71*RHK71=0,\"\",RHL71*RHK71)","v":""},"Pallet Charge",15,null,null,"Pallet Charge",null,null,null,null,null,null,{"$f":"ROUNDUP(SUM(RHX45:RHX52),0)","v":0},{"$f":"RHP71","v":15},null,{"$f":"IF(RIA71*RHZ71=0,\"\",RIA71*RHZ71)","v":""},"Pallet Charge",15,null,null,"Pallet Charge",null,null,null,null,null,null,{"$f":"ROUNDUP(SUM(RIM45:RIM52),0)","v":0},{"$f":"RIE71","v":15},null,{"$f":"IF(RIP71*RIO71=0,\"\",RIP71*RIO71)","v":""},"Pallet Charge",15,null,null,"Pallet Charge",null,null,null,null,null,null,{"$f":"ROUNDUP(SUM(RJB45:RJB52),0)","v":0},{"$f":"RIT71","v":15},null,{"$f":"IF(RJE71*RJD71=0,\"\",RJE71*RJD71)","v":""},"Pallet Charge",15,null,null,"Pallet Charge",null,null,null,null,null,null,{"$f":"ROUNDUP(SUM(RJQ45:RJQ52),0)","v":0},{"$f":"RJI71","v":15},null,{"$f":"IF(RJT71*RJS71=0,\"\",RJT71*RJS71)","v":""},"Pallet Charge",15,null,null,"Pallet Charge",null,null,null,null,null,null,{"$f":"ROUNDUP(SUM(RKF45:RKF52),0)","v":0},{"$f":"RJX71","v":15},null,{"$f":"IF(RKI71*RKH71=0,\"\",RKI71*RKH71)","v":""},"Pallet Charge",15,null,null,"Pallet Charge",null,null,null,null,null,null,{"$f":"ROUNDUP(SUM(RKU45:RKU52),0)","v":0},{"$f":"RKM71","v":15},null,{"$f":"IF(RKX71*RKW71=0,\"\",RKX71*RKW71)","v":""},"Pallet Charge",15,null,null,"Pallet Charge",null,null,null,null,null,null,{"$f":"ROUNDUP(SUM(RLJ45:RLJ52),0)","v":0},{"$f":"RLB71","v":15},null,{"$f":"IF(RLM71*RLL71=0,\"\",RLM71*RLL71)","v":""},"Pallet Charge",15,null,null,"Pallet Charge",null,null,null,null,null,null,{"$f":"ROUNDUP(SUM(RLY45:RLY52),0)","v":0},{"$f":"RLQ71","v":15},null,{"$f":"IF(RMB71*RMA71=0,\"\",RMB71*RMA71)","v":""},"Pallet Charge",15,null,null,"Pallet Charge",null,null,null,null,null,null,{"$f":"ROUNDUP(SUM(RMN45:RMN52),0)","v":0},{"$f":"RMF71","v":15},null,{"$f":"IF(RMQ71*RMP71=0,\"\",RMQ71*RMP71)","v":""},"Pallet Charge",15,null,null,"Pallet Charge",null,null,null,null,null,null,{"$f":"ROUNDUP(SUM(RNC45:RNC52),0)","v":0},{"$f":"RMU71","v":15},null,{"$f":"IF(RNF71*RNE71=0,\"\",RNF71*RNE71)","v":""},"Pallet Charge",15,null,null,"Pallet Charge",null,null,null,null,null,null,{"$f":"ROUNDUP(SUM(RNR45:RNR52),0)","v":0},{"$f":"RNJ71","v":15},null,{"$f":"IF(RNU71*RNT71=0,\"\",RNU71*RNT71)","v":""},"Pallet Charge",15,null,null,"Pallet Charge",null,null,null,null,null,null,{"$f":"ROUNDUP(SUM(ROG45:ROG52),0)","v":0},{"$f":"RNY71","v":15},null,{"$f":"IF(ROJ71*ROI71=0,\"\",ROJ71*ROI71)","v":""},"Pallet Charge",15,null,null,"Pallet Charge",null,null,null,null,null,null,{"$f":"ROUNDUP(SUM(ROV45:ROV52),0)","v":0},{"$f":"RON71","v":15},null,{"$f":"IF(ROY71*ROX71=0,\"\",ROY71*ROX71)","v":""},"Pallet Charge",15,null,null,"Pallet Charge",null,null,null,null,null,null,{"$f":"ROUNDUP(SUM(RPK45:RPK52),0)","v":0},{"$f":"RPC71","v":15},null,{"$f":"IF(RPN71*RPM71=0,\"\",RPN71*RPM71)","v":""},"Pallet Charge",15,null,null,"Pallet Charge",null,null,null,null,null,null,{"$f":"ROUNDUP(SUM(RPZ45:RPZ52),0)","v":0},{"$f":"RPR71","v":15},null,{"$f":"IF(RQC71*RQB71=0,\"\",RQC71*RQB71)","v":""},"Pallet Charge",15,null,null,"Pallet Charge",null,null,null,null,null,null,{"$f":"ROUNDUP(SUM(RQO45:RQO52),0)","v":0},{"$f":"RQG71","v":15},null,{"$f":"IF(RQR71*RQQ71=0,\"\",RQR71*RQQ71)","v":""},"Pallet Charge",15,null,null,"Pallet Charge",null,null,null,null,null,null,{"$f":"ROUNDUP(SUM(RRD45:RRD52),0)","v":0},{"$f":"RQV71","v":15},null,{"$f":"IF(RRG71*RRF71=0,\"\",RRG71*RRF71)","v":""},"Pallet Charge",15,null,null,"Pallet Charge",null,null,null,null,null,null,{"$f":"ROUNDUP(SUM(RRS45:RRS52),0)","v":0},{"$f":"RRK71","v":15},null,{"$f":"IF(RRV71*RRU71=0,\"\",RRV71*RRU71)","v":""},"Pallet Charge",15,null,null,"Pallet Charge",null,null,null,null,null,null,{"$f":"ROUNDUP(SUM(RSH45:RSH52),0)","v":0},{"$f":"RRZ71","v":15},null,{"$f":"IF(RSK71*RSJ71=0,\"\",RSK71*RSJ71)","v":""},"Pallet Charge",15,null,null,"Pallet Charge",null,null,null,null,null,null,{"$f":"ROUNDUP(SUM(RSW45:RSW52),0)","v":0},{"$f":"RSO71","v":15},null,{"$f":"IF(RSZ71*RSY71=0,\"\",RSZ71*RSY71)","v":""},"Pallet Charge",15,null,null,"Pallet Charge",null,null,null,null,null,null,{"$f":"ROUNDUP(SUM(RTL45:RTL52),0)","v":0},{"$f":"RTD71","v":15},null,{"$f":"IF(RTO71*RTN71=0,\"\",RTO71*RTN71)","v":""},"Pallet Charge",15,null,null,"Pallet Charge",null,null,null,null,null,null,{"$f":"ROUNDUP(SUM(RUA45:RUA52),0)","v":0},{"$f":"RTS71","v":15},null,{"$f":"IF(RUD71*RUC71=0,\"\",RUD71*RUC71)","v":""},"Pallet Charge",15,null,null,"Pallet Charge",null,null,null,null,null,null,{"$f":"ROUNDUP(SUM(RUP45:RUP52),0)","v":0},{"$f":"RUH71","v":15},null,{"$f":"IF(RUS71*RUR71=0,\"\",RUS71*RUR71)","v":""},"Pallet Charge",15,null,null,"Pallet Charge",null,null,null,null,null,null,{"$f":"ROUNDUP(SUM(RVE45:RVE52),0)","v":0},{"$f":"RUW71","v":15},null,{"$f":"IF(RVH71*RVG71=0,\"\",RVH71*RVG71)","v":""},"Pallet Charge",15,null,null,"Pallet Charge",null,null,null,null,null,null,{"$f":"ROUNDUP(SUM(RVT45:RVT52),0)","v":0},{"$f":"RVL71","v":15},null,{"$f":"IF(RVW71*RVV71=0,\"\",RVW71*RVV71)","v":""},"Pallet Charge",15,null,null,"Pallet Charge",null,null,null,null,null,null,{"$f":"ROUNDUP(SUM(RWI45:RWI52),0)","v":0},{"$f":"RWA71","v":15},null,{"$f":"IF(RWL71*RWK71=0,\"\",RWL71*RWK71)","v":""},"Pallet Charge",15,null,null,"Pallet Charge",null,null,null,null,null,null,{"$f":"ROUNDUP(SUM(RWX45:RWX52),0)","v":0},{"$f":"RWP71","v":15},null,{"$f":"IF(RXA71*RWZ71=0,\"\",RXA71*RWZ71)","v":""},"Pallet Charge",15,null,null,"Pallet Charge",null,null,null,null,null,null,{"$f":"ROUNDUP(SUM(RXM45:RXM52),0)","v":0},{"$f":"RXE71","v":15},null,{"$f":"IF(RXP71*RXO71=0,\"\",RXP71*RXO71)","v":""},"Pallet Charge",15,null,null,"Pallet Charge",null,null,null,null,null,null,{"$f":"ROUNDUP(SUM(RYB45:RYB52),0)","v":0},{"$f":"RXT71","v":15},null,{"$f":"IF(RYE71*RYD71=0,\"\",RYE71*RYD71)","v":""},"Pallet Charge",15,null,null,"Pallet Charge",null,null,null,null,null,null,{"$f":"ROUNDUP(SUM(RYQ45:RYQ52),0)","v":0},{"$f":"RYI71","v":15},null,{"$f":"IF(RYT71*RYS71=0,\"\",RYT71*RYS71)","v":""},"Pallet Charge",15,null,null,"Pallet Charge",null,null,null,null,null,null,{"$f":"ROUNDUP(SUM(RZF45:RZF52),0)","v":0},{"$f":"RYX71","v":15},null,{"$f":"IF(RZI71*RZH71=0,\"\",RZI71*RZH71)","v":""},"Pallet Charge",15,null,null,"Pallet Charge",null,null,null,null,null,null,{"$f":"ROUNDUP(SUM(RZU45:RZU52),0)","v":0},{"$f":"RZM71","v":15},null,{"$f":"IF(RZX71*RZW71=0,\"\",RZX71*RZW71)","v":""},"Pallet Charge",15,null,null,"Pallet Charge",null,null,null,null,null,null,{"$f":"ROUNDUP(SUM(SAJ45:SAJ52),0)","v":0},{"$f":"SAB71","v":15},null,{"$f":"IF(SAM71*SAL71=0,\"\",SAM71*SAL71)","v":""},"Pallet Charge",15,null,null,"Pallet Charge",null,null,null,null,null,null,{"$f":"ROUNDUP(SUM(SAY45:SAY52),0)","v":0},{"$f":"SAQ71","v":15},null,{"$f":"IF(SBB71*SBA71=0,\"\",SBB71*SBA71)","v":""},"Pallet Charge",15,null,null,"Pallet Charge",null,null,null,null,null,null,{"$f":"ROUNDUP(SUM(SBN45:SBN52),0)","v":0},{"$f":"SBF71","v":15},null,{"$f":"IF(SBQ71*SBP71=0,\"\",SBQ71*SBP71)","v":""},"Pallet Charge",15,null,null,"Pallet Charge",null,null,null,null,null,null,{"$f":"ROUNDUP(SUM(SCC45:SCC52),0)","v":0},{"$f":"SBU71","v":15},null,{"$f":"IF(SCF71*SCE71=0,\"\",SCF71*SCE71)","v":""},"Pallet Charge",15,null,null,"Pallet Charge",null,null,null,null,null,null,{"$f":"ROUNDUP(SUM(SCR45:SCR52),0)","v":0},{"$f":"SCJ71","v":15},null,{"$f":"IF(SCU71*SCT71=0,\"\",SCU71*SCT71)","v":""},"Pallet Charge",15,null,null,"Pallet Charge",null,null,null,null,null,null,{"$f":"ROUNDUP(SUM(SDG45:SDG52),0)","v":0},{"$f":"SCY71","v":15},null,{"$f":"IF(SDJ71*SDI71=0,\"\",SDJ71*SDI71)","v":""},"Pallet Charge",15,null,null,"Pallet Charge",null,null,null,null,null,null,{"$f":"ROUNDUP(SUM(SDV45:SDV52),0)","v":0},{"$f":"SDN71","v":15},null,{"$f":"IF(SDY71*SDX71=0,\"\",SDY71*SDX71)","v":""},"Pallet Charge",15,null,null,"Pallet Charge",null,null,null,null,null,null,{"$f":"ROUNDUP(SUM(SEK45:SEK52),0)","v":0},{"$f":"SEC71","v":15},null,{"$f":"IF(SEN71*SEM71=0,\"\",SEN71*SEM71)","v":""},"Pallet Charge",15,null,null,"Pallet Charge",null,null,null,null,null,null,{"$f":"ROUNDUP(SUM(SEZ45:SEZ52),0)","v":0},{"$f":"SER71","v":15},null,{"$f":"IF(SFC71*SFB71=0,\"\",SFC71*SFB71)","v":""},"Pallet Charge",15,null,null,"Pallet Charge",null,null,null,null,null,null,{"$f":"ROUNDUP(SUM(SFO45:SFO52),0)","v":0},{"$f":"SFG71","v":15},null,{"$f":"IF(SFR71*SFQ71=0,\"\",SFR71*SFQ71)","v":""},"Pallet Charge",15,null,null,"Pallet Charge",null,null,null,null,null,null,{"$f":"ROUNDUP(SUM(SGD45:SGD52),0)","v":0},{"$f":"SFV71","v":15},null,{"$f":"IF(SGG71*SGF71=0,\"\",SGG71*SGF71)","v":""},"Pallet Charge",15,null,null,"Pallet Charge",null,null,null,null,null,null,{"$f":"ROUNDUP(SUM(SGS45:SGS52),0)","v":0},{"$f":"SGK71","v":15},null,{"$f":"IF(SGV71*SGU71=0,\"\",SGV71*SGU71)","v":""},"Pallet Charge",15,null,null,"Pallet Charge",null,null,null,null,null,null,{"$f":"ROUNDUP(SUM(SHH45:SHH52),0)","v":0},{"$f":"SGZ71","v":15},null,{"$f":"IF(SHK71*SHJ71=0,\"\",SHK71*SHJ71)","v":""},"Pallet Charge",15,null,null,"Pallet Charge",null,null,null,null,null,null,{"$f":"ROUNDUP(SUM(SHW45:SHW52),0)","v":0},{"$f":"SHO71","v":15},null,{"$f":"IF(SHZ71*SHY71=0,\"\",SHZ71*SHY71)","v":""},"Pallet Charge",15,null,null,"Pallet Charge",null,null,null,null,null,null,{"$f":"ROUNDUP(SUM(SIL45:SIL52),0)","v":0},{"$f":"SID71","v":15},null,{"$f":"IF(SIO71*SIN71=0,\"\",SIO71*SIN71)","v":""},"Pallet Charge",15,null,null,"Pallet Charge",null,null,null,null,null,null,{"$f":"ROUNDUP(SUM(SJA45:SJA52),0)","v":0},{"$f":"SIS71","v":15},null,{"$f":"IF(SJD71*SJC71=0,\"\",SJD71*SJC71)","v":""},"Pallet Charge",15,null,null,"Pallet Charge",null,null,null,null,null,null,{"$f":"ROUNDUP(SUM(SJP45:SJP52),0)","v":0},{"$f":"SJH71","v":15},null,{"$f":"IF(SJS71*SJR71=0,\"\",SJS71*SJR71)","v":""},"Pallet Charge",15,null,null,"Pallet Charge",null,null,null,null,null,null,{"$f":"ROUNDUP(SUM(SKE45:SKE52),0)","v":0},{"$f":"SJW71","v":15},null,{"$f":"IF(SKH71*SKG71=0,\"\",SKH71*SKG71)","v":""},"Pallet Charge",15,null,null,"Pallet Charge",null,null,null,null,null,null,{"$f":"ROUNDUP(SUM(SKT45:SKT52),0)","v":0},{"$f":"SKL71","v":15},null,{"$f":"IF(SKW71*SKV71=0,\"\",SKW71*SKV71)","v":""},"Pallet Charge",15,null,null,"Pallet Charge",null,null,null,null,null,null,{"$f":"ROUNDUP(SUM(SLI45:SLI52),0)","v":0},{"$f":"SLA71","v":15},null,{"$f":"IF(SLL71*SLK71=0,\"\",SLL71*SLK71)","v":""},"Pallet Charge",15,null,null,"Pallet Charge",null,null,null,null,null,null,{"$f":"ROUNDUP(SUM(SLX45:SLX52),0)","v":0},{"$f":"SLP71","v":15},null,{"$f":"IF(SMA71*SLZ71=0,\"\",SMA71*SLZ71)","v":""},"Pallet Charge",15,null,null,"Pallet Charge",null,null,null,null,null,null,{"$f":"ROUNDUP(SUM(SMM45:SMM52),0)","v":0},{"$f":"SME71","v":15},null,{"$f":"IF(SMP71*SMO71=0,\"\",SMP71*SMO71)","v":""},"Pallet Charge",15,null,null,"Pallet Charge",null,null,null,null,null,null,{"$f":"ROUNDUP(SUM(SNB45:SNB52),0)","v":0},{"$f":"SMT71","v":15},null,{"$f":"IF(SNE71*SND71=0,\"\",SNE71*SND71)","v":""},"Pallet Charge",15,null,null,"Pallet Charge",null,null,null,null,null,null,{"$f":"ROUNDUP(SUM(SNQ45:SNQ52),0)","v":0},{"$f":"SNI71","v":15},null,{"$f":"IF(SNT71*SNS71=0,\"\",SNT71*SNS71)","v":""},"Pallet Charge",15,null,null,"Pallet Charge",null,null,null,null,null,null,{"$f":"ROUNDUP(SUM(SOF45:SOF52),0)","v":0},{"$f":"SNX71","v":15},null,{"$f":"IF(SOI71*SOH71=0,\"\",SOI71*SOH71)","v":""},"Pallet Charge",15,null,null,"Pallet Charge",null,null,null,null,null,null,{"$f":"ROUNDUP(SUM(SOU45:SOU52),0)","v":0},{"$f":"SOM71","v":15},null,{"$f":"IF(SOX71*SOW71=0,\"\",SOX71*SOW71)","v":""},"Pallet Charge",15,null,null,"Pallet Charge",null,null,null,null,null,null,{"$f":"ROUNDUP(SUM(SPJ45:SPJ52),0)","v":0},{"$f":"SPB71","v":15},null,{"$f":"IF(SPM71*SPL71=0,\"\",SPM71*SPL71)","v":""},"Pallet Charge",15,null,null,"Pallet Charge",null,null,null,null,null,null,{"$f":"ROUNDUP(SUM(SPY45:SPY52),0)","v":0},{"$f":"SPQ71","v":15},null,{"$f":"IF(SQB71*SQA71=0,\"\",SQB71*SQA71)","v":""},"Pallet Charge",15,null,null,"Pallet Charge",null,null,null,null,null,null,{"$f":"ROUNDUP(SUM(SQN45:SQN52),0)","v":0},{"$f":"SQF71","v":15},null,{"$f":"IF(SQQ71*SQP71=0,\"\",SQQ71*SQP71)","v":""},"Pallet Charge",15,null,null,"Pallet Charge",null,null,null,null,null,null,{"$f":"ROUNDUP(SUM(SRC45:SRC52),0)","v":0},{"$f":"SQU71","v":15},null,{"$f":"IF(SRF71*SRE71=0,\"\",SRF71*SRE71)","v":""},"Pallet Charge",15,null,null,"Pallet Charge",null,null,null,null,null,null,{"$f":"ROUNDUP(SUM(SRR45:SRR52),0)","v":0},{"$f":"SRJ71","v":15},null,{"$f":"IF(SRU71*SRT71=0,\"\",SRU71*SRT71)","v":""},"Pallet Charge",15,null,null,"Pallet Charge",null,null,null,null,null,null,{"$f":"ROUNDUP(SUM(SSG45:SSG52),0)","v":0},{"$f":"SRY71","v":15},null,{"$f":"IF(SSJ71*SSI71=0,\"\",SSJ71*SSI71)","v":""},"Pallet Charge",15,null,null,"Pallet Charge",null,null,null,null,null,null,{"$f":"ROUNDUP(SUM(SSV45:SSV52),0)","v":0},{"$f":"SSN71","v":15},null,{"$f":"IF(SSY71*SSX71=0,\"\",SSY71*SSX71)","v":""},"Pallet Charge",15,null,null,"Pallet Charge",null,null,null,null,null,null,{"$f":"ROUNDUP(SUM(STK45:STK52),0)","v":0},{"$f":"STC71","v":15},null,{"$f":"IF(STN71*STM71=0,\"\",STN71*STM71)","v":""},"Pallet Charge",15,null,null,"Pallet Charge",null,null,null,null,null,null,{"$f":"ROUNDUP(SUM(STZ45:STZ52),0)","v":0},{"$f":"STR71","v":15},null,{"$f":"IF(SUC71*SUB71=0,\"\",SUC71*SUB71)","v":""},"Pallet Charge",15,null,null,"Pallet Charge",null,null,null,null,null,null,{"$f":"ROUNDUP(SUM(SUO45:SUO52),0)","v":0},{"$f":"SUG71","v":15},null,{"$f":"IF(SUR71*SUQ71=0,\"\",SUR71*SUQ71)","v":""},"Pallet Charge",15,null,null,"Pallet Charge",null,null,null,null,null,null,{"$f":"ROUNDUP(SUM(SVD45:SVD52),0)","v":0},{"$f":"SUV71","v":15},null,{"$f":"IF(SVG71*SVF71=0,\"\",SVG71*SVF71)","v":""},"Pallet Charge",15,null,null,"Pallet Charge",null,null,null,null,null,null,{"$f":"ROUNDUP(SUM(SVS45:SVS52),0)","v":0},{"$f":"SVK71","v":15},null,{"$f":"IF(SVV71*SVU71=0,\"\",SVV71*SVU71)","v":""},"Pallet Charge",15,null,null,"Pallet Charge",null,null,null,null,null,null,{"$f":"ROUNDUP(SUM(SWH45:SWH52),0)","v":0},{"$f":"SVZ71","v":15},null,{"$f":"IF(SWK71*SWJ71=0,\"\",SWK71*SWJ71)","v":""},"Pallet Charge",15,null,null,"Pallet Charge",null,null,null,null,null,null,{"$f":"ROUNDUP(SUM(SWW45:SWW52),0)","v":0},{"$f":"SWO71","v":15},null,{"$f":"IF(SWZ71*SWY71=0,\"\",SWZ71*SWY71)","v":""},"Pallet Charge",15,null,null,"Pallet Charge",null,null,null,null,null,null,{"$f":"ROUNDUP(SUM(SXL45:SXL52),0)","v":0},{"$f":"SXD71","v":15},null,{"$f":"IF(SXO71*SXN71=0,\"\",SXO71*SXN71)","v":""},"Pallet Charge",15,null,null,"Pallet Charge",null,null,null,null,null,null,{"$f":"ROUNDUP(SUM(SYA45:SYA52),0)","v":0},{"$f":"SXS71","v":15},null,{"$f":"IF(SYD71*SYC71=0,\"\",SYD71*SYC71)","v":""},"Pallet Charge",15,null,null,"Pallet Charge",null,null,null,null,null,null,{"$f":"ROUNDUP(SUM(SYP45:SYP52),0)","v":0},{"$f":"SYH71","v":15},null,{"$f":"IF(SYS71*SYR71=0,\"\",SYS71*SYR71)","v":""},"Pallet Charge",15,null,null,"Pallet Charge",null,null,null,null,null,null,{"$f":"ROUNDUP(SUM(SZE45:SZE52),0)","v":0},{"$f":"SYW71","v":15},null,{"$f":"IF(SZH71*SZG71=0,\"\",SZH71*SZG71)","v":""},"Pallet Charge",15,null,null,"Pallet Charge",null,null,null,null,null,null,{"$f":"ROUNDUP(SUM(SZT45:SZT52),0)","v":0},{"$f":"SZL71","v":15},null,{"$f":"IF(SZW71*SZV71=0,\"\",SZW71*SZV71)","v":""},"Pallet Charge",15,null,null,"Pallet Charge",null,null,null,null,null,null,{"$f":"ROUNDUP(SUM(TAI45:TAI52),0)","v":0},{"$f":"TAA71","v":15},null,{"$f":"IF(TAL71*TAK71=0,\"\",TAL71*TAK71)","v":""},"Pallet Charge",15,null,null,"Pallet Charge",null,null,null,null,null,null,{"$f":"ROUNDUP(SUM(TAX45:TAX52),0)","v":0},{"$f":"TAP71","v":15},null,{"$f":"IF(TBA71*TAZ71=0,\"\",TBA71*TAZ71)","v":""},"Pallet Charge",15,null,null,"Pallet Charge",null,null,null,null,null,null,{"$f":"ROUNDUP(SUM(TBM45:TBM52),0)","v":0},{"$f":"TBE71","v":15},null,{"$f":"IF(TBP71*TBO71=0,\"\",TBP71*TBO71)","v":""},"Pallet Charge",15,null,null,"Pallet Charge",null,null,null,null,null,null,{"$f":"ROUNDUP(SUM(TCB45:TCB52),0)","v":0},{"$f":"TBT71","v":15},null,{"$f":"IF(TCE71*TCD71=0,\"\",TCE71*TCD71)","v":""},"Pallet Charge",15,null,null,"Pallet Charge",null,null,null,null,null,null,{"$f":"ROUNDUP(SUM(TCQ45:TCQ52),0)","v":0},{"$f":"TCI71","v":15},null,{"$f":"IF(TCT71*TCS71=0,\"\",TCT71*TCS71)","v":""},"Pallet Charge",15,null,null,"Pallet Charge",null,null,null,null,null,null,{"$f":"ROUNDUP(SUM(TDF45:TDF52),0)","v":0},{"$f":"TCX71","v":15},null,{"$f":"IF(TDI71*TDH71=0,\"\",TDI71*TDH71)","v":""},"Pallet Charge",15,null,null,"Pallet Charge",null,null,null,null,null,null,{"$f":"ROUNDUP(SUM(TDU45:TDU52),0)","v":0},{"$f":"TDM71","v":15},null,{"$f":"IF(TDX71*TDW71=0,\"\",TDX71*TDW71)","v":""},"Pallet Charge",15,null,null,"Pallet Charge",null,null,null,null,null,null,{"$f":"ROUNDUP(SUM(TEJ45:TEJ52),0)","v":0},{"$f":"TEB71","v":15},null,{"$f":"IF(TEM71*TEL71=0,\"\",TEM71*TEL71)","v":""},"Pallet Charge",15,null,null,"Pallet Charge",null,null,null,null,null,null,{"$f":"ROUNDUP(SUM(TEY45:TEY52),0)","v":0},{"$f":"TEQ71","v":15},null,{"$f":"IF(TFB71*TFA71=0,\"\",TFB71*TFA71)","v":""},"Pallet Charge",15,null,null,"Pallet Charge",null,null,null,null,null,null,{"$f":"ROUNDUP(SUM(TFN45:TFN52),0)","v":0},{"$f":"TFF71","v":15},null,{"$f":"IF(TFQ71*TFP71=0,\"\",TFQ71*TFP71)","v":""},"Pallet Charge",15,null,null,"Pallet Charge",null,null,null,null,null,null,{"$f":"ROUNDUP(SUM(TGC45:TGC52),0)","v":0},{"$f":"TFU71","v":15},null,{"$f":"IF(TGF71*TGE71=0,\"\",TGF71*TGE71)","v":""},"Pallet Charge",15,null,null,"Pallet Charge",null,null,null,null,null,null,{"$f":"ROUNDUP(SUM(TGR45:TGR52),0)","v":0},{"$f":"TGJ71","v":15},null,{"$f":"IF(TGU71*TGT71=0,\"\",TGU71*TGT71)","v":""},"Pallet Charge",15,null,null,"Pallet Charge",null,null,null,null,null,null,{"$f":"ROUNDUP(SUM(THG45:THG52),0)","v":0},{"$f":"TGY71","v":15},null,{"$f":"IF(THJ71*THI71=0,\"\",THJ71*THI71)","v":""},"Pallet Charge",15,null,null,"Pallet Charge",null,null,null,null,null,null,{"$f":"ROUNDUP(SUM(THV45:THV52),0)","v":0},{"$f":"THN71","v":15},null,{"$f":"IF(THY71*THX71=0,\"\",THY71*THX71)","v":""},"Pallet Charge",15,null,null,"Pallet Charge",null,null,null,null,null,null,{"$f":"ROUNDUP(SUM(TIK45:TIK52),0)","v":0},{"$f":"TIC71","v":15},null,{"$f":"IF(TIN71*TIM71=0,\"\",TIN71*TIM71)","v":""},"Pallet Charge",15,null,null,"Pallet Charge",null,null,null,null,null,null,{"$f":"ROUNDUP(SUM(TIZ45:TIZ52),0)","v":0},{"$f":"TIR71","v":15},null,{"$f":"IF(TJC71*TJB71=0,\"\",TJC71*TJB71)","v":""},"Pallet Charge",15,null,null,"Pallet Charge",null,null,null,null,null,null,{"$f":"ROUNDUP(SUM(TJO45:TJO52),0)","v":0},{"$f":"TJG71","v":15},null,{"$f":"IF(TJR71*TJQ71=0,\"\",TJR71*TJQ71)","v":""},"Pallet Charge",15,null,null,"Pallet Charge",null,null,null,null,null,null,{"$f":"ROUNDUP(SUM(TKD45:TKD52),0)","v":0},{"$f":"TJV71","v":15},null,{"$f":"IF(TKG71*TKF71=0,\"\",TKG71*TKF71)","v":""},"Pallet Charge",15,null,null,"Pallet Charge",null,null,null,null,null,null,{"$f":"ROUNDUP(SUM(TKS45:TKS52),0)","v":0},{"$f":"TKK71","v":15},null,{"$f":"IF(TKV71*TKU71=0,\"\",TKV71*TKU71)","v":""},"Pallet Charge",15,null,null,"Pallet Charge",null,null,null,null,null,null,{"$f":"ROUNDUP(SUM(TLH45:TLH52),0)","v":0},{"$f":"TKZ71","v":15},null,{"$f":"IF(TLK71*TLJ71=0,\"\",TLK71*TLJ71)","v":""},"Pallet Charge",15,null,null,"Pallet Charge",null,null,null,null,null,null,{"$f":"ROUNDUP(SUM(TLW45:TLW52),0)","v":0},{"$f":"TLO71","v":15},null,{"$f":"IF(TLZ71*TLY71=0,\"\",TLZ71*TLY71)","v":""},"Pallet Charge",15,null,null,"Pallet Charge",null,null,null,null,null,null,{"$f":"ROUNDUP(SUM(TML45:TML52),0)","v":0},{"$f":"TMD71","v":15},null,{"$f":"IF(TMO71*TMN71=0,\"\",TMO71*TMN71)","v":""},"Pallet Charge",15,null,null,"Pallet Charge",null,null,null,null,null,null,{"$f":"ROUNDUP(SUM(TNA45:TNA52),0)","v":0},{"$f":"TMS71","v":15},null,{"$f":"IF(TND71*TNC71=0,\"\",TND71*TNC71)","v":""},"Pallet Charge",15,null,null,"Pallet Charge",null,null,null,null,null,null,{"$f":"ROUNDUP(SUM(TNP45:TNP52),0)","v":0},{"$f":"TNH71","v":15},null,{"$f":"IF(TNS71*TNR71=0,\"\",TNS71*TNR71)","v":""},"Pallet Charge",15,null,null,"Pallet Charge",null,null,null,null,null,null,{"$f":"ROUNDUP(SUM(TOE45:TOE52),0)","v":0},{"$f":"TNW71","v":15},null,{"$f":"IF(TOH71*TOG71=0,\"\",TOH71*TOG71)","v":""},"Pallet Charge",15,null,null,"Pallet Charge",null,null,null,null,null,null,{"$f":"ROUNDUP(SUM(TOT45:TOT52),0)","v":0},{"$f":"TOL71","v":15},null,{"$f":"IF(TOW71*TOV71=0,\"\",TOW71*TOV71)","v":""},"Pallet Charge",15,null,null,"Pallet Charge",null,null,null,null,null,null,{"$f":"ROUNDUP(SUM(TPI45:TPI52),0)","v":0},{"$f":"TPA71","v":15},null,{"$f":"IF(TPL71*TPK71=0,\"\",TPL71*TPK71)","v":""},"Pallet Charge",15,null,null,"Pallet Charge",null,null,null,null,null,null,{"$f":"ROUNDUP(SUM(TPX45:TPX52),0)","v":0},{"$f":"TPP71","v":15},null,{"$f":"IF(TQA71*TPZ71=0,\"\",TQA71*TPZ71)","v":""},"Pallet Charge",15,null,null,"Pallet Charge",null,null,null,null,null,null,{"$f":"ROUNDUP(SUM(TQM45:TQM52),0)","v":0},{"$f":"TQE71","v":15},null,{"$f":"IF(TQP71*TQO71=0,\"\",TQP71*TQO71)","v":""},"Pallet Charge",15,null,null,"Pallet Charge",null,null,null,null,null,null,{"$f":"ROUNDUP(SUM(TRB45:TRB52),0)","v":0},{"$f":"TQT71","v":15},null,{"$f":"IF(TRE71*TRD71=0,\"\",TRE71*TRD71)","v":""},"Pallet Charge",15,null,null,"Pallet Charge",null,null,null,null,null,null,{"$f":"ROUNDUP(SUM(TRQ45:TRQ52),0)","v":0},{"$f":"TRI71","v":15},null,{"$f":"IF(TRT71*TRS71=0,\"\",TRT71*TRS71)","v":""},"Pallet Charge",15,null,null,"Pallet Charge",null,null,null,null,null,null,{"$f":"ROUNDUP(SUM(TSF45:TSF52),0)","v":0},{"$f":"TRX71","v":15},null,{"$f":"IF(TSI71*TSH71=0,\"\",TSI71*TSH71)","v":""},"Pallet Charge",15,null,null,"Pallet Charge",null,null,null,null,null,null,{"$f":"ROUNDUP(SUM(TSU45:TSU52),0)","v":0},{"$f":"TSM71","v":15},null,{"$f":"IF(TSX71*TSW71=0,\"\",TSX71*TSW71)","v":""},"Pallet Charge",15,null,null,"Pallet Charge",null,null,null,null,null,null,{"$f":"ROUNDUP(SUM(TTJ45:TTJ52),0)","v":0},{"$f":"TTB71","v":15},null,{"$f":"IF(TTM71*TTL71=0,\"\",TTM71*TTL71)","v":""},"Pallet Charge",15,null,null,"Pallet Charge",null,null,null,null,null,null,{"$f":"ROUNDUP(SUM(TTY45:TTY52),0)","v":0},{"$f":"TTQ71","v":15},null,{"$f":"IF(TUB71*TUA71=0,\"\",TUB71*TUA71)","v":""},"Pallet Charge",15,null,null,"Pallet Charge",null,null,null,null,null,null,{"$f":"ROUNDUP(SUM(TUN45:TUN52),0)","v":0},{"$f":"TUF71","v":15},null,{"$f":"IF(TUQ71*TUP71=0,\"\",TUQ71*TUP71)","v":""},"Pallet Charge",15,null,null,"Pallet Charge",null,null,null,null,null,null,{"$f":"ROUNDUP(SUM(TVC45:TVC52),0)","v":0},{"$f":"TUU71","v":15},null,{"$f":"IF(TVF71*TVE71=0,\"\",TVF71*TVE71)","v":""},"Pallet Charge",15,null,null,"Pallet Charge",null,null,null,null,null,null,{"$f":"ROUNDUP(SUM(TVR45:TVR52),0)","v":0},{"$f":"TVJ71","v":15},null,{"$f":"IF(TVU71*TVT71=0,\"\",TVU71*TVT71)","v":""},"Pallet Charge",15,null,null,"Pallet Charge",null,null,null,null,null,null,{"$f":"ROUNDUP(SUM(TWG45:TWG52),0)","v":0},{"$f":"TVY71","v":15},null,{"$f":"IF(TWJ71*TWI71=0,\"\",TWJ71*TWI71)","v":""},"Pallet Charge",15,null,null,"Pallet Charge",null,null,null,null,null,null,{"$f":"ROUNDUP(SUM(TWV45:TWV52),0)","v":0},{"$f":"TWN71","v":15},null,{"$f":"IF(TWY71*TWX71=0,\"\",TWY71*TWX71)","v":""},"Pallet Charge",15,null,null,"Pallet Charge",null,null,null,null,null,null,{"$f":"ROUNDUP(SUM(TXK45:TXK52),0)","v":0},{"$f":"TXC71","v":15},null,{"$f":"IF(TXN71*TXM71=0,\"\",TXN71*TXM71)","v":""},"Pallet Charge",15,null,null,"Pallet Charge",null,null,null,null,null,null,{"$f":"ROUNDUP(SUM(TXZ45:TXZ52),0)","v":0},{"$f":"TXR71","v":15},null,{"$f":"IF(TYC71*TYB71=0,\"\",TYC71*TYB71)","v":""},"Pallet Charge",15,null,null,"Pallet Charge",null,null,null,null,null,null,{"$f":"ROUNDUP(SUM(TYO45:TYO52),0)","v":0},{"$f":"TYG71","v":15},null,{"$f":"IF(TYR71*TYQ71=0,\"\",TYR71*TYQ71)","v":""},"Pallet Charge",15,null,null,"Pallet Charge",null,null,null,null,null,null,{"$f":"ROUNDUP(SUM(TZD45:TZD52),0)","v":0},{"$f":"TYV71","v":15},null,{"$f":"IF(TZG71*TZF71=0,\"\",TZG71*TZF71)","v":""},"Pallet Charge",15,null,null,"Pallet Charge",null,null,null,null,null,null,{"$f":"ROUNDUP(SUM(TZS45:TZS52),0)","v":0},{"$f":"TZK71","v":15},null,{"$f":"IF(TZV71*TZU71=0,\"\",TZV71*TZU71)","v":""},"Pallet Charge",15,null,null,"Pallet Charge",null,null,null,null,null,null,{"$f":"ROUNDUP(SUM(UAH45:UAH52),0)","v":0},{"$f":"TZZ71","v":15},null,{"$f":"IF(UAK71*UAJ71=0,\"\",UAK71*UAJ71)","v":""},"Pallet Charge",15,null,null,"Pallet Charge",null,null,null,null,null,null,{"$f":"ROUNDUP(SUM(UAW45:UAW52),0)","v":0},{"$f":"UAO71","v":15},null,{"$f":"IF(UAZ71*UAY71=0,\"\",UAZ71*UAY71)","v":""},"Pallet Charge",15,null,null,"Pallet Charge",null,null,null,null,null,null,{"$f":"ROUNDUP(SUM(UBL45:UBL52),0)","v":0},{"$f":"UBD71","v":15},null,{"$f":"IF(UBO71*UBN71=0,\"\",UBO71*UBN71)","v":""},"Pallet Charge",15,null,null,"Pallet Charge",null,null,null,null,null,null,{"$f":"ROUNDUP(SUM(UCA45:UCA52),0)","v":0},{"$f":"UBS71","v":15},null,{"$f":"IF(UCD71*UCC71=0,\"\",UCD71*UCC71)","v":""},"Pallet Charge",15,null,null,"Pallet Charge",null,null,null,null,null,null,{"$f":"ROUNDUP(SUM(UCP45:UCP52),0)","v":0},{"$f":"UCH71","v":15},null,{"$f":"IF(UCS71*UCR71=0,\"\",UCS71*UCR71)","v":""},"Pallet Charge",15,null,null,"Pallet Charge",null,null,null,null,null,null,{"$f":"ROUNDUP(SUM(UDE45:UDE52),0)","v":0},{"$f":"UCW71","v":15},null,{"$f":"IF(UDH71*UDG71=0,\"\",UDH71*UDG71)","v":""},"Pallet Charge",15,null,null,"Pallet Charge",null,null,null,null,null,null,{"$f":"ROUNDUP(SUM(UDT45:UDT52),0)","v":0},{"$f":"UDL71","v":15},null,{"$f":"IF(UDW71*UDV71=0,\"\",UDW71*UDV71)","v":""},"Pallet Charge",15,null,null,"Pallet Charge",null,null,null,null,null,null,{"$f":"ROUNDUP(SUM(UEI45:UEI52),0)","v":0},{"$f":"UEA71","v":15},null,{"$f":"IF(UEL71*UEK71=0,\"\",UEL71*UEK71)","v":""},"Pallet Charge",15,null,null,"Pallet Charge",null,null,null,null,null,null,{"$f":"ROUNDUP(SUM(UEX45:UEX52),0)","v":0},{"$f":"UEP71","v":15},null,{"$f":"IF(UFA71*UEZ71=0,\"\",UFA71*UEZ71)","v":""},"Pallet Charge",15,null,null,"Pallet Charge",null,null,null,null,null,null,{"$f":"ROUNDUP(SUM(UFM45:UFM52),0)","v":0},{"$f":"UFE71","v":15},null,{"$f":"IF(UFP71*UFO71=0,\"\",UFP71*UFO71)","v":""},"Pallet Charge",15,null,null,"Pallet Charge",null,null,null,null,null,null,{"$f":"ROUNDUP(SUM(UGB45:UGB52),0)","v":0},{"$f":"UFT71","v":15},null,{"$f":"IF(UGE71*UGD71=0,\"\",UGE71*UGD71)","v":""},"Pallet Charge",15,null,null,"Pallet Charge",null,null,null,null,null,null,{"$f":"ROUNDUP(SUM(UGQ45:UGQ52),0)","v":0},{"$f":"UGI71","v":15},null,{"$f":"IF(UGT71*UGS71=0,\"\",UGT71*UGS71)","v":""},"Pallet Charge",15,null,null,"Pallet Charge",null,null,null,null,null,null,{"$f":"ROUNDUP(SUM(UHF45:UHF52),0)","v":0},{"$f":"UGX71","v":15},null,{"$f":"IF(UHI71*UHH71=0,\"\",UHI71*UHH71)","v":""},"Pallet Charge",15,null,null,"Pallet Charge",null,null,null,null,null,null,{"$f":"ROUNDUP(SUM(UHU45:UHU52),0)","v":0},{"$f":"UHM71","v":15},null,{"$f":"IF(UHX71*UHW71=0,\"\",UHX71*UHW71)","v":""},"Pallet Charge",15,null,null,"Pallet Charge",null,null,null,null,null,null,{"$f":"ROUNDUP(SUM(UIJ45:UIJ52),0)","v":0},{"$f":"UIB71","v":15},null,{"$f":"IF(UIM71*UIL71=0,\"\",UIM71*UIL71)","v":""},"Pallet Charge",15,null,null,"Pallet Charge",null,null,null,null,null,null,{"$f":"ROUNDUP(SUM(UIY45:UIY52),0)","v":0},{"$f":"UIQ71","v":15},null,{"$f":"IF(UJB71*UJA71=0,\"\",UJB71*UJA71)","v":""},"Pallet Charge",15,null,null,"Pallet Charge",null,null,null,null,null,null,{"$f":"ROUNDUP(SUM(UJN45:UJN52),0)","v":0},{"$f":"UJF71","v":15},null,{"$f":"IF(UJQ71*UJP71=0,\"\",UJQ71*UJP71)","v":""},"Pallet Charge",15,null,null,"Pallet Charge",null,null,null,null,null,null,{"$f":"ROUNDUP(SUM(UKC45:UKC52),0)","v":0},{"$f":"UJU71","v":15},null,{"$f":"IF(UKF71*UKE71=0,\"\",UKF71*UKE71)","v":""},"Pallet Charge",15,null,null,"Pallet Charge",null,null,null,null,null,null,{"$f":"ROUNDUP(SUM(UKR45:UKR52),0)","v":0},{"$f":"UKJ71","v":15},null,{"$f":"IF(UKU71*UKT71=0,\"\",UKU71*UKT71)","v":""},"Pallet Charge",15,null,null,"Pallet Charge",null,null,null,null,null,null,{"$f":"ROUNDUP(SUM(ULG45:ULG52),0)","v":0},{"$f":"UKY71","v":15},null,{"$f":"IF(ULJ71*ULI71=0,\"\",ULJ71*ULI71)","v":""},"Pallet Charge",15,null,null,"Pallet Charge",null,null,null,null,null,null,{"$f":"ROUNDUP(SUM(ULV45:ULV52),0)","v":0},{"$f":"ULN71","v":15},null,{"$f":"IF(ULY71*ULX71=0,\"\",ULY71*ULX71)","v":""},"Pallet Charge",15,null,null,"Pallet Charge",null,null,null,null,null,null,{"$f":"ROUNDUP(SUM(UMK45:UMK52),0)","v":0},{"$f":"UMC71","v":15},null,{"$f":"IF(UMN71*UMM71=0,\"\",UMN71*UMM71)","v":""},"Pallet Charge",15,null,null,"Pallet Charge",null,null,null,null,null,null,{"$f":"ROUNDUP(SUM(UMZ45:UMZ52),0)","v":0},{"$f":"UMR71","v":15},null,{"$f":"IF(UNC71*UNB71=0,\"\",UNC71*UNB71)","v":""},"Pallet Charge",15,null,null,"Pallet Charge",null,null,null,null,null,null,{"$f":"ROUNDUP(SUM(UNO45:UNO52),0)","v":0},{"$f":"UNG71","v":15},null,{"$f":"IF(UNR71*UNQ71=0,\"\",UNR71*UNQ71)","v":""},"Pallet Charge",15,null,null,"Pallet Charge",null,null,null,null,null,null,{"$f":"ROUNDUP(SUM(UOD45:UOD52),0)","v":0},{"$f":"UNV71","v":15},null,{"$f":"IF(UOG71*UOF71=0,\"\",UOG71*UOF71)","v":""},"Pallet Charge",15,null,null,"Pallet Charge",null,null,null,null,null,null,{"$f":"ROUNDUP(SUM(UOS45:UOS52),0)","v":0},{"$f":"UOK71","v":15},null,{"$f":"IF(UOV71*UOU71=0,\"\",UOV71*UOU71)","v":""},"Pallet Charge",15,null,null,"Pallet Charge",null,null,null,null,null,null,{"$f":"ROUNDUP(SUM(UPH45:UPH52),0)","v":0},{"$f":"UOZ71","v":15},null,{"$f":"IF(UPK71*UPJ71=0,\"\",UPK71*UPJ71)","v":""},"Pallet Charge",15,null,null,"Pallet Charge",null,null,null,null,null,null,{"$f":"ROUNDUP(SUM(UPW45:UPW52),0)","v":0},{"$f":"UPO71","v":15},null,{"$f":"IF(UPZ71*UPY71=0,\"\",UPZ71*UPY71)","v":""},"Pallet Charge",15,null,null,"Pallet Charge",null,null,null,null,null,null,{"$f":"ROUNDUP(SUM(UQL45:UQL52),0)","v":0},{"$f":"UQD71","v":15},null,{"$f":"IF(UQO71*UQN71=0,\"\",UQO71*UQN71)","v":""},"Pallet Charge",15,null,null,"Pallet Charge",null,null,null,null,null,null,{"$f":"ROUNDUP(SUM(URA45:URA52),0)","v":0},{"$f":"UQS71","v":15},null,{"$f":"IF(URD71*URC71=0,\"\",URD71*URC71)","v":""},"Pallet Charge",15,null,null,"Pallet Charge",null,null,null,null,null,null,{"$f":"ROUNDUP(SUM(URP45:URP52),0)","v":0},{"$f":"URH71","v":15},null,{"$f":"IF(URS71*URR71=0,\"\",URS71*URR71)","v":""},"Pallet Charge",15,null,null,"Pallet Charge",null,null,null,null,null,null,{"$f":"ROUNDUP(SUM(USE45:USE52),0)","v":0},{"$f":"URW71","v":15},null,{"$f":"IF(USH71*USG71=0,\"\",USH71*USG71)","v":""},"Pallet Charge",15,null,null,"Pallet Charge",null,null,null,null,null,null,{"$f":"ROUNDUP(SUM(UST45:UST52),0)","v":0},{"$f":"USL71","v":15},null,{"$f":"IF(USW71*USV71=0,\"\",USW71*USV71)","v":""},"Pallet Charge",15,null,null,"Pallet Charge",null,null,null,null,null,null,{"$f":"ROUNDUP(SUM(UTI45:UTI52),0)","v":0},{"$f":"UTA71","v":15},null,{"$f":"IF(UTL71*UTK71=0,\"\",UTL71*UTK71)","v":""},"Pallet Charge",15,null,null,"Pallet Charge",null,null,null,null,null,null,{"$f":"ROUNDUP(SUM(UTX45:UTX52),0)","v":0},{"$f":"UTP71","v":15},null,{"$f":"IF(UUA71*UTZ71=0,\"\",UUA71*UTZ71)","v":""},"Pallet Charge",15,null,null,"Pallet Charge",null,null,null,null,null,null,{"$f":"ROUNDUP(SUM(UUM45:UUM52),0)","v":0},{"$f":"UUE71","v":15},null,{"$f":"IF(UUP71*UUO71=0,\"\",UUP71*UUO71)","v":""},"Pallet Charge",15,null,null,"Pallet Charge",null,null,null,null,null,null,{"$f":"ROUNDUP(SUM(UVB45:UVB52),0)","v":0},{"$f":"UUT71","v":15},null,{"$f":"IF(UVE71*UVD71=0,\"\",UVE71*UVD71)","v":""},"Pallet Charge",15,null,null,"Pallet Charge",null,null,null,null,null,null,{"$f":"ROUNDUP(SUM(UVQ45:UVQ52),0)","v":0},{"$f":"UVI71","v":15},null,{"$f":"IF(UVT71*UVS71=0,\"\",UVT71*UVS71)","v":""},"Pallet Charge",15,null,null,"Pallet Charge",null,null,null,null,null,null,{"$f":"ROUNDUP(SUM(UWF45:UWF52),0)","v":0},{"$f":"UVX71","v":15},null,{"$f":"IF(UWI71*UWH71=0,\"\",UWI71*UWH71)","v":""},"Pallet Charge",15,null,null,"Pallet Charge",null,null,null,null,null,null,{"$f":"ROUNDUP(SUM(UWU45:UWU52),0)","v":0},{"$f":"UWM71","v":15},null,{"$f":"IF(UWX71*UWW71=0,\"\",UWX71*UWW71)","v":""},"Pallet Charge",15,null,null,"Pallet Charge",null,null,null,null,null,null,{"$f":"ROUNDUP(SUM(UXJ45:UXJ52),0)","v":0},{"$f":"UXB71","v":15},null,{"$f":"IF(UXM71*UXL71=0,\"\",UXM71*UXL71)","v":""},"Pallet Charge",15,null,null,"Pallet Charge",null,null,null,null,null,null,{"$f":"ROUNDUP(SUM(UXY45:UXY52),0)","v":0},{"$f":"UXQ71","v":15},null,{"$f":"IF(UYB71*UYA71=0,\"\",UYB71*UYA71)","v":""},"Pallet Charge",15,null,null,"Pallet Charge",null,null,null,null,null,null,{"$f":"ROUNDUP(SUM(UYN45:UYN52),0)","v":0},{"$f":"UYF71","v":15},null,{"$f":"IF(UYQ71*UYP71=0,\"\",UYQ71*UYP71)","v":""},"Pallet Charge",15,null,null,"Pallet Charge",null,null,null,null,null,null,{"$f":"ROUNDUP(SUM(UZC45:UZC52),0)","v":0},{"$f":"UYU71","v":15},null,{"$f":"IF(UZF71*UZE71=0,\"\",UZF71*UZE71)","v":""},"Pallet Charge",15,null,null,"Pallet Charge",null,null,null,null,null,null,{"$f":"ROUNDUP(SUM(UZR45:UZR52),0)","v":0},{"$f":"UZJ71","v":15},null,{"$f":"IF(UZU71*UZT71=0,\"\",UZU71*UZT71)","v":""},"Pallet Charge",15,null,null,"Pallet Charge",null,null,null,null,null,null,{"$f":"ROUNDUP(SUM(VAG45:VAG52),0)","v":0},{"$f":"UZY71","v":15},null,{"$f":"IF(VAJ71*VAI71=0,\"\",VAJ71*VAI71)","v":""},"Pallet Charge",15,null,null,"Pallet Charge",null,null,null,null,null,null,{"$f":"ROUNDUP(SUM(VAV45:VAV52),0)","v":0},{"$f":"VAN71","v":15},null,{"$f":"IF(VAY71*VAX71=0,\"\",VAY71*VAX71)","v":""},"Pallet Charge",15,null,null,"Pallet Charge",null,null,null,null,null,null,{"$f":"ROUNDUP(SUM(VBK45:VBK52),0)","v":0},{"$f":"VBC71","v":15},null,{"$f":"IF(VBN71*VBM71=0,\"\",VBN71*VBM71)","v":""},"Pallet Charge",15,null,null,"Pallet Charge",null,null,null,null,null,null,{"$f":"ROUNDUP(SUM(VBZ45:VBZ52),0)","v":0},{"$f":"VBR71","v":15},null,{"$f":"IF(VCC71*VCB71=0,\"\",VCC71*VCB71)","v":""},"Pallet Charge",15,null,null,"Pallet Charge",null,null,null,null,null,null,{"$f":"ROUNDUP(SUM(VCO45:VCO52),0)","v":0},{"$f":"VCG71","v":15},null,{"$f":"IF(VCR71*VCQ71=0,\"\",VCR71*VCQ71)","v":""},"Pallet Charge",15,null,null,"Pallet Charge",null,null,null,null,null,null,{"$f":"ROUNDUP(SUM(VDD45:VDD52),0)","v":0},{"$f":"VCV71","v":15},null,{"$f":"IF(VDG71*VDF71=0,\"\",VDG71*VDF71)","v":""},"Pallet Charge",15,null,null,"Pallet Charge",null,null,null,null,null,null,{"$f":"ROUNDUP(SUM(VDS45:VDS52),0)","v":0},{"$f":"VDK71","v":15},null,{"$f":"IF(VDV71*VDU71=0,\"\",VDV71*VDU71)","v":""},"Pallet Charge",15,null,null,"Pallet Charge",null,null,null,null,null,null,{"$f":"ROUNDUP(SUM(VEH45:VEH52),0)","v":0},{"$f":"VDZ71","v":15},null,{"$f":"IF(VEK71*VEJ71=0,\"\",VEK71*VEJ71)","v":""},"Pallet Charge",15,null,null,"Pallet Charge",null,null,null,null,null,null,{"$f":"ROUNDUP(SUM(VEW45:VEW52),0)","v":0},{"$f":"VEO71","v":15},null,{"$f":"IF(VEZ71*VEY71=0,\"\",VEZ71*VEY71)","v":""},"Pallet Charge",15,null,null,"Pallet Charge",null,null,null,null,null,null,{"$f":"ROUNDUP(SUM(VFL45:VFL52),0)","v":0},{"$f":"VFD71","v":15},null,{"$f":"IF(VFO71*VFN71=0,\"\",VFO71*VFN71)","v":""},"Pallet Charge",15,null,null,"Pallet Charge",null,null,null,null,null,null,{"$f":"ROUNDUP(SUM(VGA45:VGA52),0)","v":0},{"$f":"VFS71","v":15},null,{"$f":"IF(VGD71*VGC71=0,\"\",VGD71*VGC71)","v":""},"Pallet Charge",15,null,null,"Pallet Charge",null,null,null,null,null,null,{"$f":"ROUNDUP(SUM(VGP45:VGP52),0)","v":0},{"$f":"VGH71","v":15},null,{"$f":"IF(VGS71*VGR71=0,\"\",VGS71*VGR71)","v":""},"Pallet Charge",15,null,null,"Pallet Charge",null,null,null,null,null,null,{"$f":"ROUNDUP(SUM(VHE45:VHE52),0)","v":0},{"$f":"VGW71","v":15},null,{"$f":"IF(VHH71*VHG71=0,\"\",VHH71*VHG71)","v":""},"Pallet Charge",15,null,null,"Pallet Charge",null,null,null,null,null,null,{"$f":"ROUNDUP(SUM(VHT45:VHT52),0)","v":0},{"$f":"VHL71","v":15},null,{"$f":"IF(VHW71*VHV71=0,\"\",VHW71*VHV71)","v":""},"Pallet Charge",15,null,null,"Pallet Charge",null,null,null,null,null,null,{"$f":"ROUNDUP(SUM(VII45:VII52),0)","v":0},{"$f":"VIA71","v":15},null,{"$f":"IF(VIL71*VIK71=0,\"\",VIL71*VIK71)","v":""},"Pallet Charge",15,null,null,"Pallet Charge",null,null,null,null,null,null,{"$f":"ROUNDUP(SUM(VIX45:VIX52),0)","v":0},{"$f":"VIP71","v":15},null,{"$f":"IF(VJA71*VIZ71=0,\"\",VJA71*VIZ71)","v":""},"Pallet Charge",15,null,null,"Pallet Charge",null,null,null,null,null,null,{"$f":"ROUNDUP(SUM(VJM45:VJM52),0)","v":0},{"$f":"VJE71","v":15},null,{"$f":"IF(VJP71*VJO71=0,\"\",VJP71*VJO71)","v":""},"Pallet Charge",15,null,null,"Pallet Charge",null,null,null,null,null,null,{"$f":"ROUNDUP(SUM(VKB45:VKB52),0)","v":0},{"$f":"VJT71","v":15},null,{"$f":"IF(VKE71*VKD71=0,\"\",VKE71*VKD71)","v":""},"Pallet Charge",15,null,null,"Pallet Charge",null,null,null,null,null,null,{"$f":"ROUNDUP(SUM(VKQ45:VKQ52),0)","v":0},{"$f":"VKI71","v":15},null,{"$f":"IF(VKT71*VKS71=0,\"\",VKT71*VKS71)","v":""},"Pallet Charge",15,null,null,"Pallet Charge",null,null,null,null,null,null,{"$f":"ROUNDUP(SUM(VLF45:VLF52),0)","v":0},{"$f":"VKX71","v":15},null,{"$f":"IF(VLI71*VLH71=0,\"\",VLI71*VLH71)","v":""},"Pallet Charge",15,null,null,"Pallet Charge",null,null,null,null,null,null,{"$f":"ROUNDUP(SUM(VLU45:VLU52),0)","v":0},{"$f":"VLM71","v":15},null,{"$f":"IF(VLX71*VLW71=0,\"\",VLX71*VLW71)","v":""},"Pallet Charge",15,null,null,"Pallet Charge",null,null,null,null,null,null,{"$f":"ROUNDUP(SUM(VMJ45:VMJ52),0)","v":0},{"$f":"VMB71","v":15},null,{"$f":"IF(VMM71*VML71=0,\"\",VMM71*VML71)","v":""},"Pallet Charge",15,null,null,"Pallet Charge",null,null,null,null,null,null,{"$f":"ROUNDUP(SUM(VMY45:VMY52),0)","v":0},{"$f":"VMQ71","v":15},null,{"$f":"IF(VNB71*VNA71=0,\"\",VNB71*VNA71)","v":""},"Pallet Charge",15,null,null,"Pallet Charge",null,null,null,null,null,null,{"$f":"ROUNDUP(SUM(VNN45:VNN52),0)","v":0},{"$f":"VNF71","v":15},null,{"$f":"IF(VNQ71*VNP71=0,\"\",VNQ71*VNP71)","v":""},"Pallet Charge",15,null,null,"Pallet Charge",null,null,null,null,null,null,{"$f":"ROUNDUP(SUM(VOC45:VOC52),0)","v":0},{"$f":"VNU71","v":15},null,{"$f":"IF(VOF71*VOE71=0,\"\",VOF71*VOE71)","v":""},"Pallet Charge",15,null,null,"Pallet Charge",null,null,null,null,null,null,{"$f":"ROUNDUP(SUM(VOR45:VOR52),0)","v":0},{"$f":"VOJ71","v":15},null,{"$f":"IF(VOU71*VOT71=0,\"\",VOU71*VOT71)","v":""},"Pallet Charge",15,null,null,"Pallet Charge",null,null,null,null,null,null,{"$f":"ROUNDUP(SUM(VPG45:VPG52),0)","v":0},{"$f":"VOY71","v":15},null,{"$f":"IF(VPJ71*VPI71=0,\"\",VPJ71*VPI71)","v":""},"Pallet Charge",15,null,null,"Pallet Charge",null,null,null,null,null,null,{"$f":"ROUNDUP(SUM(VPV45:VPV52),0)","v":0},{"$f":"VPN71","v":15},null,{"$f":"IF(VPY71*VPX71=0,\"\",VPY71*VPX71)","v":""},"Pallet Charge",15,null,null,"Pallet Charge",null,null,null,null,null,null,{"$f":"ROUNDUP(SUM(VQK45:VQK52),0)","v":0},{"$f":"VQC71","v":15},null,{"$f":"IF(VQN71*VQM71=0,\"\",VQN71*VQM71)","v":""},"Pallet Charge",15,null,null,"Pallet Charge",null,null,null,null,null,null,{"$f":"ROUNDUP(SUM(VQZ45:VQZ52),0)","v":0},{"$f":"VQR71","v":15},null,{"$f":"IF(VRC71*VRB71=0,\"\",VRC71*VRB71)","v":""},"Pallet Charge",15,null,null,"Pallet Charge",null,null,null,null,null,null,{"$f":"ROUNDUP(SUM(VRO45:VRO52),0)","v":0},{"$f":"VRG71","v":15},null,{"$f":"IF(VRR71*VRQ71=0,\"\",VRR71*VRQ71)","v":""},"Pallet Charge",15,null,null,"Pallet Charge",null,null,null,null,null,null,{"$f":"ROUNDUP(SUM(VSD45:VSD52),0)","v":0},{"$f":"VRV71","v":15},null,{"$f":"IF(VSG71*VSF71=0,\"\",VSG71*VSF71)","v":""},"Pallet Charge",15,null,null,"Pallet Charge",null,null,null,null,null,null,{"$f":"ROUNDUP(SUM(VSS45:VSS52),0)","v":0},{"$f":"VSK71","v":15},null,{"$f":"IF(VSV71*VSU71=0,\"\",VSV71*VSU71)","v":""},"Pallet Charge",15,null,null,"Pallet Charge",null,null,null,null,null,null,{"$f":"ROUNDUP(SUM(VTH45:VTH52),0)","v":0},{"$f":"VSZ71","v":15},null,{"$f":"IF(VTK71*VTJ71=0,\"\",VTK71*VTJ71)","v":""},"Pallet Charge",15,null,null,"Pallet Charge",null,null,null,null,null,null,{"$f":"ROUNDUP(SUM(VTW45:VTW52),0)","v":0},{"$f":"VTO71","v":15},null,{"$f":"IF(VTZ71*VTY71=0,\"\",VTZ71*VTY71)","v":""},"Pallet Charge",15,null,null,"Pallet Charge",null,null,null,null,null,null,{"$f":"ROUNDUP(SUM(VUL45:VUL52),0)","v":0},{"$f":"VUD71","v":15},null,{"$f":"IF(VUO71*VUN71=0,\"\",VUO71*VUN71)","v":""},"Pallet Charge",15,null,null,"Pallet Charge",null,null,null,null,null,null,{"$f":"ROUNDUP(SUM(VVA45:VVA52),0)","v":0},{"$f":"VUS71","v":15},null,{"$f":"IF(VVD71*VVC71=0,\"\",VVD71*VVC71)","v":""},"Pallet Charge",15,null,null,"Pallet Charge",null,null,null,null,null,null,{"$f":"ROUNDUP(SUM(VVP45:VVP52),0)","v":0},{"$f":"VVH71","v":15},null,{"$f":"IF(VVS71*VVR71=0,\"\",VVS71*VVR71)","v":""},"Pallet Charge",15,null,null,"Pallet Charge",null,null,null,null,null,null,{"$f":"ROUNDUP(SUM(VWE45:VWE52),0)","v":0},{"$f":"VVW71","v":15},null,{"$f":"IF(VWH71*VWG71=0,\"\",VWH71*VWG71)","v":""},"Pallet Charge",15,null,null,"Pallet Charge",null,null,null,null,null,null,{"$f":"ROUNDUP(SUM(VWT45:VWT52),0)","v":0},{"$f":"VWL71","v":15},null,{"$f":"IF(VWW71*VWV71=0,\"\",VWW71*VWV71)","v":""},"Pallet Charge",15,null,null,"Pallet Charge",null,null,null,null,null,null,{"$f":"ROUNDUP(SUM(VXI45:VXI52),0)","v":0},{"$f":"VXA71","v":15},null,{"$f":"IF(VXL71*VXK71=0,\"\",VXL71*VXK71)","v":""},"Pallet Charge",15,null,null,"Pallet Charge",null,null,null,null,null,null,{"$f":"ROUNDUP(SUM(VXX45:VXX52),0)","v":0},{"$f":"VXP71","v":15},null,{"$f":"IF(VYA71*VXZ71=0,\"\",VYA71*VXZ71)","v":""},"Pallet Charge",15,null,null,"Pallet Charge",null,null,null,null,null,null,{"$f":"ROUNDUP(SUM(VYM45:VYM52),0)","v":0},{"$f":"VYE71","v":15},null,{"$f":"IF(VYP71*VYO71=0,\"\",VYP71*VYO71)","v":""},"Pallet Charge",15,null,null,"Pallet Charge",null,null,null,null,null,null,{"$f":"ROUNDUP(SUM(VZB45:VZB52),0)","v":0},{"$f":"VYT71","v":15},null,{"$f":"IF(VZE71*VZD71=0,\"\",VZE71*VZD71)","v":""},"Pallet Charge",15,null,null,"Pallet Charge",null,null,null,null,null,null,{"$f":"ROUNDUP(SUM(VZQ45:VZQ52),0)","v":0},{"$f":"VZI71","v":15},null,{"$f":"IF(VZT71*VZS71=0,\"\",VZT71*VZS71)","v":""},"Pallet Charge",15,null,null,"Pallet Charge",null,null,null,null,null,null,{"$f":"ROUNDUP(SUM(WAF45:WAF52),0)","v":0},{"$f":"VZX71","v":15},null,{"$f":"IF(WAI71*WAH71=0,\"\",WAI71*WAH71)","v":""},"Pallet Charge",15,null,null,"Pallet Charge",null,null,null,null,null,null,{"$f":"ROUNDUP(SUM(WAU45:WAU52),0)","v":0},{"$f":"WAM71","v":15},null,{"$f":"IF(WAX71*WAW71=0,\"\",WAX71*WAW71)","v":""},"Pallet Charge",15,null,null,"Pallet Charge",null,null,null,null,null,null,{"$f":"ROUNDUP(SUM(WBJ45:WBJ52),0)","v":0},{"$f":"WBB71","v":15},null,{"$f":"IF(WBM71*WBL71=0,\"\",WBM71*WBL71)","v":""},"Pallet Charge",15,null,null,"Pallet Charge",null,null,null,null,null,null,{"$f":"ROUNDUP(SUM(WBY45:WBY52),0)","v":0},{"$f":"WBQ71","v":15},null,{"$f":"IF(WCB71*WCA71=0,\"\",WCB71*WCA71)","v":""},"Pallet Charge",15,null,null,"Pallet Charge",null,null,null,null,null,null,{"$f":"ROUNDUP(SUM(WCN45:WCN52),0)","v":0},{"$f":"WCF71","v":15},null,{"$f":"IF(WCQ71*WCP71=0,\"\",WCQ71*WCP71)","v":""},"Pallet Charge",15,null,null,"Pallet Charge",null,null,null,null,null,null,{"$f":"ROUNDUP(SUM(WDC45:WDC52),0)","v":0},{"$f":"WCU71","v":15},null,{"$f":"IF(WDF71*WDE71=0,\"\",WDF71*WDE71)","v":""},"Pallet Charge",15,null,null,"Pallet Charge",null,null,null,null,null,null,{"$f":"ROUNDUP(SUM(WDR45:WDR52),0)","v":0},{"$f":"WDJ71","v":15},null,{"$f":"IF(WDU71*WDT71=0,\"\",WDU71*WDT71)","v":""},"Pallet Charge",15,null,null,"Pallet Charge",null,null,null,null,null,null,{"$f":"ROUNDUP(SUM(WEG45:WEG52),0)","v":0},{"$f":"WDY71","v":15},null,{"$f":"IF(WEJ71*WEI71=0,\"\",WEJ71*WEI71)","v":""},"Pallet Charge",15,null,null,"Pallet Charge",null,null,null,null,null,null,{"$f":"ROUNDUP(SUM(WEV45:WEV52),0)","v":0},{"$f":"WEN71","v":15},null,{"$f":"IF(WEY71*WEX71=0,\"\",WEY71*WEX71)","v":""},"Pallet Charge",15,null,null,"Pallet Charge",null,null,null,null,null,null,{"$f":"ROUNDUP(SUM(WFK45:WFK52),0)","v":0},{"$f":"WFC71","v":15},null,{"$f":"IF(WFN71*WFM71=0,\"\",WFN71*WFM71)","v":""},"Pallet Charge",15,null,null,"Pallet Charge",null,null,null,null,null,null,{"$f":"ROUNDUP(SUM(WFZ45:WFZ52),0)","v":0},{"$f":"WFR71","v":15},null,{"$f":"IF(WGC71*WGB71=0,\"\",WGC71*WGB71)","v":""},"Pallet Charge",15,null,null,"Pallet Charge",null,null,null,null,null,null,{"$f":"ROUNDUP(SUM(WGO45:WGO52),0)","v":0},{"$f":"WGG71","v":15},null,{"$f":"IF(WGR71*WGQ71=0,\"\",WGR71*WGQ71)","v":""},"Pallet Charge",15,null,null,"Pallet Charge",null,null,null,null,null,null,{"$f":"ROUNDUP(SUM(WHD45:WHD52),0)","v":0},{"$f":"WGV71","v":15},null,{"$f":"IF(WHG71*WHF71=0,\"\",WHG71*WHF71)","v":""},"Pallet Charge",15,null,null,"Pallet Charge",null,null,null,null,null,null,{"$f":"ROUNDUP(SUM(WHS45:WHS52),0)","v":0},{"$f":"WHK71","v":15},null,{"$f":"IF(WHV71*WHU71=0,\"\",WHV71*WHU71)","v":""},"Pallet Charge",15,null,null,"Pallet Charge",null,null,null,null,null,null,{"$f":"ROUNDUP(SUM(WIH45:WIH52),0)","v":0},{"$f":"WHZ71","v":15},null,{"$f":"IF(WIK71*WIJ71=0,\"\",WIK71*WIJ71)","v":""},"Pallet Charge",15,null,null,"Pallet Charge",null,null,null,null,null,null,{"$f":"ROUNDUP(SUM(WIW45:WIW52),0)","v":0},{"$f":"WIO71","v":15},null,{"$f":"IF(WIZ71*WIY71=0,\"\",WIZ71*WIY71)","v":""},"Pallet Charge",15,null,null,"Pallet Charge",null,null,null,null,null,null,{"$f":"ROUNDUP(SUM(WJL45:WJL52),0)","v":0},{"$f":"WJD71","v":15},null,{"$f":"IF(WJO71*WJN71=0,\"\",WJO71*WJN71)","v":""},"Pallet Charge",15,null,null,"Pallet Charge",null,null,null,null,null,null,{"$f":"ROUNDUP(SUM(WKA45:WKA52),0)","v":0},{"$f":"WJS71","v":15},null,{"$f":"IF(WKD71*WKC71=0,\"\",WKD71*WKC71)","v":""},"Pallet Charge",15,null,null,"Pallet Charge",null,null,null,null,null,null,{"$f":"ROUNDUP(SUM(WKP45:WKP52),0)","v":0},{"$f":"WKH71","v":15},null,{"$f":"IF(WKS71*WKR71=0,\"\",WKS71*WKR71)","v":""},"Pallet Charge",15,null,null,"Pallet Charge",null,null,null,null,null,null,{"$f":"ROUNDUP(SUM(WLE45:WLE52),0)","v":0},{"$f":"WKW71","v":15},null,{"$f":"IF(WLH71*WLG71=0,\"\",WLH71*WLG71)","v":""},"Pallet Charge",15,null,null,"Pallet Charge",null,null,null,null,null,null,{"$f":"ROUNDUP(SUM(WLT45:WLT52),0)","v":0},{"$f":"WLL71","v":15},null,{"$f":"IF(WLW71*WLV71=0,\"\",WLW71*WLV71)","v":""},"Pallet Charge",15,null,null,"Pallet Charge",null,null,null,null,null,null,{"$f":"ROUNDUP(SUM(WMI45:WMI52),0)","v":0},{"$f":"WMA71","v":15},null,{"$f":"IF(WML71*WMK71=0,\"\",WML71*WMK71)","v":""},"Pallet Charge",15,null,null,"Pallet Charge",null,null,null,null,null,null,{"$f":"ROUNDUP(SUM(WMX45:WMX52),0)","v":0},{"$f":"WMP71","v":15},null,{"$f":"IF(WNA71*WMZ71=0,\"\",WNA71*WMZ71)","v":""},"Pallet Charge",15,null,null,"Pallet Charge",null,null,null,null,null,null,{"$f":"ROUNDUP(SUM(WNM45:WNM52),0)","v":0},{"$f":"WNE71","v":15},null,{"$f":"IF(WNP71*WNO71=0,\"\",WNP71*WNO71)","v":""},"Pallet Charge",15,null,null,"Pallet Charge",null,null,null,null,null,null,{"$f":"ROUNDUP(SUM(WOB45:WOB52),0)","v":0},{"$f":"WNT71","v":15},null,{"$f":"IF(WOE71*WOD71=0,\"\",WOE71*WOD71)","v":""},"Pallet Charge",15,null,null,"Pallet Charge",null,null,null,null,null,null,{"$f":"ROUNDUP(SUM(WOQ45:WOQ52),0)","v":0},{"$f":"WOI71","v":15},null,{"$f":"IF(WOT71*WOS71=0,\"\",WOT71*WOS71)","v":""},"Pallet Charge",15,null,null,"Pallet Charge",null,null,null,null,null,null,{"$f":"ROUNDUP(SUM(WPF45:WPF52),0)","v":0},{"$f":"WOX71","v":15},null,{"$f":"IF(WPI71*WPH71=0,\"\",WPI71*WPH71)","v":""},"Pallet Charge",15,null,null,"Pallet Charge",null,null,null,null,null,null,{"$f":"ROUNDUP(SUM(WPU45:WPU52),0)","v":0},{"$f":"WPM71","v":15},null,{"$f":"IF(WPX71*WPW71=0,\"\",WPX71*WPW71)","v":""},"Pallet Charge",15,null,null,"Pallet Charge",null,null,null,null,null,null,{"$f":"ROUNDUP(SUM(WQJ45:WQJ52),0)","v":0},{"$f":"WQB71","v":15},null,{"$f":"IF(WQM71*WQL71=0,\"\",WQM71*WQL71)","v":""},"Pallet Charge",15,null,null,"Pallet Charge",null,null,null,null,null,null,{"$f":"ROUNDUP(SUM(WQY45:WQY52),0)","v":0},{"$f":"WQQ71","v":15},null,{"$f":"IF(WRB71*WRA71=0,\"\",WRB71*WRA71)","v":""},"Pallet Charge",15,null,null,"Pallet Charge",null,null,null,null,null,null,{"$f":"ROUNDUP(SUM(WRN45:WRN52),0)","v":0},{"$f":"WRF71","v":15},null,{"$f":"IF(WRQ71*WRP71=0,\"\",WRQ71*WRP71)","v":""},"Pallet Charge",15,null,null,"Pallet Charge",null,null,null,null,null,null,{"$f":"ROUNDUP(SUM(WSC45:WSC52),0)","v":0},{"$f":"WRU71","v":15},null,{"$f":"IF(WSF71*WSE71=0,\"\",WSF71*WSE71)","v":""},"Pallet Charge",15,null,null,"Pallet Charge",null,null,null,null,null,null,{"$f":"ROUNDUP(SUM(WSR45:WSR52),0)","v":0},{"$f":"WSJ71","v":15},null,{"$f":"IF(WSU71*WST71=0,\"\",WSU71*WST71)","v":""},"Pallet Charge",15,null,null,"Pallet Charge",null,null,null,null,null,null,{"$f":"ROUNDUP(SUM(WTG45:WTG52),0)","v":0},{"$f":"WSY71","v":15},null,{"$f":"IF(WTJ71*WTI71=0,\"\",WTJ71*WTI71)","v":""},"Pallet Charge",15,null,null,"Pallet Charge",null,null,null,null,null,null,{"$f":"ROUNDUP(SUM(WTV45:WTV52),0)","v":0},{"$f":"WTN71","v":15},null,{"$f":"IF(WTY71*WTX71=0,\"\",WTY71*WTX71)","v":""},"Pallet Charge",15,null,null,"Pallet Charge",null,null,null,null,null,null,{"$f":"ROUNDUP(SUM(WUK45:WUK52),0)","v":0},{"$f":"WUC71","v":15},null,{"$f":"IF(WUN71*WUM71=0,\"\",WUN71*WUM71)","v":""},"Pallet Charge",15,null,null,"Pallet Charge",null,null,null,null,null,null,{"$f":"ROUNDUP(SUM(WUZ45:WUZ52),0)","v":0},{"$f":"WUR71","v":15},null,{"$f":"IF(WVC71*WVB71=0,\"\",WVC71*WVB71)","v":""},"Pallet Charge",15,null,null,"Pallet Charge",null,null,null,null,null,null,{"$f":"ROUNDUP(SUM(WVO45:WVO52),0)","v":0},{"$f":"WVG71","v":15},null,{"$f":"IF(WVR71*WVQ71=0,\"\",WVR71*WVQ71)","v":""},"Pallet Charge",15,null,null,"Pallet Charge",null,null,null,null,null,null,{"$f":"ROUNDUP(SUM(WWD45:WWD52),0)","v":0},{"$f":"WVV71","v":15},null,{"$f":"IF(WWG71*WWF71=0,\"\",WWG71*WWF71)","v":""},"Pallet Charge",15,null,null,"Pallet Charge",null,null,null,null,null,null,{"$f":"ROUNDUP(SUM(WWS45:WWS52),0)","v":0},{"$f":"WWK71","v":15},null,{"$f":"IF(WWV71*WWU71=0,\"\",WWV71*WWU71)","v":""},"Pallet Charge",15,null,null,"Pallet Charge",null,null,null,null,null,null,{"$f":"ROUNDUP(SUM(WXH45:WXH52),0)","v":0},{"$f":"WWZ71","v":15},null,{"$f":"IF(WXK71*WXJ71=0,\"\",WXK71*WXJ71)","v":""},"Pallet Charge",15,null,null,"Pallet Charge",null,null,null,null,null,null,{"$f":"ROUNDUP(SUM(WXW45:WXW52),0)","v":0},{"$f":"WXO71","v":15},null,{"$f":"IF(WXZ71*WXY71=0,\"\",WXZ71*WXY71)","v":""},"Pallet Charge",15,null,null,"Pallet Charge",null,null,null,null,null,null,{"$f":"ROUNDUP(SUM(WYL45:WYL52),0)","v":0},{"$f":"WYD71","v":15},null,{"$f":"IF(WYO71*WYN71=0,\"\",WYO71*WYN71)","v":""},"Pallet Charge",15,null,null,"Pallet Charge",null,null,null,null,null,null,{"$f":"ROUNDUP(SUM(WZA45:WZA52),0)","v":0},{"$f":"WYS71","v":15},null,{"$f":"IF(WZD71*WZC71=0,\"\",WZD71*WZC71)","v":""},"Pallet Charge",15,null,null,"Pallet Charge",null,null,null,null,null,null,{"$f":"ROUNDUP(SUM(WZP45:WZP52),0)","v":0},{"$f":"WZH71","v":15},null,{"$f":"IF(WZS71*WZR71=0,\"\",WZS71*WZR71)","v":""},"Pallet Charge",15,null,null,"Pallet Charge",null,null,null,null,null,null,{"$f":"ROUNDUP(SUM(XAE45:XAE52),0)","v":0},{"$f":"WZW71","v":15},null,{"$f":"IF(XAH71*XAG71=0,\"\",XAH71*XAG71)","v":""},"Pallet Charge",15,null,null,"Pallet Charge",null,null,null,null,null,null,{"$f":"ROUNDUP(SUM(XAT45:XAT52),0)","v":0},{"$f":"XAL71","v":15},null,{"$f":"IF(XAW71*XAV71=0,\"\",XAW71*XAV71)","v":""},"Pallet Charge",15,null,null,"Pallet Charge",null,null,null,null,null,null,{"$f":"ROUNDUP(SUM(XBI45:XBI52),0)","v":0},{"$f":"XBA71","v":15},null,{"$f":"IF(XBL71*XBK71=0,\"\",XBL71*XBK71)","v":""},"Pallet Charge",15,null,null,"Pallet Charge",null,null,null,null,null,null,{"$f":"ROUNDUP(SUM(XBX45:XBX52),0)","v":0},{"$f":"XBP71","v":15},null,{"$f":"IF(XCA71*XBZ71=0,\"\",XCA71*XBZ71)","v":""},"Pallet Charge",15,null,null,"Pallet Charge",null,null,null,null,null,null,{"$f":"ROUNDUP(SUM(XCM45:XCM52),0)","v":0},{"$f":"XCE71","v":15},null,{"$f":"IF(XCP71*XCO71=0,\"\",XCP71*XCO71)","v":""},"Pallet Charge",15,null,null,"Pallet Charge",null,null,null,null,null,null,{"$f":"ROUNDUP(SUM(XDB45:XDB52),0)","v":0},{"$f":"XCT71","v":15},null,{"$f":"IF(XDE71*XDD71=0,\"\",XDE71*XDD71)","v":""},"Pallet Charge",15,null,null,"Pallet Charge",null,null,null,null,null,null,{"$f":"ROUNDUP(SUM(XDQ45:XDQ52),0)","v":0},{"$f":"XDI71","v":15},null,{"$f":"IF(XDT71*XDS71=0,\"\",XDT71*XDS71)","v":""},"Pallet Charge",15,null,null,"Pallet Charge",null,null,null,null,null,null,{"$f":"ROUNDUP(SUM(XEF45:XEF52),0)","v":0},{"$f":"XDX71","v":15},null,{"$f":"IF(XEI71*XEH71=0,\"\",XEI71*XEH71)","v":""},"Pallet Charge",15,null,null,"Pallet Charge",null,null,null,null,null,null,{"$f":"ROUNDUP(SUM(XEU45:XEU52),0)","v":0},{"$f":"XEM71","v":15},null,{"$f":"IF(XEX71*XEW71=0,\"\",XEX71*XEW71)","v":""},"Pallet Charge",15]
["Pallet Shrink Wrap Fee",2,null,null,"Pallet Shrink Wrap Fee",null,null,null,null,null,null,{"$f":"L71","v":34},{"$f":"B72","v":2},{"$f":"IF(M72*L72=0,\"\",M72*L72)","v":68},null,null,"Quick Estimate",null,null,null,{"$f":"U69*U71","v":8497.5}]
[null,null,null,null,null,null,null,null,null,null,null,null,null,null,null,null,null,null,null,null,null,null,null,null,null,null,null,null,null,{"$f":"AD71+$AD$4","v":{"$error":"#VALUE!"}}]
[null,null,null,"TOTAL ",null,null,null,null,null,null,null,null,null,{"$f":"IF(SUM(N71:N72)>0,N63+N69+N71+N72,N63+N69)","v":12318.4},null,null,"Gross Block",null,null,null,{"$f":"U69/0.89","v":2546.067415730337},null,null,30,{"$f":"ROUND($X74*$Y$4,2)","v":20},null,null,null,null,{"$f":"#REF!+$AD$4","v":{"$error":"#REF!"}}]
[null,null,null,null,null,null,null,null,null,null,null,null,null,null,null,null,"Less Egress",null,null,null,0.15,null,null,31,{"$f":"ROUND($X75*$Y$4,2)","v":20.67},null,null,9.1999999999999993,10,{"$f":"AD74+$AD$4","v":{"$error":"#REF!"}}]
[null,null,null,null,null,null,null,null,null,null,null,null,null,null,null,null,null,null,null,null,null,null,null,32,{"$f":"ROUND($X76*$Y$4,2)","v":21.33},null,null,9.8000000000000007,11,{"$f":"AD75+$AD$4","v":{"$error":"#REF!"}}]
["Pallet Refund",11,null,"Pallet Refund (if returned back to origin)",null,null,null,null,null,null,null,{"$f":"L71","v":34},{"$f":"-B77","v":-11},{"$f":"L77*M77","v":-374},null,null,"Net Block",null,null,null,{"$f":"U74*(1-U75)","v":2164.1573033707864}]
[]
[null,null,null,"Estimate Prepared By: ",null,null,null,null,null,null,null,null,null,null,null,null,null,null,null,null,null,null,null,null,null,null,null,null,null,{"$f":"AD76+$AD$4","v":{"$error":"#REF!"}}]
[]
[null,null,null,null,null,null,null,null,null,null,null,null,null,null,null,null,null,null,null,null,null,null,null,null,null,null,null,null,null,{"$f":"AD79+$AD$4","v":{"$error":"#REF!"}}]
[null,null,null,null,null,null,null,null,null,null,null,null,null,null,null,null,null,null,null,null,null,null,null,null,null,null,null,null,null,{"$f":"AD81+$AD$4","v":{"$error":"#REF!"}}]
[null,null,null,null,null," ",null,null,null,null,null,null,null,null,null,null,null,null,null,null,null,null,null,null,null,null,null,null,null,{"$error":"#REF!"}]
[null,null,null,null,null,null,null,null,null,null,null,null,null,null,null,null,null,null,null,null,null,null,null,null,null,null,null,null,null,{"$error":"#REF!"}]
[null,null,null,null,null,null,null,null,null,null,null,null,null,null,null,null,null,null,null,null,null,null,null,null,null,null,null,null,null,{"$error":"#REF!"}]
[null,null,null,null,null,null,null,null,null,null,null,null,null,null,null,null,null,null,null,null,null,null,null,null,null,null,null,null,null,{"$error":"#REF!"}]
[null,null,null,null,null,null,null,null,null,null,null,null,null,null,null,null,null,null,null,null,null,null,null,null,null,null,null,null,null,{"$error":"#REF!"}]
[null,null,null,null,null,null,null,null,null,null,null,null,null,null,null,null,null,null,null,null,null,null,null,null,null,null,null,null,null,{"$error":"#REF!"}]
[null,null,null,null,null,null,null,null,null,null,null,null,null,null,null,null,null,null,null,null,null,null,null,null,null,null,null,null,null,{"$f":"AD88+$AD$4","v":{"$error":"#REF!"}}]
[null,null,null,null,null,null,null,null,null,null,null,null,null,null,null,null,null,null,null,null,null,null,null,null,null,null,null,null,null,{"$f":"AD89+$AD$4","v":{"$error":"#REF!"}}]
[null,null,null,null,null,null,null,null,null,null,null,null,null,null,null,null,null,null,null,null,null,null,null,null,null,null,null,null,null,{"$f":"AD90+$AD$4","v":{"$error":"#REF!"}}]